{"text_format":"1","workbook":"xlsx","n_sheets":5,"sheets":["はじめにお読みください","様式０","様式００","様式１","EIC"],"not_rendered":{"charts":0,"images":0,"macros":1,"external_links":0,"defined_names":172,"comments":0,"pivot_tables":0},"unopened":[],"bounds":{"document_bytes":16777216,"sheet_cells":100000,"rows_first":2000,"rows_last":500,"rows_between":2000,"halvings":0,"cell_chars":16384,"cell_head_chars":4096},"cells_cut":0,"cells_raw":0,"read":"whole","date_system":"1900"}

{"sheet":"はじめにお読みください","index":0,"n_rows":14,"n_cols":3,"rows_kept":14,"cut":false,"hidden":false,"merged":[]}
[]
[null,"本エクセルファイルには、様式0（データ入力シート）、様式1（基本事項説明書）が含まれています。"]
[]
[]
[null,"＜様式0（データ入力シート）＞"]
[null,null,"・記入が必要なシートです。提案書作成要領に従い、記入してください。"]
[null,null,"・様式0に記入すると、様式1に内容が反映されます。"]
[null,null,"・様式0には記載例が入力されています。提出の際は、記載例は全て削除してください。"]
[]
[null,"＜様式1（基本事項説明書）＞"]
[null,null,"・記入の必要はありません。"]
[null,null,"・様式1には、様式0に記入した内容が自動的に反映されます。"]
[null,null,"・内容が反映された後、セルの高さの調整等を行い、文字が隠れる等がないよう、"]
[null,null,"  体裁を整えてください。"]

{"sheet":"様式０","index":1,"n_rows":853,"n_cols":117,"rows_kept":853,"cut":false,"hidden":false,"merged":[[77,14,78,14],[55,1,55,3],[44,2,44,3],[73,4,73,11],[41,1,54,1],[86,2,86,3],[87,2,87,3],[88,2,88,3],[89,2,89,3],[96,1,104,1],[166,1,174,1],[166,2,166,3],[166,4,166,11],[167,2,167,3],[167,4,167,11],[171,4,171,11],[172,4,172,11],[173,2,174,2],[170,4,170,11],[173,4,173,11],[165,1,165,3],[165,4,165,11],[105,1,105,3],[105,4,105,11],[106,1,114,1],[106,2,106,3],[106,4,106,11],[107,2,107,3],[109,2,109,3],[113,4,113,11],[91,4,91,11],[92,4,92,11],[5,4,5,11],[6,1,6,3],[39,4,39,11],[9,1,9,3],[30,4,30,11],[37,4,37,11],[7,1,7,3],[20,1,20,3],[11,1,12,1],[50,2,54,2],[59,2,59,3],[67,2,67,3],[60,2,64,2],[69,2,69,3],[68,2,68,3],[66,2,66,3],[56,2,56,3],[11,4,11,11],[12,4,12,11],[9,4,9,11],[10,4,10,11],[43,2,43,3],[31,4,31,11],[24,1,24,3],[28,1,37,1],[21,8,21,11],[22,4,22,5],[22,6,22,7],[27,4,27,11],[11,2,11,3],[12,2,12,3],[10,2,10,3],[102,4,102,11],[679,1,679,3],[679,4,679,11],[64,4,64,11],[65,4,65,11],[38,1,38,3],[38,4,38,11],[39,1,39,3],[107,4,107,11],[93,4,93,11],[94,4,94,11],[56,1,64,1],[57,2,57,3],[96,2,96,3],[97,2,97,3],[80,2,80,3],[83,2,84,2],[76,2,76,3],[78,2,78,3],[99,2,99,3],[100,2,104,2],[103,4,103,11],[104,4,104,11],[75,4,75,11],[57,4,57,11],[65,1,65,3],[66,1,74,1],[58,2,58,3],[74,4,74,11],[71,4,71,11],[70,2,74,2],[14,14,23,14],[54,4,54,11],[55,4,55,11],[56,4,56,11],[40,4,40,11],[61,4,61,11],[62,4,62,11],[63,4,63,11],[66,4,66,11],[60,4,60,11],[67,4,67,11],[68,4,68,11],[69,4,69,11],[59,4,59,11],[48,4,48,11],[49,4,49,11],[58,4,58,11],[25,14,27,14],[30,14,37,14],[28,4,28,11],[66,14,74,14],[56,14,64,14],[29,4,29,11],[34,4,34,11],[19,4,19,5],[19,6,19,7],[19,8,19,11],[20,4,20,5],[20,6,20,7],[20,8,20,11],[21,4,21,5],[21,6,21,7],[678,1,678,3],[85,1,85,3],[90,2,94,2],[95,1,95,3],[130,2,134,2],[138,2,138,3],[143,2,144,2],[198,2,198,3],[110,2,110,3],[98,2,98,3],[41,4,41,11],[42,4,42,11],[50,4,50,11],[51,4,51,11],[43,4,43,11],[46,4,46,11],[44,4,44,11],[45,4,45,11],[70,4,70,11],[72,4,72,11],[86,1,94,1],[81,4,81,11],[47,4,47,11],[677,1,677,3],[108,4,108,11],[122,4,122,11],[678,4,678,11],[79,4,79,11],[80,4,80,11],[109,4,109,11],[110,4,110,11],[111,4,111,11],[47,2,47,3],[21,1,21,3],[22,1,22,3],[23,1,23,3],[26,4,26,11],[52,4,52,11],[53,4,53,11],[83,4,83,11],[84,4,84,11],[76,1,84,1],[75,1,75,3],[48,2,49,2],[45,2,45,3],[77,2,77,3],[79,2,79,3],[40,1,40,3],[25,1,27,2],[41,2,41,3],[42,2,42,3],[24,4,24,11],[22,8,22,11],[23,4,23,5],[23,6,23,7],[23,8,23,11],[33,2,37,2],[32,4,32,11],[33,4,33,11],[35,4,35,11],[36,4,36,11],[115,1,115,3],[116,1,124,1],[116,2,116,3],[116,4,116,11],[121,4,121,11],[120,4,120,11],[117,2,117,3],[124,4,124,11],[117,4,117,11],[114,4,114,11],[115,4,115,11],[90,4,90,11],[77,4,77,11],[88,4,88,11],[85,4,85,11],[86,4,86,11],[76,4,76,11],[82,4,82,11],[78,4,78,11],[97,4,97,11],[98,4,98,11],[95,4,95,11],[96,4,96,11],[99,4,99,11],[100,4,100,11],[108,2,108,3],[123,4,123,11],[120,2,124,2],[87,4,87,11],[89,4,89,11],[112,4,112,11],[101,4,101,11],[113,2,114,2],[677,4,677,11],[127,2,127,3],[127,4,127,11],[128,2,128,3],[128,4,128,11],[129,2,129,3],[129,4,129,11],[133,4,133,11],[118,2,118,3],[119,2,119,3],[119,4,119,11],[130,4,130,11],[131,4,131,11],[125,1,125,3],[125,4,125,11],[126,1,134,1],[126,2,126,3],[126,4,126,11],[118,4,118,11],[139,4,139,11],[140,2,140,3],[140,4,140,11],[141,4,141,11],[142,4,142,11],[143,4,143,11],[144,4,144,11],[135,1,135,3],[135,4,135,11],[136,1,144,1],[149,2,149,3],[204,4,204,11],[195,1,195,3],[195,4,195,11],[196,1,204,1],[196,2,196,3],[196,4,196,11],[197,2,197,3],[197,4,197,11],[198,4,198,11],[199,2,199,3],[199,4,199,11],[201,4,201,11],[202,4,202,11],[203,2,204,2],[203,4,203,11],[676,1,676,3],[676,4,676,11],[191,4,191,11],[192,4,192,11],[193,4,193,11],[194,4,194,11],[206,4,206,11],[207,2,207,3],[207,4,207,11],[208,2,208,3],[208,4,208,11],[219,2,219,3],[219,4,219,11],[220,2,224,2],[220,4,220,11],[221,4,221,11],[222,4,222,11],[223,4,223,11],[224,4,224,11],[189,2,189,3],[149,4,149,11],[150,2,154,2],[150,4,150,11],[151,4,151,11],[152,4,152,11],[153,4,153,11],[154,4,154,11],[145,1,145,3],[145,4,145,11],[146,1,154,1],[146,2,146,3],[146,4,146,11],[147,2,147,3],[147,4,147,11],[148,2,148,3],[148,4,148,11],[181,4,181,11],[157,2,157,3],[157,4,157,11],[158,2,158,3],[158,4,158,11],[215,1,215,3],[215,4,215,11],[216,1,224,1],[216,2,216,3],[216,4,216,11],[217,2,217,3],[217,4,217,11],[218,2,218,3],[218,4,218,11],[136,2,136,3],[136,4,136,11],[137,2,137,3],[137,4,137,11],[138,4,138,11],[139,2,139,3],[185,1,185,3],[185,4,185,11],[176,1,184,1],[176,2,176,3],[176,4,176,11],[182,4,182,11],[183,4,183,11],[184,4,184,11],[177,4,177,11],[200,2,200,3],[200,4,200,11],[186,1,194,1],[186,2,186,3],[186,4,186,11],[187,2,187,3],[187,4,187,11],[188,2,188,3],[188,4,188,11],[189,4,189,11],[190,2,194,2],[190,4,190,11],[178,2,178,3],[179,2,179,3],[179,4,179,11],[180,4,180,11],[180,2,184,2],[245,1,245,3],[245,4,245,11],[246,1,254,1],[246,2,246,3],[246,4,246,11],[247,2,247,3],[247,4,247,11],[248,2,248,3],[248,4,248,11],[235,1,235,3],[236,1,244,1],[236,2,236,3],[237,2,237,3],[238,2,238,3],[239,2,239,3],[240,2,244,2],[236,4,236,11],[237,4,237,11],[238,4,238,11],[239,4,239,11],[240,4,240,11],[241,4,241,11],[242,4,242,11],[243,4,243,11],[262,4,262,11],[263,2,264,2],[263,4,263,11],[264,4,264,11],[256,4,256,11],[257,2,257,3],[257,4,257,11],[258,2,258,3],[258,4,258,11],[259,2,259,3],[259,4,259,11],[250,4,250,11],[251,4,251,11],[252,4,252,11],[253,4,253,11],[254,4,254,11],[255,4,255,11],[269,4,269,11],[270,2,274,2],[270,4,270,11],[271,4,271,11],[272,4,272,11],[273,4,273,11],[274,4,274,11],[265,1,265,3],[265,4,265,11],[266,1,274,1],[266,2,266,3],[266,4,266,11],[267,2,267,3],[267,4,267,11],[268,2,268,3],[268,4,268,11],[269,2,269,3],[279,4,279,11],[280,2,284,2],[280,4,280,11],[281,4,281,11],[282,4,282,11],[283,4,283,11],[284,4,284,11],[275,1,275,3],[275,4,275,11],[276,1,284,1],[276,2,276,3],[276,4,276,11],[277,2,277,3],[277,4,277,11],[278,2,278,3],[278,4,278,11],[279,2,279,3],[289,4,289,11],[290,2,290,3],[290,4,290,11],[291,4,291,11],[292,4,292,11],[293,2,294,2],[293,4,293,11],[294,4,294,11],[285,1,285,3],[285,4,285,11],[286,1,294,1],[286,2,286,3],[286,4,286,11],[287,2,287,3],[287,4,287,11],[288,2,288,3],[288,4,288,11],[289,2,289,3],[299,4,299,11],[300,2,304,2],[300,4,300,11],[301,4,301,11],[302,4,302,11],[303,4,303,11],[304,4,304,11],[295,1,295,3],[295,4,295,11],[296,1,304,1],[296,2,296,3],[296,4,296,11],[297,2,297,3],[297,4,297,11],[298,2,298,3],[298,4,298,11],[299,2,299,3],[309,4,309,11],[310,2,314,2],[310,4,310,11],[311,4,311,11],[312,4,312,11],[313,4,313,11],[314,4,314,11],[305,1,305,3],[305,4,305,11],[306,1,314,1],[306,2,306,3],[306,4,306,11],[307,2,307,3],[307,4,307,11],[308,2,308,3],[308,4,308,11],[309,2,309,3],[319,4,319,11],[320,2,320,3],[320,4,320,11],[321,4,321,11],[322,4,322,11],[323,2,324,2],[323,4,323,11],[324,4,324,11],[315,1,315,3],[315,4,315,11],[316,1,324,1],[316,2,316,3],[316,4,316,11],[317,2,317,3],[317,4,317,11],[318,2,318,3],[318,4,318,11],[319,2,319,3],[337,2,337,3],[337,4,337,11],[338,2,338,3],[338,4,338,11],[339,2,339,3],[329,4,329,11],[330,2,334,2],[330,4,330,11],[331,4,331,11],[332,4,332,11],[333,4,333,11],[334,4,334,11],[325,1,325,3],[325,4,325,11],[326,1,334,1],[326,2,326,3],[326,4,326,11],[327,2,327,3],[327,4,327,11],[328,2,328,3],[328,4,328,11],[329,2,329,3],[230,4,230,11],[231,4,231,11],[232,4,232,11],[233,4,233,11],[234,4,234,11],[235,4,235,11],[225,1,225,3],[225,4,225,11],[226,4,226,11],[227,4,227,11],[228,4,228,11],[229,4,229,11],[226,1,234,1],[226,2,226,3],[227,2,227,3],[228,2,228,3],[229,2,229,3],[233,2,234,2],[230,2,230,3],[345,1,345,3],[345,4,345,11],[346,1,354,1],[346,2,346,3],[346,4,346,11],[347,2,347,3],[347,4,347,11],[348,2,348,3],[348,4,348,11],[349,2,349,3],[244,4,244,11],[249,2,249,3],[249,4,249,11],[250,2,254,2],[255,1,255,3],[256,1,264,1],[256,2,256,3],[260,2,260,3],[260,4,260,11],[261,4,261,11],[339,4,339,11],[340,2,344,2],[340,4,340,11],[341,4,341,11],[342,4,342,11],[343,4,343,11],[344,4,344,11],[335,1,335,3],[335,4,335,11],[336,1,344,1],[336,2,336,3],[336,4,336,11],[355,1,355,3],[355,4,355,11],[356,1,364,1],[356,2,356,3],[356,4,356,11],[357,2,357,3],[357,4,357,11],[358,2,358,3],[358,4,358,11],[359,2,359,3],[349,4,349,11],[350,2,350,3],[350,4,350,11],[351,4,351,11],[352,4,352,11],[353,2,354,2],[353,4,353,11],[354,4,354,11],[365,1,365,3],[365,4,365,11],[366,1,374,1],[366,2,366,3],[366,4,366,11],[367,2,367,3],[367,4,367,11],[368,2,368,3],[368,4,368,11],[369,2,369,3],[359,4,359,11],[360,2,364,2],[360,4,360,11],[361,4,361,11],[362,4,362,11],[363,4,363,11],[364,4,364,11],[375,1,375,3],[375,4,375,11],[376,1,384,1],[376,2,376,3],[376,4,376,11],[377,2,377,3],[377,4,377,11],[378,2,378,3],[378,4,378,11],[379,2,379,3],[369,4,369,11],[370,2,374,2],[370,4,370,11],[371,4,371,11],[372,4,372,11],[373,4,373,11],[374,4,374,11],[385,1,385,3],[385,4,385,11],[386,1,394,1],[386,2,386,3],[386,4,386,11],[387,2,387,3],[387,4,387,11],[388,2,388,3],[388,4,388,11],[389,2,389,3],[379,4,379,11],[380,2,380,3],[380,4,380,11],[381,4,381,11],[382,4,382,11],[383,2,384,2],[383,4,383,11],[384,4,384,11],[395,1,395,3],[395,4,395,11],[396,1,404,1],[396,2,396,3],[396,4,396,11],[397,2,397,3],[397,4,397,11],[398,2,398,3],[398,4,398,11],[399,2,399,3],[389,4,389,11],[390,2,394,2],[390,4,390,11],[391,4,391,11],[392,4,392,11],[393,4,393,11],[394,4,394,11],[405,1,405,3],[405,4,405,11],[406,1,414,1],[406,2,406,3],[406,4,406,11],[407,2,407,3],[407,4,407,11],[408,2,408,3],[408,4,408,11],[409,2,409,3],[399,4,399,11],[400,2,404,2],[400,4,400,11],[401,4,401,11],[402,4,402,11],[403,4,403,11],[404,4,404,11],[415,1,415,3],[415,4,415,11],[416,1,424,1],[416,2,416,3],[416,4,416,11],[417,2,417,3],[417,4,417,11],[418,2,418,3],[418,4,418,11],[419,2,419,3],[409,4,409,11],[410,2,410,3],[410,4,410,11],[411,4,411,11],[412,4,412,11],[413,2,414,2],[413,4,413,11],[414,4,414,11],[425,1,425,3],[425,4,425,11],[426,1,434,1],[426,2,426,3],[426,4,426,11],[427,2,427,3],[427,4,427,11],[428,2,428,3],[428,4,428,11],[429,2,429,3],[419,4,419,11],[420,2,424,2],[420,4,420,11],[421,4,421,11],[422,4,422,11],[423,4,423,11],[424,4,424,11],[435,1,435,3],[435,4,435,11],[436,1,444,1],[436,2,436,3],[436,4,436,11],[437,2,437,3],[437,4,437,11],[438,2,438,3],[438,4,438,11],[439,2,439,3],[429,4,429,11],[430,2,434,2],[430,4,430,11],[431,4,431,11],[432,4,432,11],[433,4,433,11],[434,4,434,11],[445,1,445,3],[445,4,445,11],[446,1,454,1],[446,2,446,3],[446,4,446,11],[447,2,447,3],[447,4,447,11],[448,2,448,3],[448,4,448,11],[449,2,449,3],[439,4,439,11],[440,2,440,3],[440,4,440,11],[441,4,441,11],[442,4,442,11],[443,2,444,2],[443,4,443,11],[444,4,444,11],[455,1,455,3],[455,4,455,11],[456,1,464,1],[456,2,456,3],[456,4,456,11],[457,2,457,3],[457,4,457,11],[458,2,458,3],[458,4,458,11],[459,2,459,3],[449,4,449,11],[450,2,454,2],[450,4,450,11],[451,4,451,11],[452,4,452,11],[453,4,453,11],[454,4,454,11],[465,1,465,3],[465,4,465,11],[466,1,474,1],[466,2,466,3],[466,4,466,11],[467,2,467,3],[467,4,467,11],[468,2,468,3],[468,4,468,11],[469,2,469,3],[459,4,459,11],[460,2,464,2],[460,4,460,11],[461,4,461,11],[462,4,462,11],[463,4,463,11],[464,4,464,11],[475,1,475,3],[475,4,475,11],[476,1,484,1],[476,2,476,3],[476,4,476,11],[477,2,477,3],[477,4,477,11],[478,2,478,3],[478,4,478,11],[479,2,479,3],[469,4,469,11],[470,2,470,3],[470,4,470,11],[471,4,471,11],[472,4,472,11],[473,2,474,2],[473,4,473,11],[474,4,474,11],[485,1,485,3],[485,4,485,11],[486,1,494,1],[486,2,486,3],[486,4,486,11],[487,2,487,3],[487,4,487,11],[488,2,488,3],[488,4,488,11],[489,2,489,3],[479,4,479,11],[480,2,484,2],[480,4,480,11],[481,4,481,11],[482,4,482,11],[483,4,483,11],[484,4,484,11],[495,1,495,3],[495,4,495,11],[496,1,504,1],[496,2,496,3],[496,4,496,11],[497,2,497,3],[497,4,497,11],[498,2,498,3],[498,4,498,11],[499,2,499,3],[489,4,489,11],[490,2,494,2],[490,4,490,11],[491,4,491,11],[492,4,492,11],[493,4,493,11],[494,4,494,11],[505,1,505,3],[505,4,505,11],[506,1,514,1],[506,2,506,3],[506,4,506,11],[507,2,507,3],[507,4,507,11],[508,2,508,3],[508,4,508,11],[509,2,509,3],[499,4,499,11],[500,2,500,3],[500,4,500,11],[501,4,501,11],[502,4,502,11],[503,2,504,2],[503,4,503,11],[504,4,504,11],[515,1,515,3],[515,4,515,11],[516,1,524,1],[516,2,516,3],[516,4,516,11],[517,2,517,3],[517,4,517,11],[518,2,518,3],[518,4,518,11],[519,2,519,3],[509,4,509,11],[510,2,514,2],[510,4,510,11],[511,4,511,11],[512,4,512,11],[513,4,513,11],[514,4,514,11],[525,1,525,3],[525,4,525,11],[526,1,534,1],[526,2,526,3],[526,4,526,11],[527,2,527,3],[527,4,527,11],[528,2,528,3],[528,4,528,11],[529,2,529,3],[519,4,519,11],[520,2,524,2],[520,4,520,11],[521,4,521,11],[522,4,522,11],[523,4,523,11],[524,4,524,11],[535,1,535,3],[535,4,535,11],[536,1,544,1],[536,2,536,3],[536,4,536,11],[537,2,537,3],[537,4,537,11],[538,2,538,3],[538,4,538,11],[539,2,539,3],[529,4,529,11],[530,2,530,3],[530,4,530,11],[531,4,531,11],[532,4,532,11],[533,2,534,2],[533,4,533,11],[534,4,534,11],[545,1,545,3],[545,4,545,11],[546,1,554,1],[546,2,546,3],[546,4,546,11],[547,2,547,3],[547,4,547,11],[548,2,548,3],[548,4,548,11],[549,2,549,3],[539,4,539,11],[540,2,544,2],[540,4,540,11],[541,4,541,11],[542,4,542,11],[543,4,543,11],[544,4,544,11],[555,1,555,3],[555,4,555,11],[556,1,564,1],[556,2,556,3],[556,4,556,11],[557,2,557,3],[557,4,557,11],[558,2,558,3],[558,4,558,11],[559,2,559,3],[549,4,549,11],[550,2,554,2],[550,4,550,11],[551,4,551,11],[552,4,552,11],[553,4,553,11],[554,4,554,11],[565,1,565,3],[565,4,565,11],[566,1,574,1],[566,2,566,3],[566,4,566,11],[567,2,567,3],[567,4,567,11],[568,2,568,3],[568,4,568,11],[569,2,569,3],[559,4,559,11],[560,2,560,3],[560,4,560,11],[561,4,561,11],[562,4,562,11],[563,2,564,2],[563,4,563,11],[564,4,564,11],[575,1,575,3],[575,4,575,11],[576,1,584,1],[576,2,576,3],[576,4,576,11],[577,2,577,3],[577,4,577,11],[578,2,578,3],[578,4,578,11],[579,2,579,3],[569,4,569,11],[570,2,574,2],[570,4,570,11],[571,4,571,11],[572,4,572,11],[573,4,573,11],[574,4,574,11],[585,1,585,3],[585,4,585,11],[586,1,594,1],[586,2,586,3],[586,4,586,11],[587,2,587,3],[587,4,587,11],[588,2,588,3],[588,4,588,11],[589,2,589,3],[579,4,579,11],[580,2,584,2],[580,4,580,11],[581,4,581,11],[582,4,582,11],[583,4,583,11],[584,4,584,11],[595,1,595,3],[595,4,595,11],[596,1,604,1],[596,2,596,3],[596,4,596,11],[597,2,597,3],[597,4,597,11],[598,2,598,3],[598,4,598,11],[599,2,599,3],[589,4,589,11],[590,2,590,3],[590,4,590,11],[591,4,591,11],[592,4,592,11],[593,2,594,2],[593,4,593,11],[594,4,594,11]],"merged_total":1462,"flags":["merged_cut"]}
[]
[null,null,null,null,null,null,null,null,null,null,null,"提案書（平成31年度新規公募）　様式0"]
[null,"データ入力シート"]
[]
[null,"※黄色のセルに入力している事項は全て記載例です。提出の際は、記載例は全て削除してください。"]
[null,"1. 提出日",null,null,"2019-01-11",null,null,null,null,null,null,null,null,null,"提出年月日を記載してください。"]
[null,"2. 研究開発課題名",null,null,"○○○○○○○○○○○○○○○○○○○○○○○○○○○○○○○○○○○○○○○○○○○○○○○○○○○○○○○○○○○○○○○○○の研究開発",null,null,null,null,null,null,null,null,null,"研究開発課題名を記載してください。"]
[null,"3. 提案書受付番号（事務局用のため記入不要）",null,null,null,null,null,null,null,null,null,null,null,null,"総務省使用欄","社会展開指向型研究開発（2年枠）","社会展開指向型研究開発（3年枠）","ICT 基礎・育成型研究開発（1年枠）","電波有効利用促進型研究開発（先進的電波有効利用型フェーズⅠ）","電波有効利用促進型研究開発（先進的電波有効利用型フェーズⅡ）","電波有効利用促進型研究開発（先進的電波有効利用型フェーズⅡ：社会展開促進を目的とした研究開発課題）"]
[null,"4. プログラム名",null,null,"電波有効利用促進型研究開発（先進的電波有効利用型フェーズⅡ：社会展開促進を目的とした研究開発課題）",null,null,null,null,null,null,null,null,null,"提案するプログラム名をプルダウンから選択してください。","Ⅱ","Ⅰ","Ⅰ","Ⅰ","Ⅱ","Ⅱ"]
[null,"5. ICTの研究開発分野における研究開発課題名",null,null,"④情報セキュリティ分野",null,null,null,null,null,null,null,null,null,"提案する研究課題の重点研究開発分野について、提案要領の資料1「対象となる研究開発」における主たる課題番号と重点研究開発分野をプルダウンから選択してください。","該当なし","①センシング＆データ取得基盤分野","②統合ICT基盤分野","③データ利活用基盤分野","④情報セキュリティ分野","⑤耐災害ICT基盤分野","⑥フロンティア研究分野","⑦IoT/BD/AI技術の研究開発分野","⑧衛星データ利活用分野"]
[null,"6. 電波有効利用促進型研究開発","分類",null,"該当しない",null,null,null,null,null,null,null,null,null,"電波有効利用促進型研究開発への提案の場合は、分類Ⅰ～Ⅲをプルダウンから選択してください。"]
[null,"7. ICT 基礎・育成型研究開発の条件","研究代表者が「若手研究者の要件」に該当(若手研究者の条件)",null,"該当する",null,null,null,null,null,null,null,null,null,"「該当する」あるいは「該当しない」をプルダウンから選択してください。"]
[null,null,"研究代表者が中小企業の条件に該当(中小企業の条件)",null,"該当しない",null,null,null,null,null,null,null,null,null,"「ICT 基礎・育成型研究開発」を選択された場合に、「若手研究者の条件」あるいは「中小企業の条件」のセルが赤塗りとなった場合は、これらのセルの選択内容に間違いがありますので、ご訂正ください。"]
[null,"8　研究キーワード（大項目→中項目→小項目の順に選んでください）",null,null,"大項目",null,"中項目",null,"小項目"]
[null,"   　研究キーワード1",null,null,null,null,null,null,null,null,null,null,null,null,"適切で公平な評価を実施するために本研究開発課題に関連するキーワードを電子情報通信学会の「専門分野分類表」（http://www.ieice.org/jpn/shiori/pdf/furoku_f.pdf）の中から小項目まで必ず4個以上選んでください。\n小項目のセルがピンク色の場合は、小項目の数が3個以下です。\n大項目、中項目、小項目の順に選択ください。"]
[null,"   　研究キーワード2"]
[null,"   　研究キーワード3"]
[null,"   　研究キーワード4"]
[null,"   　研究キーワード5"]
[null,"   　研究キーワード6"]
[null,"   　研究キーワード7"]
[null,"   　研究キーワード8"]
[null,"   　研究キーワード9"]
[null,"   　研究キーワード10"]
[null,"9. 提案するフェーズ",null,null,{"$f":"HLOOKUP(E9,P8:U9,2,FALSE)","v":"Ⅱ"},null,null,null,null,null,null,null,null,null,"総務省使用欄"]
[null,"10. 研究開発期間",null,"フェーズⅠ（平成○年度）",31,null,null,null,null,null,null,null,null,null,"半角数字で記載してください。"]
[null,null,null,"フェーズⅡ（平成○年度から）",31]
[null,null,null,"フェーズⅡ（平成○年度まで）",32]
[null,"11. 年度別研究費一覧（直接経費のみ、消費税を含む）","提案額\n（千円）","平成31年度",3000]
[null,null,null,"平成32年度",10000]
[null,null,null,"平成33年度",10000,null,null,null,null,null,null,null,null,null,"研究開発予算計画書（様式4）の各年度の研究費（直接経費、消費税込み）を転記してください。フェーズⅠへの提案の場合は、フェーズⅡで予定している研究費（直接経費、消費税込み）も記載してください。先進的電波有効利用型（電波有効利用促進型研究開発）においてフェーズⅡへ提案する場合は、フェーズⅡにおける研究費（直接経費、消費税込み）のみ記載してください。なお、新規公募提案される場合は、「配算額」の欄は記入不要です。"]
[null,null,null,"平成34年度",0]
[null,null,null,"合計（自動入力）",{"$f":"SUM(E29:L32)","v":23000}]
[null,null,"配算額\n(千円)","平成31年度"]
[null,null,null,"平成32年度"]
[null,null,null,"平成33年度"]
[null,null,null,"平成34年度"]
[null,null,null,"合計（自動入力）",{"$f":"SUM(E34:L37)","v":0}]
[null,"15. 研究開発の目的（200字程度）\n※外部への説明のために本内容を公表することがあります。",null,null,null,null,null,null,null,null,null,null,null,null,"200字程度で簡潔に記載してください。"]
[null,"12. 研究開発の概要（200字以内）\n※外部への説明のために本内容を公表することがあります。",null,null,null,null,null,null,null,null,null,null,null,null,"本件研究開発において、どのような目的で、どのような課題（問題点）を解決するために、どのような内容の研究開発を行うかを、平易な表現で200字以内で記載してください。"]
[null,"研究代表者の所属機関（機関名のみ）",null,null,"○○×大学",null,null,null,null,null,null,null,null,null,"国立大学法人、大学共同利用機関法人、あるいは独立行政法人等は省き、一般的な名称でご記載ください。\n記載例：「東京大学」、「国立情報学研究所」、「情報通信研究機構」、「○○高等専門学校」、「慶應義塾大学」、「立命館大学」、「株式会社○○」等。"]
[null,"研究代表者","フリガナ",null,"スコウプ　タロウ",null,null,null,null,null,null,null,null,null,"全角カタカナで、姓と名の間に全角スペースを入れて記入してください。"]
[null,null,"氏　　　名",null,"須甲富 太郎",null,null,null,null,null,null,null,null,null,"姓と名の間に全角スペースを入れて記入してください。"]
[null,null,"所属研究科・学部・部署等",null,"○○学部"]
[null,null,"役職",null,"教授",null,null,null,null,null,null,null,null,null,"大学院生の場合は、「博士前期課程○年」のようにご記載ください。"]
[null,null,"所属機関所在地都道府県",null,"○○県"]
[null,null,"年齢","2019-04-01",{"$f":"IF(E48=\"\",\"\",DATEDIF(E48,D47,\"Y\"))","v":57},null,null,null,null,null,null,null,null,null,"自動入力につき記入不要です。"]
[null,null,"生年月日（西暦）",null,"1961-10-19",null,null,null,null,null,null,null,null,null,"半角数字でyyyy/mm/ddの形式で記載してください。"]
[null,null,"e-Rad情報","研究者番号","12345678",null,null,null,null,null,null,null,null,null,"半角数字で記載してください。"]
[null,null,null,"所属研究機関番号","1234567890",null,null,null,null,null,null,null,null,null,"半角数字で記載してください。"]
[null,null,"連絡先","郵便番号","123-4567",null,null,null,null,null,null,null,null,null,"###-#####の形式で記載してください。（ハイフン有り。）"]
[null,null,null,"住所","東京都○○区○○○1-2-3"]
[null,null,null,"電話番号","03-####-#####"]
[null,null,null,"E-mail","####@##.ne.jp"]
[null,null,null,"E-mail（予備）","####@##.ne.jp",null,null,null,null,null,null,null,null,null,"複数のE-mailを使用する場合は記載してください。"]
[null,"研究分担者の人数",null,null,null,null,null,null,null,null,null,null,null,null,"半角数字のみ記入してください。"]
[null,"研究代表者の所属機関の契約事務等担当者","フリガナ",null,"スコウプ　ジロウ",null,null,null,null,null,null,null,null,null,"研究開発の実施に当たり、委託契約の調整を行います。必ず最新の状況を確認の上で、研究代表者が所属する機関の契約事務等担当者の情報を記載してください。\n※研究代表者は、契約事務等担当者を兼ねることはできません。"]
[null,null,"氏　　　名",null,"須甲富 二郎"]
[null,null,"所属研究科・学部・部署等",null,"○○学部"]
[null,null,"役職",null,"主任"]
[null,null,"連絡先","郵便番号","123-4567"]
[null,null,null,"住所","東京都○○区○○○1-2-3"]
[null,null,null,"電話番号","03-####-#####"]
[null,null,null,"E-mail","####@##.ne.jp"]
[null,null,null,"E-mail（予備）","####@##.ne.jp"]
[null,"未使用",null,null,"未使用"]
[null,"研究代表者の所属機関の経理事務等担当者","フリガナ",null,"スコウプ　サブロウ",null,null,null,null,null,null,null,null,null,"研究開発の実施に当たり、予算執行の調整を行います。必ず最新の状況を確認の上で、研究代表者が所属する機関の経理事務等担当者の情報を記載してください。\n※研究代表者は、経理事務等担当者を兼ねることはできません。\n※契約事務等担当者と同一である場合でも、必ず記載してください。"]
[null,null,"氏　　　名",null,"須甲富 三郎"]
[null,null,"所属研究科・学部・部署等",null,"○○学部"]
[null,null,"役職",null,"係長"]
[null,null,"連絡先","郵便番号","123-4567"]
[null,null,null,"住所","東京都○○区○○○1-2-3"]
[null,null,null,"電話番号","03-####-#####"]
[null,null,null,"E-mail","####@##.ne.jp"]
[null,null,null,"E-mail（予備）","####@##.ne.jp"]
[null,"研究分担者1の所属機関（機関名のみ）",null,null,"○○大学",null,null,null,null,null,null,null,null,null,"研究分担者がいない場合は、以降の項目を記載する必要はありません。"]
[null,"研究分担者1","フリガナ",null,"スコウプ　タロウ",null,null,null,null,null,null,null,null,null,"記載要領は、研究代表者の場合に準じます。"]
[null,null,"氏　　　名",null,"須甲富 太郎",null,null,null,null,null,null,null,null,null,"研究分担者が大学院生の場合、役職欄に「前期/後期博士課程●年」と記載してください。"]
[null,null,"所属研究科・学部・部署等",null,"○○学部"]
[null,null,"役職",null,"教授"]
[null,null,"所属機関所在地都道府県",null,"○○県"]
[null,null,"年齢","2019-04-01",{"$f":"IF(E83=\"\",\"\",DATEDIF(E83,D82,\"Y\"))","v":57},null,null,null,null,null,null,null,null,null,"自動入力につき記入不要です。"]
[null,null,"生年月日（西暦）",null,"1961-10-18"]
[null,null,"連絡先","電話番号","0##-###-#####"]
[null,null,null,"E-mail","####@##.ne.jp"]
[null,"契約事務等担当者が同一の研究者",null,null,"研究代表者",null,null,null,null,null,null,null,null,null,"「なし」を選択した場合は、契約事務等担当者について記入して下さい。「研究代表者」又は「研究分担者1～20」を選択した場合は、契約事務等担当者について記入する必要はありません。"]
[null,"研究分担者1の所属機関の契約事務等担当者","フリガナ",null,"スコウプ　ジロウ"]
[null,null,"氏　　　名",null,"須甲富 二郎"]
[null,null,"所属研究科・学部・部署等",null,"○○学部",null,null,null,null,null,null,null,null,null,"研究開発の実施に当たり、委託契約の調整を行います。必ず最新の状況を確認の上で、研究分担者が所属する機関の契約事務等担当者の情報を記載してください。\n※研究分担者は、契約事務等担当者を兼ねることはできません。"]
[null,null,"役職",null,"主任"]
[null,null,"連絡先","郵便番号","123-4567"]
[null,null,null,"住所","東京都○○区○○○1-2-3"]
[null,null,null,"電話番号","03-####-#####"]
[null,null,null,"E-mail","####@##.ne.jp"]
[null,null,null,"E-mail（予備）","####@##.ne.jp"]
[null,"経理事務等担当者が同一の研究者",null,null,"研究代表者",null,null,null,null,null,null,null,null,null,"「なし」を選択した場合は、経理事務等担当者について記入して下さい。「研究代表者」又は「研究分担者1～20」を選択した場合は、経理事務等担当者について記入する必要はありません。"]
[null,"研究分担者1の所属機関の経理事務等担当者","フリガナ",null,"スコウプ　サブロウ"]
[null,null,"氏　　　名",null,"須甲富 三郎"]
[null,null,"所属研究科・学部・部署等",null,"○○学部",null,null,null,null,null,null,null,null,null,"研究開発の実施に当たり、予算執行の調整を行います。必ず最新の状況を確認の上で、研究分担者が所属する機関の経理事務等担当者の情報を記載してください。\n※研究分担者は、経理事務等担当者を兼ねることはできません。\n※契約事務等担当者と同一である場合でも、必ず記載してください。"]
[null,null,"役職",null,"係長"]
[null,null,"連絡先","郵便番号","123-4567"]
[null,null,null,"住所","東京都○○区○○○1-2-3"]
[null,null,null,"電話番号","03-####-#####"]
[null,null,null,"E-mail","####@##.ne.jp"]
[null,null,null,"E-mail（予備）","####@##.ne.jp"]
[null,"研究分担者2の所属機関（機関名のみ）",null,null,null,null,null,null,null,null,null,null,null,null,"以下「研究分担者5の所属機関」まで、記載要領は「研究分担者1の所属機関」と同様です。"]
[null,"研究分担者2","フリガナ"]
[null,null,"氏　　　名"]
[null,null,"所属研究科・学部・部署等"]
[null,null,"役職"]
[null,null,"所属機関所在地都道府県"]
[null,null,"年齢","2019-04-01",{"$f":"IF(E113=\"\",\"\",DATEDIF(E113,D112,\"Y\"))","v":""}]
[null,null,"生年月日（西暦）"]
[null,null,"連絡先","電話番号"]
[null,null,null,"E-mail"]
[null,"契約事務等担当者が同一の研究者"]
[null,"研究分担者2の所属機関の契約事務等担当者","フリガナ"]
[null,null,"氏　　　名"]
[null,null,"所属研究科・学部・部署等"]
[null,null,"役職"]
[null,null,"連絡先","郵便番号"]
[null,null,null,"住所"]
[null,null,null,"電話番号"]
[null,null,null,"E-mail"]
[null,null,null,"E-mail（予備）"]
[null,"経理事務等担当者が同一の研究者"]
[null,"研究分担者2の所属機関の経理事務等担当者","フリガナ"]
[null,null,"氏　　　名"]
[null,null,"所属研究科・学部・部署等"]
[null,null,"役職"]
[null,null,"連絡先","郵便番号"]
[null,null,null,"住所"]
[null,null,null,"電話番号"]
[null,null,null,"E-mail"]
[null,null,null,"E-mail（予備）"]
[null,"研究分担者3の所属機関（機関名のみ）"]
[null,"研究分担者3","フリガナ"]
[null,null,"氏　　　名"]
[null,null,"所属研究科・学部・部署等"]
[null,null,"役職"]
[null,null,"所属機関所在地都道府県"]
[null,null,"年齢","2019-04-01",{"$f":"IF(E143=\"\",\"\",DATEDIF(E143,D142,\"Y\"))","v":""}]
[null,null,"生年月日（西暦）"]
[null,null,"連絡先","電話番号"]
[null,null,null,"E-mail"]
[null,"契約事務等担当者が同一の研究者"]
[null,"研究分担者3の所属機関の契約事務等担当者","フリガナ"]
[null,null,"氏　　　名"]
[null,null,"所属研究科・学部・部署等"]
[null,null,"役職"]
[null,null,"連絡先","郵便番号"]
[null,null,null,"住所"]
[null,null,null,"電話番号"]
[null,null,null,"E-mail"]
[null,null,null,"E-mail（予備）"]
[null,"経理事務等担当者が同一の研究者"]
[null,"研究分担者3の所属機関の経理事務等担当者","フリガナ"]
[null,null,"氏　　　名"]
[null,null,"所属研究科・学部・部署等"]
[null,null,"役職"]
[null,null,"連絡先","郵便番号"]
[null,null,null,"住所"]
[null,null,null,"電話番号"]
[null,null,null,"E-mail"]
[null,null,null,"E-mail（予備）"]
[null,"研究分担者4の所属機関（機関名のみ）"]
[null,"研究分担者4","フリガナ"]
[null,null,"氏　　　名"]
[null,null,"所属研究科・学部・部署等"]
[null,null,"役職"]
[null,null,"所属機関所在地都道府県"]
[null,null,"年齢","2019-04-01",{"$f":"IF(E173=\"\",\"\",DATEDIF(E173,D172,\"Y\"))","v":""}]
[null,null,"生年月日（西暦）"]
[null,null,"連絡先","電話番号"]
[null,null,null,"E-mail"]
[null,"契約事務等担当者が同一の研究者"]
[null,"研究分担者4の所属機関の契約事務等担当者","フリガナ"]
[null,null,"氏　　　名"]
[null,null,"所属研究科・学部・部署等"]
[null,null,"役職"]
[null,null,"連絡先","郵便番号"]
[null,null,null,"住所"]
[null,null,null,"電話番号"]
[null,null,null,"E-mail"]
[null,null,null,"E-mail（予備）"]
[null,"経理事務等担当者が同一の研究者"]
[null,"研究分担者4の所属機関の経理事務等担当者","フリガナ"]
[null,null,"氏　　　名"]
[null,null,"所属研究科・学部・部署等"]
[null,null,"役職"]
[null,null,"連絡先","郵便番号"]
[null,null,null,"住所"]
[null,null,null,"電話番号"]
[null,null,null,"E-mail"]
[null,null,null,"E-mail（予備）"]
[null,"研究分担者5の所属機関（機関名のみ）"]
[null,"研究分担者5","フリガナ"]
[null,null,"氏　　　名"]
[null,null,"所属研究科・学部・部署等"]
[null,null,"役職"]
[null,null,"所属機関所在地都道府県"]
[null,null,"年齢","2019-04-01",{"$f":"IF(E203=\"\",\"\",DATEDIF(E203,D202,\"Y\"))","v":""}]
[null,null,"生年月日（西暦）"]
[null,null,"連絡先","電話番号"]
[null,null,null,"E-mail"]
[null,"契約事務等担当者が同一の研究者"]
[null,"研究分担者5の所属機関の契約事務等担当者","フリガナ"]
[null,null,"氏　　　名"]
[null,null,"所属研究科・学部・部署等"]
[null,null,"役職"]
[null,null,"連絡先","郵便番号"]
[null,null,null,"住所"]
[null,null,null,"電話番号"]
[null,null,null,"E-mail"]
[null,null,null,"E-mail（予備）"]
[null,"経理事務等担当者が同一の研究者"]
[null,"研究分担者5の所属機関の経理事務等担当者","フリガナ"]
[null,null,"氏　　　名"]
[null,null,"所属研究科・学部・部署等"]
[null,null,"役職"]
[null,null,"連絡先","郵便番号"]
[null,null,null,"住所"]
[null,null,null,"電話番号",null,null,null,null,null,null,null,null,null,null,"研究分担者が6人以上いる場合は、228行目から677行目までを再表示させ、6人目以降の研究分担者等の情報について記載してください。"]
[null,null,null,"E-mail"]
[null,null,null,"E-mail（予備）"]
[null,"研究分担者6の所属機関（機関名のみ）"]
[null,"研究分担者6","フリガナ"]
[null,null,"氏　　　名"]
[null,null,"所属研究科・学部・部署等"]
[null,null,"役職"]
[null,null,"所属機関所在地都道府県"]
[null,null,"年齢","2019-04-01",{"$f":"IF(E233=\"\",\"\",DATEDIF(E233,D232,\"Y\"))","v":""}]
[null,null,"生年月日（西暦）"]
[null,null,"連絡先","電話番号"]
[null,null,null,"E-mail"]
[null,"契約事務等担当者が同一の研究者"]
[null,"研究分担者6の所属機関の契約事務等担当者","フリガナ"]
[null,null,"氏　　　名"]
[null,null,"所属研究科・学部・部署等"]
[null,null,"役職"]
[null,null,"連絡先","郵便番号"]
[null,null,null,"住所"]
[null,null,null,"電話番号"]
[null,null,null,"E-mail"]
[null,null,null,"E-mail（予備）"]
[null,"経理事務等担当者が同一の研究者"]
[null,"研究分担者6の所属機関の経理事務等担当者","フリガナ"]
[null,null,"氏　　　名"]
[null,null,"所属研究科・学部・部署等"]
[null,null,"役職"]
[null,null,"連絡先","郵便番号"]
[null,null,null,"住所"]
[null,null,null,"電話番号"]
[null,null,null,"E-mail"]
[null,null,null,"E-mail（予備）"]
[null,"研究分担者7の所属機関（機関名のみ）"]
[null,"研究分担者7","フリガナ"]
[null,null,"氏　　　名"]
[null,null,"所属研究科・学部・部署等"]
[null,null,"役職"]
[null,null,"所属機関所在地都道府県"]
[null,null,"年齢","2019-04-01",{"$f":"IF(E263=\"\",\"\",DATEDIF(E263,D262,\"Y\"))","v":""}]
[null,null,"生年月日（西暦）"]
[null,null,"連絡先","電話番号"]
[null,null,null,"E-mail"]
[null,"契約事務等担当者が同一の研究者"]
[null,"研究分担者7の所属機関の契約事務等担当者","フリガナ"]
[null,null,"氏　　　名"]
[null,null,"所属研究科・学部・部署等"]
[null,null,"役職"]
[null,null,"連絡先","郵便番号"]
[null,null,null,"住所"]
[null,null,null,"電話番号"]
[null,null,null,"E-mail"]
[null,null,null,"E-mail（予備）"]
[null,"経理事務等担当者が同一の研究者"]
[null,"研究分担者7の所属機関の経理事務等担当者","フリガナ"]
[null,null,"氏　　　名"]
[null,null,"所属研究科・学部・部署等"]
[null,null,"役職"]
[null,null,"連絡先","郵便番号"]
[null,null,null,"住所"]
[null,null,null,"電話番号"]
[null,null,null,"E-mail"]
[null,null,null,"E-mail（予備）"]
[null,"研究分担者8の所属機関（機関名のみ）"]
[null,"研究分担者8","フリガナ"]
[null,null,"氏　　　名"]
[null,null,"所属研究科・学部・部署等"]
[null,null,"役職"]
[null,null,"所属機関所在地都道府県"]
[null,null,"年齢","2019-04-01",{"$f":"IF(E293=\"\",\"\",DATEDIF(E293,D292,\"Y\"))","v":""}]
[null,null,"生年月日（西暦）"]
[null,null,"連絡先","電話番号"]
[null,null,null,"E-mail"]
[null,"契約事務等担当者が同一の研究者"]
[null,"研究分担者8の所属機関の契約事務等担当者","フリガナ"]
[null,null,"氏　　　名"]
[null,null,"所属研究科・学部・部署等"]
[null,null,"役職"]
[null,null,"連絡先","郵便番号"]
[null,null,null,"住所"]
[null,null,null,"電話番号"]
[null,null,null,"E-mail"]
[null,null,null,"E-mail（予備）"]
[null,"経理事務等担当者が同一の研究者"]
[null,"研究分担者8の所属機関の経理事務等担当者","フリガナ"]
[null,null,"氏　　　名"]
[null,null,"所属研究科・学部・部署等"]
[null,null,"役職"]
[null,null,"連絡先","郵便番号"]
[null,null,null,"住所"]
[null,null,null,"電話番号"]
[null,null,null,"E-mail"]
[null,null,null,"E-mail（予備）"]
[null,"研究分担者9の所属機関（機関名のみ）"]
[null,"研究分担者9","フリガナ"]
[null,null,"氏　　　名"]
[null,null,"所属研究科・学部・部署等"]
[null,null,"役職"]
[null,null,"所属機関所在地都道府県"]
[null,null,"年齢","2019-04-01",{"$f":"IF(E323=\"\",\"\",DATEDIF(E323,D322,\"Y\"))","v":""}]
[null,null,"生年月日（西暦）"]
[null,null,"連絡先","電話番号"]
[null,null,null,"E-mail"]
[null,"契約事務等担当者が同一の研究者"]
[null,"研究分担者9の所属機関の契約事務等担当者","フリガナ"]
[null,null,"氏　　　名"]
[null,null,"所属研究科・学部・部署等"]
[null,null,"役職"]
[null,null,"連絡先","郵便番号"]
[null,null,null,"住所"]
[null,null,null,"電話番号"]
[null,null,null,"E-mail"]
[null,null,null,"E-mail（予備）"]
[null,"経理事務等担当者が同一の研究者"]
[null,"研究分担者9の所属機関の経理事務等担当者","フリガナ"]
[null,null,"氏　　　名"]
[null,null,"所属研究科・学部・部署等"]
[null,null,"役職"]
[null,null,"連絡先","郵便番号"]
[null,null,null,"住所"]
[null,null,null,"電話番号"]
[null,null,null,"E-mail"]
[null,null,null,"E-mail（予備）"]
[null,"研究分担者10の所属機関（機関名のみ）"]
[null,"研究分担者10","フリガナ"]
[null,null,"氏　　　名"]
[null,null,"所属研究科・学部・部署等"]
[null,null,"役職"]
[null,null,"所属機関所在地都道府県"]
[null,null,"年齢","2019-04-01",{"$f":"IF(E353=\"\",\"\",DATEDIF(E353,D352,\"Y\"))","v":""}]
[null,null,"生年月日（西暦）"]
[null,null,"連絡先","電話番号"]
[null,null,null,"E-mail"]
[null,"契約事務等担当者が同一の研究者"]
[null,"研究分担者10の所属機関の契約事務等担当者","フリガナ"]
[null,null,"氏　　　名"]
[null,null,"所属研究科・学部・部署等"]
[null,null,"役職"]
[null,null,"連絡先","郵便番号"]
[null,null,null,"住所"]
[null,null,null,"電話番号"]
[null,null,null,"E-mail"]
[null,null,null,"E-mail（予備）"]
[null,"経理事務等担当者が同一の研究者"]
[null,"研究分担者10の所属機関の経理事務等担当者","フリガナ"]
[null,null,"氏　　　名"]
[null,null,"所属研究科・学部・部署等"]
[null,null,"役職"]
[null,null,"連絡先","郵便番号"]
[null,null,null,"住所"]
[null,null,null,"電話番号"]
[null,null,null,"E-mail"]
[null,null,null,"E-mail（予備）"]
[null,"研究分担者11の所属機関（機関名のみ）"]
[null,"研究分担者11","フリガナ"]
[null,null,"氏　　　名"]
[null,null,"所属研究科・学部・部署等"]
[null,null,"役職"]
[null,null,"所属機関所在地都道府県"]
[null,null,"年齢","2019-04-01",{"$f":"IF(E383=\"\",\"\",DATEDIF(E383,D382,\"Y\"))","v":""}]
[null,null,"生年月日（西暦）"]
[null,null,"連絡先","電話番号"]
[null,null,null,"E-mail"]
[null,"契約事務等担当者が同一の研究者"]
[null,"研究分担者11の所属機関の契約事務等担当者","フリガナ"]
[null,null,"氏　　　名"]
[null,null,"所属研究科・学部・部署等"]
[null,null,"役職"]
[null,null,"連絡先","郵便番号"]
[null,null,null,"住所"]
[null,null,null,"電話番号"]
[null,null,null,"E-mail"]
[null,null,null,"E-mail（予備）"]
[null,"経理事務等担当者が同一の研究者"]
[null,"研究分担者11の所属機関の経理事務等担当者","フリガナ"]
[null,null,"氏　　　名"]
[null,null,"所属研究科・学部・部署等"]
[null,null,"役職"]
[null,null,"連絡先","郵便番号"]
[null,null,null,"住所"]
[null,null,null,"電話番号"]
[null,null,null,"E-mail"]
[null,null,null,"E-mail（予備）"]
[null,"研究分担者12の所属機関（機関名のみ）"]
[null,"研究分担者12","フリガナ"]
[null,null,"氏　　　名"]
[null,null,"所属研究科・学部・部署等"]
[null,null,"役職"]
[null,null,"所属機関所在地都道府県"]
[null,null,"年齢","2019-04-01",{"$f":"IF(E413=\"\",\"\",DATEDIF(E413,D412,\"Y\"))","v":""}]
[null,null,"生年月日（西暦）"]
[null,null,"連絡先","電話番号"]
[null,null,null,"E-mail"]
[null,"契約事務等担当者が同一の研究者"]
[null,"研究分担者12の所属機関の契約事務等担当者","フリガナ"]
[null,null,"氏　　　名"]
[null,null,"所属研究科・学部・部署等"]
[null,null,"役職"]
[null,null,"連絡先","郵便番号"]
[null,null,null,"住所"]
[null,null,null,"電話番号"]
[null,null,null,"E-mail"]
[null,null,null,"E-mail（予備）"]
[null,"経理事務等担当者が同一の研究者"]
[null,"研究分担者12の所属機関の経理事務等担当者","フリガナ"]
[null,null,"氏　　　名"]
[null,null,"所属研究科・学部・部署等"]
[null,null,"役職"]
[null,null,"連絡先","郵便番号"]
[null,null,null,"住所"]
[null,null,null,"電話番号"]
[null,null,null,"E-mail"]
[null,null,null,"E-mail（予備）"]
[null,"研究分担者13の所属機関（機関名のみ）"]
[null,"研究分担者13","フリガナ"]
[null,null,"氏　　　名"]
[null,null,"所属研究科・学部・部署等"]
[null,null,"役職"]
[null,null,"所属機関所在地都道府県"]
[null,null,"年齢","2019-04-01",{"$f":"IF(E443=\"\",\"\",DATEDIF(E443,D442,\"Y\"))","v":""}]
[null,null,"生年月日（西暦）"]
[null,null,"連絡先","電話番号"]
[null,null,null,"E-mail"]
[null,"契約事務等担当者が同一の研究者"]
[null,"研究分担者13の所属機関の契約事務等担当者","フリガナ"]
[null,null,"氏　　　名"]
[null,null,"所属研究科・学部・部署等"]
[null,null,"役職"]
[null,null,"連絡先","郵便番号"]
[null,null,null,"住所"]
[null,null,null,"電話番号"]
[null,null,null,"E-mail"]
[null,null,null,"E-mail（予備）"]
[null,"経理事務等担当者が同一の研究者"]
[null,"研究分担者13の所属機関の経理事務等担当者","フリガナ"]
[null,null,"氏　　　名"]
[null,null,"所属研究科・学部・部署等"]
[null,null,"役職"]
[null,null,"連絡先","郵便番号"]
[null,null,null,"住所"]
[null,null,null,"電話番号"]
[null,null,null,"E-mail"]
[null,null,null,"E-mail（予備）"]
[null,"研究分担者14の所属機関（機関名のみ）"]
[null,"研究分担者14","フリガナ"]
[null,null,"氏　　　名"]
[null,null,"所属研究科・学部・部署等"]
[null,null,"役職"]
[null,null,"所属機関所在地都道府県"]
[null,null,"年齢","2019-04-01",{"$f":"IF(E473=\"\",\"\",DATEDIF(E473,D472,\"Y\"))","v":""}]
[null,null,"生年月日（西暦）"]
[null,null,"連絡先","電話番号"]
[null,null,null,"E-mail"]
[null,"契約事務等担当者が同一の研究者"]
[null,"研究分担者14の所属機関の契約事務等担当者","フリガナ"]
[null,null,"氏　　　名"]
[null,null,"所属研究科・学部・部署等"]
[null,null,"役職"]
[null,null,"連絡先","郵便番号"]
[null,null,null,"住所"]
[null,null,null,"電話番号"]
[null,null,null,"E-mail"]
[null,null,null,"E-mail（予備）"]
[null,"経理事務等担当者が同一の研究者"]
[null,"研究分担者14の所属機関の経理事務等担当者","フリガナ"]
[null,null,"氏　　　名"]
[null,null,"所属研究科・学部・部署等"]
[null,null,"役職"]
[null,null,"連絡先","郵便番号"]
[null,null,null,"住所"]
[null,null,null,"電話番号"]
[null,null,null,"E-mail"]
[null,null,null,"E-mail（予備）"]
[null,"研究分担者15の所属機関（機関名のみ）"]
[null,"研究分担者15","フリガナ"]
[null,null,"氏　　　名"]
[null,null,"所属研究科・学部・部署等"]
[null,null,"役職"]
[null,null,"所属機関所在地都道府県"]
[null,null,"年齢","2019-04-01",{"$f":"IF(E503=\"\",\"\",DATEDIF(E503,D502,\"Y\"))","v":""}]
[null,null,"生年月日（西暦）"]
[null,null,"連絡先","電話番号"]
[null,null,null,"E-mail"]
[null,"契約事務等担当者が同一の研究者"]
[null,"研究分担者15の所属機関の契約事務等担当者","フリガナ"]
[null,null,"氏　　　名"]
[null,null,"所属研究科・学部・部署等"]
[null,null,"役職"]
[null,null,"連絡先","郵便番号"]
[null,null,null,"住所"]
[null,null,null,"電話番号"]
[null,null,null,"E-mail"]
[null,null,null,"E-mail（予備）"]
[null,"経理事務等担当者が同一の研究者"]
[null,"研究分担者15の所属機関の経理事務等担当者","フリガナ"]
[null,null,"氏　　　名"]
[null,null,"所属研究科・学部・部署等"]
[null,null,"役職"]
[null,null,"連絡先","郵便番号"]
[null,null,null,"住所"]
[null,null,null,"電話番号"]
[null,null,null,"E-mail"]
[null,null,null,"E-mail（予備）"]
[null,"研究分担者16の所属機関（機関名のみ）"]
[null,"研究分担者16","フリガナ"]
[null,null,"氏　　　名"]
[null,null,"所属研究科・学部・部署等"]
[null,null,"役職"]
[null,null,"所属機関所在地都道府県"]
[null,null,"年齢","2019-04-01",{"$f":"IF(E533=\"\",\"\",DATEDIF(E533,D532,\"Y\"))","v":""}]
[null,null,"生年月日（西暦）"]
[null,null,"連絡先","電話番号"]
[null,null,null,"E-mail"]
[null,"契約事務等担当者が同一の研究者"]
[null,"研究分担者16の所属機関の契約事務等担当者","フリガナ"]
[null,null,"氏　　　名"]
[null,null,"所属研究科・学部・部署等"]
[null,null,"役職"]
[null,null,"連絡先","郵便番号"]
[null,null,null,"住所"]
[null,null,null,"電話番号"]
[null,null,null,"E-mail"]
[null,null,null,"E-mail（予備）"]
[null,"経理事務等担当者が同一の研究者"]
[null,"研究分担者16の所属機関の経理事務等担当者","フリガナ"]
[null,null,"氏　　　名"]
[null,null,"所属研究科・学部・部署等"]
[null,null,"役職"]
[null,null,"連絡先","郵便番号"]
[null,null,null,"住所"]
[null,null,null,"電話番号"]
[null,null,null,"E-mail"]
[null,null,null,"E-mail（予備）"]
[null,"研究分担者17の所属機関（機関名のみ）"]
[null,"研究分担者17","フリガナ"]
[null,null,"氏　　　名"]
[null,null,"所属研究科・学部・部署等"]
[null,null,"役職"]
[null,null,"所属機関所在地都道府県"]
[null,null,"年齢","2019-04-01",{"$f":"IF(E563=\"\",\"\",DATEDIF(E563,D562,\"Y\"))","v":""}]
[null,null,"生年月日（西暦）"]
[null,null,"連絡先","電話番号"]
[null,null,null,"E-mail"]
[null,"契約事務等担当者が同一の研究者"]
[null,"研究分担者17の所属機関の契約事務等担当者","フリガナ"]
[null,null,"氏　　　名"]
[null,null,"所属研究科・学部・部署等"]
[null,null,"役職"]
[null,null,"連絡先","郵便番号"]
[null,null,null,"住所"]
[null,null,null,"電話番号"]
[null,null,null,"E-mail"]
[null,null,null,"E-mail（予備）"]
[null,"経理事務等担当者が同一の研究者"]
[null,"研究分担者17の所属機関の経理事務等担当者","フリガナ"]
[null,null,"氏　　　名"]
[null,null,"所属研究科・学部・部署等"]
[null,null,"役職"]
[null,null,"連絡先","郵便番号"]
[null,null,null,"住所"]
[null,null,null,"電話番号"]
[null,null,null,"E-mail"]
[null,null,null,"E-mail（予備）"]
[null,"研究分担者18の所属機関（機関名のみ）"]
[null,"研究分担者18","フリガナ"]
[null,null,"氏　　　名"]
[null,null,"所属研究科・学部・部署等"]
[null,null,"役職"]
[null,null,"所属機関所在地都道府県"]
[null,null,"年齢","2019-04-01",{"$f":"IF(E593=\"\",\"\",DATEDIF(E593,D592,\"Y\"))","v":""}]
[null,null,"生年月日（西暦）"]
[null,null,"連絡先","電話番号"]
[null,null,null,"E-mail"]
[null,"契約事務等担当者が同一の研究者"]
[null,"研究分担者18の所属機関の契約事務等担当者","フリガナ"]
[null,null,"氏　　　名"]
[null,null,"所属研究科・学部・部署等"]
[null,null,"役職"]
[null,null,"連絡先","郵便番号"]
[null,null,null,"住所"]
[null,null,null,"電話番号"]
[null,null,null,"E-mail"]
[null,null,null,"E-mail（予備）"]
[null,"経理事務等担当者が同一の研究者"]
[null,"研究分担者18の所属機関の経理事務等担当者","フリガナ"]
[null,null,"氏　　　名"]
[null,null,"所属研究科・学部・部署等"]
[null,null,"役職"]
[null,null,"連絡先","郵便番号"]
[null,null,null,"住所"]
[null,null,null,"電話番号"]
[null,null,null,"E-mail"]
[null,null,null,"E-mail（予備）"]
[null,"研究分担者19の所属機関（機関名のみ）"]
[null,"研究分担者19","フリガナ"]
[null,null,"氏　　　名"]
[null,null,"所属研究科・学部・部署等"]
[null,null,"役職"]
[null,null,"所属機関所在地都道府県"]
[null,null,"年齢","2019-04-01",{"$f":"IF(E623=\"\",\"\",DATEDIF(E623,D622,\"Y\"))","v":""}]
[null,null,"生年月日（西暦）"]
[null,null,"連絡先","電話番号"]
[null,null,null,"E-mail"]
[null,"契約事務等担当者が同一の研究者"]
[null,"研究分担者19の所属機関の契約事務等担当者","フリガナ"]
[null,null,"氏　　　名"]
[null,null,"所属研究科・学部・部署等"]
[null,null,"役職"]
[null,null,"連絡先","郵便番号"]
[null,null,null,"住所"]
[null,null,null,"電話番号"]
[null,null,null,"E-mail"]
[null,null,null,"E-mail（予備）"]
[null,"経理事務等担当者が同一の研究者"]
[null,"研究分担者19の所属機関の経理事務等担当者","フリガナ"]
[null,null,"氏　　　名"]
[null,null,"所属研究科・学部・部署等"]
[null,null,"役職"]
[null,null,"連絡先","郵便番号"]
[null,null,null,"住所"]
[null,null,null,"電話番号"]
[null,null,null,"E-mail"]
[null,null,null,"E-mail（予備）"]
[null,"研究分担者20の所属機関（機関名のみ）"]
[null,"研究分担者20","フリガナ"]
[null,null,"氏　　　名"]
[null,null,"所属研究科・学部・部署等"]
[null,null,"役職"]
[null,null,"所属機関所在地都道府県"]
[null,null,"年齢","2019-04-01",{"$f":"IF(E653=\"\",\"\",DATEDIF(E653,D652,\"Y\"))","v":""}]
[null,null,"生年月日（西暦）"]
[null,null,"連絡先","電話番号"]
[null,null,null,"E-mail"]
[null,"契約事務等担当者が同一の研究者"]
[null,"研究分担者20の所属機関の契約事務等担当者","フリガナ"]
[null,null,"氏　　　名"]
[null,null,"所属研究科・学部・部署等"]
[null,null,"役職"]
[null,null,"連絡先","郵便番号"]
[null,null,null,"住所"]
[null,null,null,"電話番号"]
[null,null,null,"E-mail"]
[null,null,null,"E-mail（予備）"]
[null,"経理事務等担当者が同一の研究者"]
[null,"研究分担者20の所属機関の経理事務等担当者","フリガナ"]
[null,null,"氏　　　名"]
[null,null,"所属研究科・学部・部署等"]
[null,null,"役職"]
[null,null,"連絡先","郵便番号"]
[null,null,null,"住所"]
[null,null,null,"電話番号"]
[null,null,null,"E-mail"]
[null,null,null,"E-mail（予備）"]
[]
[null,"研究分担者",null,null,null,null,null,null,null,null,null,null,null,null,"21人以上研究分担者がいる場合は、21人目以降の研究分担者について、氏名、フリガナ、所属機関名（所属機関のみ）、所属研究科・学部・部署等、役職、所属機関所在地都道府県、年齢（平成31年4月1日時点）、生年月日（西暦）、電話番号、E-mailを、「、」（句点）で区切って続けて記載してください。なお、研究分担者の所属機関、契約事務等担当者、経理事務等担当者はすべて研究分担者１～２０で網羅するように記載してください。"]
[null,"契約事務等担当者",null,null,null,null,null,null,null,null,null,null,null,null,"上の研究分担者の契約事務等担当者について、記入の順番に合わせて、「研究代表者と同じ」または「研究分担者○と同じ」と記載してください。"]
[null,"経理事務等担当者",null,null,null,null,null,null,null,null,null,null,null,null,"上の研究分担者の経理事務等担当者について、記入の順番に合わせて、「研究代表者と同じ」または「研究分担者○と同じ」と記載してください。"]
[null,"連携研究者1の所属機関（機関名のみ）",null,null,null,null,null,null,null,null,null,null,null,null,"連携研究者がいない場合は、以降の項目を記載する必要はありません。\n連携研究者がいる場合は、連携研究者の数に応じて各項目を記載してください。"]
[null,"連携研究者1","フリガナ"]
[null,null,"氏　　　名"]
[null,null,"所属研究科・学部・部署等"]
[null,"連携研究者2の所属機関（機関名のみ）"]
[null,"連携研究者2","フリガナ"]
[null,null,"氏　　　名"]
[null,null,"所属研究科・学部・部署等"]
[null,"連携研究者3の所属機関（機関名のみ）"]
[null,"連携研究者3","フリガナ"]
[null,null,"氏　　　名"]
[null,null,"所属研究科・学部・部署等"]
[null,"連携研究者4の所属機関（機関名のみ）"]
[null,"連携研究者4","フリガナ"]
[null,null,"氏　　　名"]
[null,null,"所属研究科・学部・部署等"]
[null,"連携研究者5の所属機関（機関名のみ）"]
[null,"連携研究者5","フリガナ"]
[null,null,"氏　　　名"]
[null,null,"所属研究科・学部・部署等"]
[null,"連携研究者6の所属機関（機関名のみ）"]
[null,"連携研究者6","フリガナ"]
[null,null,"氏　　　名"]
[null,null,"所属研究科・学部・部署等"]
[null,"連携研究者7の所属機関（機関名のみ）"]
[null,"連携研究者7","フリガナ"]
[null,null,"氏　　　名"]
[null,null,"所属研究科・学部・部署等"]
[null,"連携研究者8の所属機関（機関名のみ）"]
[null,"連携研究者8","フリガナ"]
[null,null,"氏　　　名"]
[null,null,"所属研究科・学部・部署等"]
[null,"連携研究者9の所属機関（機関名のみ）"]
[null,"連携研究者9","フリガナ"]
[null,null,"氏　　　名"]
[null,null,"所属研究科・学部・部署等"]
[null,"連携研究者10の所属機関（機関名のみ）"]
[null,"連携研究者10","フリガナ"]
[null,null,"氏　　　名"]
[null,null,"所属研究科・学部・部署等"]
[null,"連携研究者11の所属機関（機関名のみ）"]
[null,"連携研究者11","フリガナ"]
[null,null,"氏　　　名"]
[null,null,"所属研究科・学部・部署等"]
[null,"連携研究者12の所属機関（機関名のみ）"]
[null,"連携研究者12","フリガナ"]
[null,null,"氏　　　名"]
[null,null,"所属研究科・学部・部署等"]
[null,"連携研究者13の所属機関（機関名のみ）"]
[null,"連携研究者13","フリガナ"]
[null,null,"氏　　　名"]
[null,null,"所属研究科・学部・部署等"]
[null,"連携研究者14の所属機関（機関名のみ）"]
[null,"連携研究者14","フリガナ"]
[null,null,"氏　　　名"]
[null,null,"所属研究科・学部・部署等"]
[null,"連携研究者15の所属機関（機関名のみ）"]
[null,"連携研究者15","フリガナ"]
[null,null,"氏　　　名"]
[null,null,"所属研究科・学部・部署等"]
[null,"連携研究者16の所属機関（機関名のみ）"]
[null,"連携研究者16","フリガナ"]
[null,null,"氏　　　名"]
[null,null,"所属研究科・学部・部署等"]
[null,"連携研究者17の所属機関（機関名のみ）"]
[null,"連携研究者17","フリガナ"]
[null,null,"氏　　　名"]
[null,null,"所属研究科・学部・部署等"]
[null,"連携研究者18の所属機関（機関名のみ）"]
[null,"連携研究者18","フリガナ"]
[null,null,"氏　　　名"]
[null,null,"所属研究科・学部・部署等"]
[null,"連携研究者19の所属機関（機関名のみ）"]
[null,"連携研究者19","フリガナ"]
[null,null,"氏　　　名"]
[null,null,"所属研究科・学部・部署等"]
[null,"連携研究者20の所属機関（機関名のみ）"]
[null,"連携研究者20","フリガナ"]
[null,null,"氏　　　名"]
[null,null,"所属研究科・学部・部署等"]
[]
[null,"その他の連携研究者"]
[null,null,null,null,null,null,null,null,null,null,null,null,null,null,"連携研究者が6人以上いる場合は、702行目から761行目までを再表示させ、、6人目以降の連携研究者の情報について記載してください。"]
[]
[]
[]
[]
[]
[]
[]
[]
[null,null,null,null,null,null,null,null,null,null,null,null,null,null,null,null,null,null,null,null,null,null,null,null,null,null,null,null,null,null,null,null,null,"大分類",null,"A基礎・境界",null,null,"WA_0210","WA_0206","WA_0212","WA_0213","WA_0224","WA_0207","WA_0230","WA_0219","WA_0205","WA_0227","WA_0233","WA_0226","WA_0228","WA_0220","WA_0203","WA_0222","WA_0209","WA_0232","WA_0221","WA_0223","WA_0215","WA_0216","WA_0229","WA_0214","WA_0225","WA_0211","WA_0202","WA_0231","WA_0204","WA_0218","WA_0201","WA_0208","WA_0217","WB_0406","WB_0418","WB_0401","WB_0404","WB_0410","WB_0415","WC_0204","WC_0202","WC_0210","WC_0216","WC_0203","WC_0212","WC_0205","WC_0215","WC_0214","WC_0206","WC_0213","WC_0217","WC_0207","WC_0209","WC_0201","WC_0211","WC_0208","WD_1410","WD_2405","WD_1403","WD_1404","WD_1407","WD_1405","WD_2408","WD_2401","WD_1409","WD_2406","WD_2410","WD_2402","WD_2403","WD_2404","WD_2411","WD_1411","WD_1402","WD_2407","WD_1401","WD_1406","WD_1408","WD_2409","WD_1412"]
[null,null,null,null,null,null,null,null,null,null,null,null,null,null,null,null,null,null,null,null,null,null,null,null,null,null,null,null,null,null,null,null,null,"A基礎・境界",null,"VLSI設計技術とCAD","WA_0210",null,"A021000 VLSI 設計技術とCAD","A020600 アナログ信号処理","A021200 アルゴリズムとデータ構造・計算複雑度","A021300 グラフとネットワーク","A022400 コンピュータグラフィックス(CG)基礎","A020700 システムと制御","A023000 システム数理と応用","A021900 スペクトル拡散技術","A020500 ディジタル信号処理","A022700 ニューラルネットワーク及び生物工学","A023300 バイオメトリクス","A022600 ヒューマンコミュニケーション","A022800 マルチメディア環境技術","A022000 移動情報通信・パーソナル通信","A020300 音声、聴覚","A022200 画像","A020900 回路理論，回路解析","A023200 基礎理論","A022100 高度交通システム（ITS）","A022300 視覚","A021500 情報セキュリティ基礎","A021600 情報理論","A022900 情報倫理・情報通信倫理","A021400 信頼性，保全性，安全性","A022500 人工知能","A021100 数値計算，数理計画法","A020200 騒音、振動","A023100 測定・計測","A020400 超音波","A021800 通信理論，信号理論基礎","A020100 電気音響、音響一般","A020800 非線形問題","A021700 符号理論","B040600 ネットワークシステム","B041800 マルチメディアシステム","B040100 基礎理論","B040400 光ファイバ","B041000 アンテナ・伝搬","B041500 計測，探査","C020400 マイクロ波，ミリ波","C020200 レーザ・量子エレクトロニクス","C021000 機構デバイス","C021600 記録・記憶技術","C020300 光エレクトロニクス","C021200 集積エレクトロニクス","C020500 超音波エレクトロニクス","C021500 超伝導エレクトロニクス","C021400 電子ディスプレイ","C020600 電子回路","C021300 電子管，真空・ビーム技術","C021700 電子計測・制御","C020700 電子材料","C020900 電子部品","C020100 電磁界理論","C021100 半導体材料・デバイス","C020800 有機エレクトロニクス","D141000 オフィスインフォメーションシステム，e-ビジネスモデリング","D240500 コンピュータグラフィックス","D140300 ソフトウェアシステム","D140400 ソフトウェア工学","D140700 ディペンダブルコンピューティング","D140500 データ工学，Web情報システム","D240800 バイオサイバネティックス，ニューロコンピューティング","D240100 パターン認識","D140900 ヒューマンコンピュータインタラクション","D240600 マルチメディア処理","D241000 音楽情報処理","D240200 音声，聴覚","D240300 画像・映像処理","D240400 画像認識，コンピュータビジョン","D241100 感性情報処理","D141100 教育工学","D140200 計算機システム","D240700 自然言語処理","D140100 情報・システム基礎","D140600 情報ネットワーク","D140800 人工知能，データマイニング","D240900 生体工学","D141200 福祉工学"]
[null,null,null,null,null,null,null,null,null,null,null,null,null,null,null,null,null,null,null,null,null,null,null,null,null,null,null,null,null,null,null,null,null,"B通信",null,"アナログ信号処理","WA_0206",null,"A021001 アーキテクチャ設計法とシステム設計用CAD","A020601LC フィルタ","A021201 アルゴリズム設計・解析","A021301 グラフ理論","A022401 形状モデリング","A020701 システム理論","A023001 並行システム","A021901 拡散方式･拡散変復調","A020501 ディジタルフィルタ","A022701 ニューラルネットワークの基礎","A023301 生体計測","A022601 コミュニケーション論","A022801 知的コミュニケーション技術","A022001 移動モデル・移動通信トラヒック","A020301 音声生成機構","A022201 画像処理","A020901 線形回路理論，解析","A023201 モデリングとシミュレーション","A022101 ITS と社会生活に関する総合的研究","A022301 視覚機構","A021501 暗号理論基礎・数論応用","A021601 情報基礎理論","A022901 技術と倫理","A021401 信頼性・保全性の計画・管理","A022501 知識表現","A021101 微分方程式の解法","A020201 音場理論","A023101 測定論","A020401 超音波の基礎","A021801 確率過程論","A020101 音響・振動理論","A020801 物理系における非線形問題","A021701 誤り訂正符号と検出符号１（ブロック符号）","B040601 システムアーキテクチャ","B041801 画像・映像処理，画像・映像符号化","B040101 情報理論","B040401 光ファイバ設計・製造・特性評価","B041001 電波伝搬","B041501 電子・電波・光計測","C020401 受動回路・素子","C020201 量子光学・量子エレクトロニクス基礎","C021001 接触現象・放電現象・トライポロジー","C021601 磁気記録","C020301 光導波路技術","C021201 デバイス及び回路の高性能化","C020501 超音波材料","C021501 超伝導現象","C021401 CRT・蛍光表示管","C020601 アナログ回路","C021301 電子管材料","C021701 センサ・トランスデューサ","C020701 有機材料","C020901 能動部品","C020101 電磁界の基礎理論","C021101 半導体結晶・アモルファス材料","C020801 有機導電材料・有機超伝導材料","D141001 オフィスアーキテクチャ・モデル","D240501 モデリング","D140301 プログラミング言語","D140401 要求獲得・分析","D140701 フォールトトレランス","D140501 データモデルと設計論","D240801 感覚・知覚系のモデル","D240101 特徴抽出・選択","D140901 ヒューマンコミュニケーション基礎・支援","D240601 マルチモーダル，メディア統合","D241001 計算機の介在した作編曲・演奏・伴奏","D240201 音声生成","D240301 画像・映像処理ハードウェア","D240401 物体検出・追跡","D241101 感性原理","D141101 教育・学習支援システム","D140201 論理素子","D240701 形態素解析","D140101 チューリング機械","D140601 ネットワークアーキテクチャ","D140801 知識表現と推論，オントロジー","D240901 生体計測・センサ","D141201 障害児・障害者インタフェース"]
[null,null,null,null,null,null,null,null,null,null,null,null,null,null,null,null,null,null,null,null,null,null,null,null,null,null,null,null,null,null,null,null,null,"Cエレクトロニクス",null,"アルゴリズムとデータ構造・計算複雑度","WA_0212",null,"A021002 機能設計法と高位合成","A020602 能動フィルタ","A021202 データ構造","A021302 グラフアルゴリズム","A022402 CG画像生成アルゴリズムとデータ構造","A020702 安定論","A023002 ハイブリッドシステム","A021902 符号分割多元接続(CDMA)","A020502 適応信号処理","A022702 ニューラルネットワークの集積化技術","A023302 生体認識","A022602 メディア論","A022802 非言語的コミュニケーション","A022002 アクセス制御・チャネル割当","A020302 聴覚機構","A022202 画像符号化と伝送","A020902 非線形回路理論","A023202 単位，規格，シンボル，標準化","A022102 ITS 関連産業のサービスを含めた総合的見地からの研究","A022302 視覚モデル","A021502 公開鍵暗号（解析・解読を含む）","A021602 情報理論における複雑度","A022902 コンピュータ倫理","A021402 システム信頼性の解析と設計","A022502 知識獲得","A021102 偏微分方程式の解法","A020202 音場計測","A023102 誤差論","A020402 伝搬の理論","A021802 信号検出","A020102 音響・振動計測","A020802 生物系・化学系における非線形問題","A021702 誤り訂正符号と検出符号２（畳込み符号・ターボ符号・木符号・トレリス符号など）","B040602 システムソフトウェア","B041802 音声処理,音声符号化","B040102 符号理論","B040402 フォトニック結晶ファイバ","B041002 屋内伝搬","B041502 リモートセンシング","C020402 能動回路・素子・MMIC","C020202 光材料・物性","C021002 接続技術・インタコネクション","C021602 光記録","C020302 光ファイバ","C021202 汎用メモリ（DRAM,SRAM，不揮発等）","C020502 超音波デバイス・圧電デバイス","C021502 超伝導材料","C021402 プラズマディスプレイ","C020602 ディジタル回路","C021302 電子管","C021702 測定・分析機器","C020702 無機材料","C020902 受動部品","C020104 数学的解析理論と応用","C021102 半導体物性評価","C020802 有機半導体材料","D141002 SOHO，テレワークシステム","D240502 レンダリング","D140302 情報意味論","D140402 設計技法","D140702 冗長化設計","D140502 ファイル編成，ストレージ技術","D240802 運動・制御系のモデル","D240102 パターン識別・分類","D140902 ヒューマン情報処理，マルチメディア","D240602 人工現実感，仮想現実感（マルチメディア処理）","D241002 電子楽器","D240202 音声，音響機器，騒音の知覚","D240302 画像復元","D240402 画像識別・分類","D241102 感性素材計測・評価","D141102 CAI，CMI，知的CAI，ITS，ILE","D140202 記憶素子","D240702 構文解析","D140102 λ計算","D140602 サービスネットワーク","D140802 知識ベース","D240902 生体信号処理","D141202 ユニバーサルデザイン"]
[null,null,null,null,null,null,null,null,null,null,null,null,null,null,null,null,null,null,null,null,null,null,null,null,null,null,null,null,null,null,null,null,null,"D情報・システム",null,"グラフとネットワーク","WA_0213",null,"A021003 論理設計法と論理合成","A020603 サンプリングフィルタ","A021203 離散数学","A021303 ネットワーク理論","A022403 CG画像の評価","A020703 システム推定","A023003 サイバーフィジカルシステム","A021903 拡散符号･擬似雑音系列","A020503 非線形信号処理","A022703 バイオセンサー","A023303 生体識別","A022603 情報意味論","A022803 意味・意図理解","A022003 セル構成・セル制御","A020303 音声・聴覚モデル","A022203 画像認識","A020903 電子回路","A023203 数学的技法，確率統計","A022103 ITS 通信技術","A022303 視覚生理・視覚心理","A021503 秘密鍵暗号（解析・解読を含む）","A021603 シャノン理論･符号化定理","A022903 情報倫理教育","A021403 システム保全性の解析と設計","A022503 概念形成","A021103 積分方程式の解法","A020203 騒音・振動計測","A023103 標準","A020403 超音波物理・化学","A021803 信号推定","A020103 音響・振動分析","A020803 心理・経済・社会現象などに関連した非線形問題・複雑系","A021703 符号化変調，ＴＣＭ","B040603 システムハードウェア","B041803 メディア同期","B040103 誤り制御方式","B040403 低曲げ損失・高密度実装光ファイバ","B041003 移動伝搬","B041503 光ファイバセンシング","C020403 システム・応用装置","C020203 レーザ分光","C021003 めっき技術","C021603 記録再生方式","C020303 光回路","C021203 専用メモリ（画像用，通信用等）","C020503 弾性表面波デバイス（SAWフィルタ）","C021503 薄膜・ジョセフソン接合","C021403 有機ELディスプレイ","C020603 アナログ・ディジタル混載回路","C021303 撮像管","C021703 計測・制御技術","C020703 磁性材料","C020903 回路基板","C020105 数値解法理論，計算電磁気学","C021103 表面・界面","C020803 有機絶縁材料","D141003 ビジネスインテリジェンス","D240503 ビジュアライゼーション","D140303 言語処理系，コンパイラと最適化","D140403 ソフトウェアのテスト・デバッグ","D140703 設計検証","D140503 問合せ言語，問合せ処理","D240803 学習・記憶系のモデル","D240103 パターン認識における学習","D140903 CSCW，グループウェア","D240603 複合現実感","D241003 音楽におけるインタラクション","D240203 韻律","D240303 画像強調","D240403 人物画像処理","D241103 感性官能計測・評価","D141103 CSCW/L，分散協調学習","D140203 論理回路","D240703 意味解析","D140103 項書換え系","D140603 プロトコル","D140803 知識の共有・再利用","D240903 生体モデル","D141203 ウェルネス"]
[null,null,null,null,null,null,null,null,null,null,null,null,null,null,null,null,null,null,null,null,null,null,null,null,null,null,null,null,null,null,null,null,null,null,null,"コンピュータグラフィックス(CG)基礎","WA_0224",null,"A021004 回路設計法と回路合成","A020604 スイッチトキャパシタフィルタ","A021204 組合せ数学","A021304 組合せ最適化","A022404 CG技法の電子情報通信への応用","A020704 システム同定","A023004 マルチエージェントシステム","A021904 同期捕捉･同期追尾","A020504 知的信号処理","A022704 バイオメカニクス","A023304 生体認証","A022604 ヒューマンモデル","A022804 知識利用通信","A022004 ネットワーク構成・ネットワーク制御","A020304 音質評価","A022204 画像再構成・復元","A020904 受動回路理論，解析","A023204 その他の基礎理論","A022104 ITS エレクトロニクス技術","A022304 立体視","A021504 ディジタル署名・認証","A021604 無ひずみデータ圧縮符号","A022904 プライバシー・個人情報保護","A021404 ソフトウェア信頼性","A022504 推論方式","A021104 非線形方程式の解法","A020204 音源同定","A023104 電気磁気測定","A020404 超音波計測","A021804 信号設計","A020104 音響材料・物性","A020804 システム・制御における非線形問題","A021704ＡＲＱ・誤り制御","B040604 呼制御","B041804 通信品質","B040104 暗号理論","B040404 特殊光ファイバ","B041004 MIMO 伝搬","B041504 レーダ，信号処理","C020404 センサ技術","C020204 半導体レーザ，発光ダイオード","C021004 モールド技術","C021604 記録材料・デバイス（ヘッド，媒体）","C020304 微小光学技術","C021204 マイクロプロセッサ・コントローラ","C020504 超音波発生・検出（トランスデューサ）","C021504 超伝導デバイス","C021404 無機ELディスプレイ","C020604 通信用回路","C021304 真空機器","C021704 コンピュータ応用","C020704 誘電材料","C020904 記録部品","C020106 量子電磁力学","C021104 半導体結晶成長","C020804 機能性有機材料","D141004 ビジネスプロセスリエンジニアリング","D240504 コンピュータグラフィックスハードウェア","D140304 プログラム合成・変換","D140404 ソフトウェアの保守","D140704 VLSI のテスト・診断・検証","D140504 トランザクション処理","D240804 高次脳機能のモデル","D240104 パターン生成","D140904 インタラクション支援","D240604 ヒューマンインタフェース","D241004 音楽信号処理","D240204 音声信号処理","D240304 画像・映像符号化","D240404 文字認識（ＯＣＲ，オンライン・情景内文字認識）","D241104 感性社会学","D141104 障害児・障害者教育支援","D140204 論理設計","D240704 言語生成","D140104 並列・分散計算","D140604 データ通信機器","D140804 エキスパートシステム","D240904 生体イメージング・医用画像処理","D141204 バリアフリー"]
[null,null,null,null,null,null,null,null,null,null,null,null,null,null,null,null,null,null,null,null,null,null,null,null,null,null,null,null,null,null,null,null,null,null,null,"システムと制御","WA_0207",null,"A021005 レイアウト設計法とレイアウト合成","A020605 各種フィルタ・増幅回路","A021205 計算複雑度の理論","A021305 ネットワーク制御",null,"A020705 制御系設計法","A023005 システム生物学","A021905 情報秘匿･秘話","A020505 線形信号処理","A022705 ブレインウェア","A023305 生体検知","A022605 ヒューマンエラー","A022805 付加価値通信","A022005 ソースコーディング","A020305 音声・聴覚補助機器","A022205 画像入力・表示","A020905 能動回路理論，解析",null,"A022105 ITS ヒューマン技術","A022305 運動視・空間視","A021505 鍵配送・鍵管理","A021605 有ひずみデータ圧縮符号・レートひずみ理論","A022905 暗号と倫理・通信の秘密と倫理","A021405 人間信頼性","A022505 知識ベース","A021105 高精度・高品質計算","A020205 音場制御","A023105 電磁波測定","A020405 超音波変換器","A021805 変復調理論","A020105 電話通信・音声放送","A020805 非線形回路解析","A021705 フェージング通信路符号化","B040605 分散処理プラットホーム","B041805 認証，認可，アクセス制御","B040105 情報セキュリティ","B040405 光ファイバ応用部品","B041005 無線電力伝送","B041505 SAR，ISAR","C020405 電力応用","C020205 半導体以外のレーザ","C021005 金属加工技術","C021605 記録再生信号処理","C020305 光応用計測","C021205 DSP","C020505 強力超音波","C021505 低温技術","C021405 液晶ディスプレイ","C020605 信号処理回路","C021305 電子ビーム","C021705 計測自動化","C020705 圧電材料","C020905 表示部品","C020107 電磁環境","C021105 パワーデバイス","C020805 分子設計・製膜法","D141005 ビジネス支援","D240505 コンピュータグラフィックスインタフェース","D140305 プログラムの解析・理解","D140405 ソフトウェアプロセス","D140705 ソフトウェアのテスト・検証","D140505 並列・分散データベース","D240805 視覚・聴覚心理とモデル解析",null,"D140905 創造・思考・発想支援",null,"D241005 AI と音楽","D240205 音声分析","D240305 映像ストリーミング","D240405 ３次元画像処理","D241105 感性デザイン","D141105 教育測定・評価，教育情報処理技法","D140205 レイアウト","D240705 言語理解","D140105 量子計算","D140605 ユビキタス・モバイルコンピューティング","D140805 知識獲得","D240905 診断・治療システム","D141205 リハビリテーション"]
[null,null,null,null,null,null,null,null,null,null,null,null,null,null,null,null,null,null,null,null,null,null,null,null,null,null,null,null,null,null,null,null,null,null,null,"システム数理と応用","WA_0230",null,"A021006 テスト生成，テスト容易化設計，故障シミュレーション","A020606 光学的信号処理","A021206 計算可能性","A021306 ネットワーク構成",null,"A020706 線形制御理論","A023006 サービスサイエンス","A021906 測距･測位","A020506 多次元信号処理","A022706 遺伝的アルゴリズムの基礎","A023306 生体信号処理","A022606 対話モデル","A022806 通信代行技術","A022006 耐フェージング変復調","A020306 音声工学","A022206 画像生成・表現","A020906 時変回路理論，解析",null,"A022106 ITS インフラ技術","A022306 色覚","A021506 秘密分散・ビジュアル秘密分散","A021606 通信路符号化理論","A022906 情報通信倫理綱領","A021406FMEA・FTA","A022506 エキスパートシステム","A021106 大規模・高速計算法","A020206 室内音響","A023106 光放射線測定","A020406 弾性表面波","A021806 スペクトル解析","A020106 電気音響変換器","A020806 分岐現象・理論","A021706 記録符号化","B040606 スイッチング方式","B041806 サービス連携","B040106 ネットワークセキュリティ","B040406 光ファイバ接続・コネクタ","B041006 電磁界解析","B041506 パルス圧縮","C020406 電磁界解析","C020206 光変調","C021006 マイクロマシーニング","C021606 機構系，サーボ系","C020306 光センサ","C021206 カスタムLSI","C020506 超音波応用","C021506 超伝導ディジタル応用","C021406 FED","C020606 エネルギー変換回路","C021306 イオンビーム","C021706 リモートセンシング","C020706 導電材料","C020906 ハイブリット集積回路部品","C020108 生体への電磁波応用","C021106 薄膜トランジスタ","C020806 作製技術・評価技術","D141006 経営情報システム","D240506 アニメーション","D140306 検証","D140406 ソフトウェア開発における人的要素","D140706 ネットワークのディペンダビリティ","D140506 マルチメディアデータベース","D240806 記憶，学習，自己組織化",null,"D140906 ヒューマン・マルチモーダルインタフェース（ヒューマンコンピュータインタラクション）",null,"D241006 音楽の認知・感性情報処理","D240206 音声符号化，オーディオ符号化","D240306 画像・映像検索","D240406 照明・反射解析","D241106 感性データベース","D141106 生体情報の教育応用","D140206 電子回路","D240706 文脈処理","D140106 分子計算","D140606 アドホックネットワーク","D140806 演繹・仮説・帰納推論","D240906 医療情報システム","D141206 視覚障害の補助手段"]
[null,null,null,null,null,null,null,null,null,null,null,null,null,null,null,null,null,null,null,null,null,null,null,null,null,null,null,null,null,null,null,null,null,null,null,"スペクトル拡散技術","WA_0219",null,"A021007 機能・論理・回路シミュレーション","A020607 ディジタル・アナログハイブリッド処理","A021207 ハードウェアアルゴリズム","A021307 ネットワーク運用管理",null,"A020707 非線形制御理論","A023007 ビジネスプロセスマネジメント","A021907 干渉除去･抑圧","A020507 推定・予測理論","A022707 適応進化型ハードウェア","A023307 身体的・行動的特徴","A022607 創造性・思考支援環境","A022807 電子秘書・エージェント","A022007 ダイバーシチ",null,"A022207 画像品質と画像評価","A020907 分布定数回路",null,"A022107 航空・海上・陸上ITS技術","A022307 色空間・色彩工学","A021507 電子透かし・電子著作権保護","A021607 量子情報理論･量子通信理論","A022907 知的所有権と倫理","A021407 システム安全性の解析と設計","A022507 人工知能ソフトウェア","A021107 線形計画法","A020207 音環境","A023107 音響測定","A020407 非破壊検査","A021807 時系列モデル","A020107 録音・再生","A020807 カオス","A021707 復号アルゴリズム","B040607 MPLS,GMPLS","B041807 Webサービス","B040107 トラヒック理論","B040407 光ファイバ線路特性監視・管理技術","B041007 アンテナ全般","B041507 ポーラリメトリ","C020407 回路合成","C020207 光増幅","C021007 リレー・スイッチ",null,"C020307 光記録","C021207 アナログLSI","C020507 圧電センサ・アクチュエータ","C021507 超伝導アナログ応用","C021407 超大型ディスプレイ（プロジェクション・LED アレー等）","C020607 低雑音・耐雑音回路","C021307 プラズマ応用","C021707 教育用機器","C020707 絶縁材料","C020907 電気化学部品・電池","C020109 波動情報処理","C021107 化合物半導体デバイス","C020807 分子電子デバイス","D141007 経営意思決定支援システム","D240507 テクスチャリング","D140307 形式的仕様記述","D140407 開発環境，開発支援ツール","D140707 並列・分散・協調システム","D140507 オブジェクト指向データベース","D240807 高次情報処理",null,"D140907 生体情報処理応用システム",null,"D241007 音楽データベース・流通","D240207 音声強調・復元・分離","D240307 画像・映像管理，画像・映像保護",null,null,"D141107 学習科学と認知科学","D140207 実装","D240707 言語処理アプリケーション","D140107 数理論理","D140607 インターネット","D140807 知的インタフェース","D240907 リハビリテーション，福祉支援","D141207 音声・聴覚・言語障害の補助手段（福祉工学）"]
[null,null,null,null,null,null,null,null,null,null,null,null,null,null,null,null,null,null,null,null,null,null,null,null,null,null,null,null,null,null,null,null,null,null,null,"ディジタル信号処理","WA_0205",null,"A021008 設計記述言語","A020608 アナログニューラルネット","A021208 計算幾何学","A021308 情報ネットワーク",null,"A020708 適応制御","A023008 形式手法","A021908 マルチユーザ受信","A020508 カルマンフィルタ","A022708 人工生命","A023308 特徴抽出・検出","A022608 障害者・高齢者のためのコミュニケーション支援","A022808 知的符号化","A022008 適応等化・干渉除去",null,"A022208 ビジョンチップ","A020908 回路網理論，解析",null,"A022108 ITS センシング技術","A022308 視覚補助機器","A021508 プロトコル・ゼロ知識証明","A021608 マルチユーザ通信理論","A022908 PL法と倫理","A021408 モデルと予測","A022508 学習機構","A021108 非線形計画法","A020208 空間音響","A023108 機械振動測定","A020408 強力超音波","A021808 波形伝送論","A020108 オーディオシステム","A020808 フラクタル","A021708 同期符号","B040608 ルータ","B041808 SOA，SaaS，PaaS","B040108 待ち行列理論","B040500 光ファイバ伝送","B041008 小形アンテナ","B041508 測位，測距","C020408 CAD・シミュレーション","C020208 光検出","C021008 コネクタ・光コネクタ",null,"C020308 光情報処理","C021208 集積化センサ","C020508 圧電発振器，高安定発振器",null,"C021408 電子ペーパ・ペーパライクディスプレイ","C020608 A－D・D－A 変換回路","C021308 X 線応用","C021708 人間工学","C020708 機能性材料","C020908 センサ応用部品","C020110 他系との結合理論と解析","C021108 撮像デバイス・CCD","C020808 分子光デバイス","D141008 企業間アプリケーション統合","D240508 画像合成，特殊効果","D140308 命令・手続き型モデル","D140408 ソフトウェア品質管理，定量的評価，メトリックス","D140708 リアルタイムシステム","D140508 演繹データベース","D240808 認知科学",null,"D140908 認知情報処理応用システム",null,"D241008 音楽学への応用","D240208 音声合成","D240308 画像・映像ハンドリング",null,null,"D141108 インストラクショナルデザイン，企業内教育","D140208 マイクロプロセッサアーキテクチャ","D240708 言語知識抽出","D140108 多値論理","D140608 ブロードバンドネットワーク","D140808 遺伝的アルゴリズム，人工生命（人工知能，データマイニング）","D240908 脳・神経・感覚系","D141208 肢体不自由（者）の補助手段"]
[null,null,null,null,null,null,null,null,null,null,null,null,null,null,null,null,null,null,null,null,null,null,null,null,null,null,null,null,null,null,null,null,null,null,null,"ニューラルネットワーク及び生物工学","WA_0227",null,"A021009 設計環境","A020609 アナログ信号処理用回路",null,"A021309 移動情報ネットワーク",null,"A020709 確率システム制御理論","A023009 ゲーム理論","A021909 移動情報通信･パーソナル通信","A020509 非定常過程","A022709 遺伝子情報処理","A023309 マルチモーダルバイオメトリクス","A022609 心理学・行動科学・社会心理・組織論","A022809 マルチメディア技術","A022009 誤り訂正符号・誤り制御",null,"A022209 多眼画像・3 次元画像","A020909 回路構成・設計",null,"A022109 ITS 画像技術","A022309 視覚応用システム","A021509 暗号応用・電子現金・電子決済・超流通","A021609 予測理論","A022909 職業倫理","A021409 故障データ解析","A022509 理解","A021109 整数計画法","A020209 騒音・振動の評価","A023109 生体測定","A020409 水中超音波","A021809 雑音理論","A020109 和・洋・電子楽器","A020809 ニューラルネットの理論・応用","A021709 系列生成論","B040700 ネットワーク","B041809 モバイルマルチメディア","B040109 ネットワーク理論","B040501 光通信用光機能部品","B041009 移動通信用アンテナ","B041509 移動目標検出","C020409 測定技術","C020209 非線形光学","C021009 回路基板・実装技術",null,"C020309 光インタコネクション","C021209 アナログ・ディジタル混載LSI","C020509 周波数・時刻制御，計測技術",null,"C021409 3 次元表示ディスプレイ","C020609 インタフェース回路",null,null,"C020709 表示・記憶材料","C020909 半導体パッケージ技術","C020111 非線形問題","C021109 太陽電池","C020809 分子ナノテクノロジー","D141009 社会情報システム",null,"D140309 関数型モデル","D140409 プロジェクト管理","D140709 ディペンダビリティの尺度・モデル・評価","D140509 空間データベース","D240809 計算論的神経科学",null,"D140909 感性・あいまい情報処理応用システム",null,null,"D240209 音声・聴覚・言語障害の補助手段（音声，聴覚）",null,null,null,"D141109 情報教育，工学教育，高等教育一般，FD","D140209 専用VLSIプロセッサアーキテクチャ","D240709 言語分析","D140109 ファジィ論理","D140609 QoS，品質管理","D140809 複雑系，複雑システム","D240909 呼吸・循環系","D141209 視覚生理・心理応用システム"]
[null,null,null,null,null,null,null,null,null,null,null,null,null,null,null,null,null,null,null,null,null,null,null,null,null,null,null,null,null,null,null,null,null,null,null,"バイオメトリクス","WA_0233",null,"A021010 設計方法論","A020610 アナログ・ディジタル混載回路",null,null,null,"A020710 サイバネティックス","A023010 スケジューリング","A021910 コンシューマ通信","A020510 スペクトル推定",null,"A023310 ソフトバイオメトリクス","A022610 ヒューマンインタフェース技術","A022810 マルチメディア情報の理解・変換・蓄積・加工・合成","A022010 適応アンテナ制御",null,"A022210 画像への情報埋め込み","A020910 回路診断",null,"A022110 ITS 情報技術",null,"A021510 暗号実装","A021610 学習理論","A022910 経営倫理・企業倫理","A021410 リスクの評価・管理","A022510 認識論","A021110 数値計算・数理計画法応用","A020210 騒音・振動の人体影響","A023110 揺らぎ測定","A020410 医用超音波","A021810 伝送路符号","A020110 コンピュータミュージック","A020810 離散系の非線形問題",null,"B040701 ネットワークアーキテクチャ","B041810 ホームネットワーク，情報家電","B040110 量子情報理論","B040502 光増幅方式・装置","B041010 人体周辺のアンテナ","B041510 地中探査","C020410 マイクロ波導波路技術","C020210 光・レーザ制御","C021010 光実装技術",null,"C020310 光応用システム","C021210 マルチメディアLSI","C020510 医用超音波",null,"C021410 TFT","C020610 発振・増幅回路",null,null,"C020710 超音波応用材料","C020910 高密度実装技術","C020112 放射・伝搬","C021110 新機能・新概念・量子効果デバイス","C020810 バイオエレクトロニクス","D141010 人間行動学",null,"D140310 論理型モデル","D140410 プロダクト・ドキュメント管理と再利用","D140710 コンピュータシステムの信頼性・安全性","D140510 モバイルデータベース","D240810 遺伝的アルゴリズム（バイオサイバネティックス，ニューロコンピュー ティング）",null,"D140910 バーチャルリアリティ，拡張現実感",null,null,"D240210 競争的評価タスク・共通基盤",null,null,null,"D141110 e-ラーニング","D140210 ウェーハスケールインテグレーション","D240710 換言処理","D140110 オートマトン","D140610 オーバーレイネットワーク","D140810 知能ロボット","D240910 運動系・バイオメカニクス","D141210 聴覚生理・心理応用システム（福祉工学）"]
[null,null,null,null,null,null,null,null,null,null,null,null,null,null,null,null,null,null,null,null,null,null,null,null,null,null,null,null,null,null,null,null,null,null,null,"ヒューマンコミュニケーション","WA_0226",null,"A021011 カスタム化技術","A020611 標本化定理",null,null,null,"A020711 オペレーションズリサーチ","A023011 モデルベース開発","A021911 衛星･宇宙通信","A020511 時間周波数解析",null,"A023311 プライバシー","A022611 マン・マシンインタフェース","A022811 マルチメディア統合符号化","A022011 ソフトウェア無線",null,"A022211 画像応用システム","A020911 回路のCAD",null,null,null,"A021511 秘話・スクランブル","A021611 パターン認識","A022911 ネチケット",null,"A022511 思考の脳生理学的基礎",null,"A020211 騒音・振動の受動能動制御","A023111 確率現象測定","A020411 物性と材料","A021811 最適受信機","A020111 音響信号ディジタル処理","A020811 非線形分布定数系",null,"B040702 ネットワーク制御","B041811 オンデマンドシステム","B040111 ディジタル信号処理","B040503 光変復調方式・装置","B041011 平面アンテナ","B041511 宇宙探査","C020411 マイクロ波・ミリ波材料","C020211 マイクロ波フォトニクス","C021011 ヒューマンインタフェースデバイス",null,"C020311 フォトニック結晶","C021211 ニューラルネットワークLSI",null,null,"C021411 液晶材料","C020611 センサ回路",null,null,"C020711 センサ応用材料","C020911 高速・高周波実装技術","C020113 散乱・回折","C021111 各種ダイオードトランジスタ","C020811 電気化学計測・電気化学応用","D141011 オフィス環境・設計",null,"D140311 オブジェクト指向モデル",null,"D140711 コンピュータシステムの保守・診断","D140511 データウェアハウス，OLAP","D240811 人工生命（バイオサイバネティックス，ニューロコンピューティング）",null,"D140911 ウェアラブルコンピューティング",null,null,"D240211 言語・外国語の音声教育",null,null,null,"D141111 知識マネージメント","D140211 マルチプロセッサチップ","D240711 文書処理","D140111 形式文法","D140611 VoIP，VPN，CDN","D140811 テキストマイニング",null,"D141211 触覚生理・心理応用システム"]
[null,null,null,null,null,null,null,null,null,null,null,null,null,null,null,null,null,null,null,null,null,null,null,null,null,null,null,null,null,null,null,null,null,null,null,"マルチメディア環境技術","WA_0228",null,"A021012 ハードウェアアルゴリズム","A020612A-D・D-A 変換",null,null,null,"A020712 システム最適化・設計","A023012 スーパバイザ制御","A021912 無線LAN･構内無線","A020512 ウェーブレット",null,"A023312 なりすまし対策","A022612 マルチメディアインタフェース","A022812 ハイパメディア","A022012 広帯域無線通信･高速無線アクセス",null,null,"A020912 電磁界と回路",null,null,null,"A021512 アクセス制御・ネットワークセキュリティ・データベースセキュリティ","A021612 情報理論応用",null,null,"A022512 思考過程・思考能力の分析と定式化",null,"A020212 吸音・遮音・制振材料",null,"A020412 超音波スペクトロスコピー","A021812 通信方式","A020112 音響エコーキャンセラー","A020812 非線形波動・ソリトン",null,"B040703 通信プロトコル","B041812 ネットワークコミュニティ","B040112 ネットワーク符号","B040504 光等化方式・装置","B041012 広帯域・マルチバンドアンテナ","B041512 目標推定","C020412 マイクロ波弾性波素子","C020212 超高速現象，超短光パルス，光ソリトン","C021012 電気機械トランスデューサ・センサ",null,"C020312 ナノフォトニクス","C021212 新しい概念のLSI",null,null,"C021412 蛍光体材料","C020612 各種変換回路",null,null,"C020712 光学応用材料","C020912 電子部品設計技術","C020114 アンテナ理論","C021112 プロセス技術，微細加工",null,"D141012 企業モデル",null,"D140312 オペレーティングシステム",null,null,"D140512 文書データベース，Webデータベース","D240812 ニューラルネットワークのモデル",null,null,null,null,"D240212 音声認識・理解",null,null,null,"D141112 コンテンツ作成技法，教材構成方法論","D140212 システムオンチップ","D240712 機械翻訳","D140112 木オートマトン，グラフ文法","D140612 暗号化技法","D140812 Web マイニング",null,"D141212 筋運動系の生理・心理応用システム"]
[null,null,null,null,null,null,null,null,null,null,null,null,null,null,null,null,null,null,null,null,null,null,null,null,null,null,null,null,null,null,null,null,null,null,null,"移動情報通信・パーソナル通信","WA_0220",null,"A021013CAD 専用ハードウェア","A020613 アナログ信号のディジタル処理",null,null,null,"A020713 大規模システムの解析・設計手法",null,"A021913 電力線･有線伝送","A020513 多重解像度解析",null,"A023313 テンプレート保護","A022613 マルチモーダルインタフェース","A022813 臨場感通信","A022013 無線パケット・無線ATM・無線LAN",null,null,"A020913 回路とシステム応用",null,null,null,"A021513 プライバシー保護",null,null,null,"A022513 思考の信頼性と一貫性",null,null,null,"A020413 音響ホログラフィー","A021813 プロトコル","A020113 マイクロホンアレー","A020813 非線形系のシミュレーション技法",null,"B040704 移動通信プロトコル","B041813 SNS","B040113 ゲーム理論","B040505 光多重伝送方式・装置","B041013 メタマテリアル・EBG 応用アンテナ","B041513 UWBセンサ","C020413 マイクロ波超伝導","C020213 光スイッチング，光双安定技術","C021013 アクチェータ・小型モータ",null,"C020313 バイオフォトニクス","C021213 クロック関連技術（PLL，DLL 等）",null,null,"C021413 ディスプレイ装置・システム","C020613 非線形回路",null,null,"C020713 実装技術応用材料","C020913 電子部品評価・解析技術","C020115 周期構造","C021113 半導体生産技術",null,"D141013 NPO モデル，電子政府",null,"D140313 ミドルウェア",null,null,"D140513 情報検索（データ工学，Web情報システム）","D240813 ニューラルネットワークのアーキテクチャ",null,null,null,null,"D240213 音声対話，音声翻訳",null,null,null,null,"D140213 新概念VLSI","D240713 情報検索（自然言語処理）","D140113 セルオートマトン","D140613 電子署名","D140813 音声・画像データマイニング"]
[null,null,null,null,null,null,null,null,null,null,null,null,null,null,null,null,null,null,null,null,null,null,null,null,null,null,null,null,null,null,null,null,null,null,null,"音声、聴覚A","WA_0203",null,"A021014 テクノロジーマイグレーション","A020614 定常・非定常確率過程",null,null,null,"A020714 待ち行列理論",null,"A021914 光SS（CDMA)","A020514 フィルタバンク",null,"A023314 人工物メトリクス","A022614 感性・情緒処理","A022814 3D通信","A022014 移動通信装置",null,null,null,null,null,null,"A021514 セキュリティマネジメント",null,null,null,"A022514 意識と思考",null,null,null,"A020414 超音波ＣＴ","A021814 ネットワークアーキテクチャ","A020114 音響信号の符号化",null,null,"B040705 通信品質、QoS",null,"B040200 電子通信エネルギー","B040506 光アクセス方式・装置","B041014 開口面アンテナ","B041514 計測・探査応用システム","C020414 マイクロ波・光変換","C020214 レーザ加工，プロセス技術","C021014 アレスター・ヒューズ",null,"C020314 医療（医用）フォトニクス","C021214 LSI実装技術",null,null,"C021414 ディスプレイ周辺技術（光源・フィルタ等）","C020614 電源回路・電源装置",null,null,"C020714 マイクロ波・ミリ波応用材料","C020914 信頼性評価技術","C020116 ランダム媒質・粗面","C021114 テスト・信頼性",null,"D141014 コミュニティモデル",null,"D140314 組込ソフトウェア，実時間システム",null,null,"D140514 情報検索システム・エンジン","D240814 ニューラルネットワークの計算論",null,null,null,null,"D240214 音声検索・要約",null,null,null,null,"D140214 再構成可能LSI","D240714 自動要約","D140114 データ構造","D140614 認証","D140814 バイオ・医用データマイニング"]
[null,null,null,null,null,null,null,null,null,null,null,null,null,null,null,null,null,null,null,null,null,null,null,null,null,null,null,null,null,null,null,null,null,null,null,"画像","WA_0222",null,"A021015 ハードウェア／ソフトウェア協調設計","A020615 最適フィルタ",null,null,null,"A020715 離散事象システム",null,"A021915 リモートセンシングコントロール","A020515 高速アルゴリズム",null,null,"A022615 ヒューマン機能の計測と解析","A022815 広視野通信",null,null,null,null,null,null,null,"A021515 リスクアナリシス",null,null,null,"A022515 イメージと思考",null,null,null,"A020415 パラメトリック応用機器","A021815 移動情報通信基礎･パーソナル通信基礎","A020115 生体音響",null,null,"B040706 クロスレイヤ制御",null,"B040201 システムの省エネルギー化","B040507 光信号処理","B041015 アレーアンテナ","B041515 周波数標準","C020415 マイクロマシン技術応用","C020215 光半導体結晶成長・評価，プロセス",null,null,null,"C021215 テスト容易化技術",null,null,"C021415 ディスプレイ製作技術（プロセス・材料・検査等）","C020615 フィルタ",null,null,"C020715 半導体結晶を除く結晶成長技術",null,"C020117 人工媒質，非線形媒質","C021115 シミュレーション・モデリング",null,"D141015 価値企画モデル",null,null,null,null,"D140515 情報フィルタリング","D240815 ニューラルネットワークのハードウェア化",null,null,null,null,"D240215 話者認識・言語認識",null,null,null,null,"D140215 FPGA","D240715 対話システム","D140115 最適化アルゴリズム","D140615 オーソライゼーション","D140815 クラスタリング"]
[null,null,null,null,null,null,null,null,null,null,null,null,null,null,null,null,null,null,null,null,null,null,null,null,null,null,null,null,null,null,null,null,null,null,null,"回路理論，回路解析","WA_0209",null,"A021016 設計検証技術","A020616 スペクトル推定",null,null,null,"A020716 ペトリネット",null,"A021916 ナビゲーションレーダ","A020516 各種変換",null,null,"A022616 ヒューマン情報処理","A022816 五感通信",null,null,null,null,null,null,null,"A021516 量子暗号・量子計算",null,null,null,"A022516 認知科学",null,null,null,"A020416 超音波応用計測",null,"A020116 非線形音響",null,null,"B040707 ネットワーク仮想化",null,"B040202 クリーンエネルギー","B040508 光通信用ディジタル信号処理","B041016 アンテナの集積化・接続技術","B041600 航行・誘導・制御方式","C020416 非線形応用回路・素子",null,null,null,null,"C021216 LSIフォールトトレラント技術",null,null,"C021416 ディスプレイ特性測定・評価","C020616 スイッチトキャパシタ回路",null,null,"C020716 薄膜・厚膜材料技術",null,"C020118 時間領域解析",null,null,"D141016 企業戦略と競争力モデル",null,null,null,null,"D140516 ディジタル図書館","D240816 ニューラルネットワークのダイナミクス",null,null,null,null,"D240216 マルチモーダルインタフェース（音声，聴覚）",null,null,null,null,"D140216 記憶装置","D240716 自然言語インターフェース","D140116 グラフアルゴリズム","D140616 電子透かし","D140816 知識発見"]
[null,null,null,null,null,null,null,null,null,null,null,null,null,null,null,null,null,null,null,null,null,null,null,null,null,null,null,null,null,null,null,null,null,null,null,"基礎理論","WA_0232",null,"A021017 アナログ回路用CAD","A020617 ビデオ信号処理",null,null,null,null,null,null,"A020517 情報圧縮",null,null,"A022617 視聴覚情報処理","A022817 マルチメディア通信",null,null,null,null,null,null,null,null,null,null,null,"A022517 言語理解と言語獲得",null,null,null,"A020417 超音波応用デバイス",null,null,null,null,"B040708 NFV",null,"B040203 電源システム","B040509 光量子伝送","B041017 アンテナシステム","B041601 電子航法","C020417 回路実装技術",null,null,null,null,"C021217 システムオンチップ設計検証技術",null,null,"C021417 ディスプレイ人間工学・エルゴノミクス等","C020617 スイッチトカレント回路",null,null,"C020717 材料評価技術",null,"C020119 高周波漸近解法",null,null,"D141017 金融工学",null,null,null,null,"D140517 メタデータ，セマンティックWeb","D240817 ニューラルネットワークによる特徴抽出・認識",null,null,null,null,"D240217 聴覚生理・心理（音声，聴覚）",null,null,null,null,"D140217 入出力装置",null,"D140117 代数・数論アルゴリズム","D140617 電子商取引","D140817 機械学習"]
[null,null,null,null,null,null,null,null,null,null,null,null,null,null,null,null,null,null,null,null,null,null,null,null,null,null,null,null,null,null,null,null,null,null,null,"高度交通システム（ITS）","WA_0221",null,"A021018 リコンフィグラブル論理","A020618 オーディオ信号処理",null,null,null,null,null,null,"A020518 誤り訂正符号化",null,null,"A022618 ヒューマンビジョン","A022818 空間操作",null,null,null,null,null,null,null,null,null,null,null,"A022518 問題解決",null,null,null,null,null,null,null,null,"B040709 通信サービス",null,"B040204 電源システムのモニタリングとマネジメント","B040510 フォトニックネットワークシステム","B041018 アダプティブアンテナ・MIMO","B041602 衛星航法",null,null,null,null,null,"C021218 VLSIコンピュータ技術（超並列アーキテクチャ，分散処理アーキテクチャ等）",null,null,"C021418 ディスプレイ駆動回路","C020618 変復調回路",null,null,null,null,"C020120 逆問題",null,null,"D141018 企業モデル・ビジネスプロセスの構築",null,null,null,null,"D140518 情報配信，データ放送","D240818 ニューラルネットワークによる認識・予測・制御とその応用",null,null,null,null,null,null,null,null,null,"D140218 端末装置",null,"D140118 計算幾何","D140618 ネットワークセキュリティ"]
[null,null,null,null,null,null,null,null,null,null,null,null,null,null,null,null,null,null,null,null,null,null,null,null,null,null,null,null,null,null,null,null,null,null,null,"視覚","WA_0223",null,"A021019PCB, MCM 設計","A020619 マルチメディア信号処理",null,null,null,null,null,null,"A020519 通信用信号処理",null,null,"A022619 実空間の知覚と認知","A022819 サイバインタフェース",null,null,null,null,null,null,null,null,null,null,null,"A022519 思考支援",null,null,null,null,null,null,null,null,"B040710 マルチキャスト",null,"B040205 電源回路・電源制御方式","B040511 フォトニックネットワーク制御方式・装置","B041019 到来方向推定","B041603 飛しょう体誘導",null,null,null,null,null,"C021219 メモリロジック混載技術",null,null,"C021419 ディスプレイ駆動方式・信号処理",null,null,null,null,null,"C020121 導波路構造",null,null,"D141019 モデル評価技術",null,null,null,null,"D140519 構造化文書，XML","D240819 ハイブリッドシステム",null,null,null,null,null,null,null,null,null,"D140219 コンピュータアーキテクチャ",null,"D140119 計算論的学習理論","D140619 アクセス制御"]
[null,null,null,null,null,null,null,null,null,null,null,null,null,null,null,null,null,null,null,null,null,null,null,null,null,null,null,null,null,null,null,null,null,null,null,"情報セキュリティ基礎","WA_0215",null,null,"A020620 各種波形処理回路",null,null,null,null,null,null,"A020520 制御用信号処理",null,null,"A022620 生体発現信号の処理","A022820 人工現実感・仮想環境",null,null,null,null,null,null,null,null,null,null,null,"A022520 発想支援",null,null,null,null,null,null,null,null,"B040711 P2P",null,"B040206 DC-DC コンバータ","B040512 光インタコネクト，光インタフェース","B041020 アンテナ測定","B041604 状態推定",null,null,null,null,null,"C021220 LSI信頼性技術",null,null,null,null,null,null,null,null,null,null,null,"D141020 知識の共有・管理技術",null,null,null,null,"D140520 Web 情報システム，Webサービス",null,null,null,null,null,null,null,null,null,null,"D140220 並列・分散処理アーキテクチャ",null,"D140120 構造的計算量","D140620 セキュリティ管理"]
[null,null,null,null,null,null,null,null,null,null,null,null,null,null,null,null,null,null,null,null,null,null,null,null,null,null,null,null,null,null,null,null,null,null,null,"情報理論","WA_0216",null,null,null,null,null,null,null,null,null,"A020521 生体信号処理",null,null,"A022621 生体運動の理解と生成",null,null,null,null,null,null,null,null,null,null,null,null,null,null,null,null,null,null,null,null,null,"B040712 NGN",null,"B040207 AC-DC コンバータ，整流器","B040513 光スイッチシステム","B041100 電磁環境・EMC","B041605 運動モデル",null,null,null,null,null,"C021221 無線通信用（RF）LSI",null,null,null,null,null,null,null,null,null,null,null,"D141021 システム構築技術",null,null,null,null,"D140521 コンテンツ管理技術",null,null,null,null,null,null,null,null,null,null,"D140221 クラスタコンピューティング",null,"D140121 回路計算量","D140621 DoS対策"]
[null,null,null,null,null,null,null,null,null,null,null,null,null,null,null,null,null,null,null,null,null,null,null,null,null,null,null,null,null,null,null,null,null,null,null,"情報倫理・情報通信倫理","WA_0229",null,null,null,null,null,null,null,null,null,"A020522 記録と記録用信号処理",null,null,null,null,null,null,null,null,null,null,null,null,null,null,null,null,null,null,null,null,null,null,null,null,"B040713 オーバレイネットワーク",null,"B040208 インバータ，UPS",null,"B041101 電磁妨害波・電磁波障害","B041606 自動操縦",null,null,null,null,null,"C021222 有線通信用LSI",null,null,null,null,null,null,null,null,null,null,null,"D141022 教育，人材育成，認定",null,null,null,null,"D140522 著作権・アクセス権管理，セキュリティ",null,null,null,null,null,null,null,null,null,null,"D140222 リコンフィギャラブルコンピューティング",null,"D140122 通信計算量","D140622 分散協調問題解決"]
[null,null,null,null,null,null,null,null,null,null,null,null,null,null,null,null,null,null,null,null,null,null,null,null,null,null,null,null,null,null,null,null,null,null,null,"信頼性，保全性，安全性","WA_0214",null,null,null,null,null,null,null,null,null,"A020523 マルチメディア信号処理",null,null,null,null,null,null,null,null,null,null,null,null,null,null,null,null,null,null,null,null,null,null,null,null,"B040714 コンテンツデリバリーネットワーク",null,"B040209 非接触給電",null,"B041102 電磁雑音と伝搬メカニズム","B041607 搭載装置",null,null,null,null,null,null,null,null,null,null,null,null,null,null,null,null,null,null,null,null,null,null,"D140523 ネットワークコミュニティ",null,null,null,null,null,null,null,null,null,null,"D140223 グリッド・グローバルコンピューティング",null,null,"D140623 分散協調プロトコル"]
[null,null,null,null,null,null,null,null,null,null,null,null,null,null,null,null,null,null,null,null,null,null,null,null,null,null,null,null,null,null,null,null,null,null,null,"人工知能","WA_0225",null,null,null,null,null,null,null,null,null,"A020524 信号処理用VLSI",null,null,null,null,null,null,null,null,null,null,null,null,null,null,null,null,null,null,null,null,null,null,null,null,"B040715 情報指向ネットワーク",null,"B040210 電池，蓄電",null,"B041103 システムのEMC","B041608 追尾フィルタ",null,null,null,null,null,null,null,null,null,null,null,null,null,null,null,null,null,null,null,null,null,null,null,null,null,null,null,null,null,null,null,null,null,"D140224 情報家電",null,null,"D140624 知的エージェント"]
[null,null,null,null,null,null,null,null,null,null,null,null,null,null,null,null,null,null,null,null,null,null,null,null,null,null,null,null,null,null,null,null,null,null,null,"数値計算，数理計画法","WA_0211",null,null,null,null,null,null,null,null,null,"A020525 信号処理プロセッサ",null,null,null,null,null,null,null,null,null,null,null,null,null,null,null,null,null,null,null,null,null,null,null,null,"B040716 ユビキタスネットワーク",null,"B040211 燃料電池",null,"B041104 ESD，放電，イミュニティ","B041609 交通管制・管理",null,null,null,null,null,null,null,null,null,null,null,null,null,null,null,null,null,null,null,null,null,null,null,null,null,null,null,null,null,null,null,null,null,null,null,null,"D140625 ソフトウェアエージェント"]
[null,null,null,null,null,null,null,null,null,null,null,null,null,null,null,null,null,null,null,null,null,null,null,null,null,null,null,null,null,null,null,null,null,null,null,"騒音、振動","WA_0202",null,null,null,null,null,null,null,null,null,"A020526 並列信号処理",null,null,null,null,null,null,null,null,null,null,null,null,null,null,null,null,null,null,null,null,null,null,null,null,"B040717 アドホックネットワーク",null,"B040212 力率改善・高調波電流抑制技術",null,"B041105 EMCモデリング","B041700 宇宙利用システム",null,null,null,null,null,null,null,null,null,null,null,null,null,null,null,null,null,null,null,null,null,null,null,null,null,null,null,null,null,null,null,null,null,null,null,null,"D140626 インタフェースエージェント"]
[null,null,null,null,null,null,null,null,null,null,null,null,null,null,null,null,null,null,null,null,null,null,null,null,null,null,null,null,null,null,null,null,null,null,null,"測定・計測","WA_0231",null,null,null,null,null,null,null,null,null,null,null,null,null,null,null,null,null,null,null,null,null,null,null,null,null,null,null,null,null,null,null,null,null,null,"B040718 センサネットワーク",null,"B040213 ＥＭＣ，電磁雑音",null,"B041106 EMC対策","B041701 宇宙機・搭載機器",null,null,null,null,null,null,null,null,null,null,null,null,null,null,null,null,null,null,null,null,null,null,null,null,null,null,null,null,null,null,null,null,null,null,null,null,"D140627 マルチエージェントシステム"]
[null,null,null,null,null,null,null,null,null,null,null,null,null,null,null,null,null,null,null,null,null,null,null,null,null,null,null,null,null,null,null,null,null,null,null,"超音波","WA_0204",null,null,null,null,null,null,null,null,null,null,null,null,null,null,null,null,null,null,null,null,null,null,null,null,null,null,null,null,null,null,null,null,null,null,"B040719 環境指向ネットワーク",null,"B040214 回路部品，材料",null,"B041107 EMC部品・材料","B041702 観測，測位，探査衛星システム",null,null,null,null,null,null,null,null,null,null,null,null,null,null,null,null,null,null,null,null,null,null,null,null,null,null,null,null,null,null,null,null,null,null,null,null,"D140628 モバイルエージェント"]
[null,null,null,null,null,null,null,null,null,null,null,null,null,null,null,null,null,null,null,null,null,null,null,null,null,null,null,null,null,null,null,null,null,null,null,"通信理論，信号理論基礎","WA_0218",null,null,null,null,null,null,null,null,null,null,null,null,null,null,null,null,null,null,null,null,null,null,null,null,null,null,null,null,null,null,null,null,null,null,"B040720 SDN",null,"B040300 伝送方式・機器",null,"B041108 電磁波吸収・遮へい","B041703 小型衛星システム"]
[null,null,null,null,null,null,null,null,null,null,null,null,null,null,null,null,null,null,null,null,null,null,null,null,null,null,null,null,null,null,null,null,null,null,null,"電気音響、音響一般","WA_0201",null,null,null,null,null,null,null,null,null,null,null,null,null,null,null,null,null,null,null,null,null,null,null,null,null,null,null,null,null,null,null,null,null,null,"B040721 モバイルコンピューティング",null,"B040301 伝送路符号",null,"B041109 EMC計測","B041704 通信，準天頂衛星システム"]
[null,null,null,null,null,null,null,null,null,null,null,null,null,null,null,null,null,null,null,null,null,null,null,null,null,null,null,null,null,null,null,null,null,null,null,"非線形問題","WA_0208",null,null,null,null,null,null,null,null,null,null,null,null,null,null,null,null,null,null,null,null,null,null,null,null,null,null,null,null,null,null,null,null,null,null,"B040722 グリッドコンピューティング",null,"B040302 変復調方式",null,"B041110 生体電磁作用・計測","B041705 エネルギー伝送システム"]
[null,null,null,null,null,null,null,null,null,null,null,null,null,null,null,null,null,null,null,null,null,null,null,null,null,null,null,null,null,null,null,null,null,null,null,"符号理論","WA_0217",null,null,null,null,null,null,null,null,null,null,null,null,null,null,null,null,null,null,null,null,null,null,null,null,null,null,null,null,null,null,null,null,null,null,"B040723 クラウドコンピューティング",null,"B040303 多重化方式",null,"B041111 電磁波応用","B041706 流星通信システム"]
[null,null,null,null,null,null,null,null,null,null,null,null,null,null,null,null,null,null,null,null,null,null,null,null,null,null,null,null,null,null,null,null,null,null,null,"B通信",null,null,null,null,null,null,null,null,null,null,null,null,null,null,null,null,null,null,null,null,null,null,null,null,null,null,null,null,null,null,null,null,null,null,null,"B040724 エッジコンピューティング",null,"B040304 同期方式",null,"B041112 電磁波監視","B041707 衛星間通信・衛星ネットワーク"]
[null,null,null,null,null,null,null,null,null,null,null,null,null,null,null,null,null,null,null,null,null,null,null,null,null,null,null,null,null,null,null,null,null,null,null,"ネットワーク","WB_0406",null,null,null,null,null,null,null,null,null,null,null,null,null,null,null,null,null,null,null,null,null,null,null,null,null,null,null,null,null,null,null,null,null,null,"B040725 データセンタネットワーク",null,"B040305 各種伝送機器・回路",null,"B041113 電磁情報セキュリティ"]
[null,null,null,null,null,null,null,null,null,null,null,null,null,null,null,null,null,null,null,null,null,null,null,null,null,null,null,null,null,null,null,null,null,null,null,"マルチメディアシステム","WB_0418",null,null,null,null,null,null,null,null,null,null,null,null,null,null,null,null,null,null,null,null,null,null,null,null,null,null,null,null,null,null,null,null,null,null,"B040726 遅延途絶耐性ネットワーク",null,"B040306 通信線路，配線システム",null,"B041200 無線通信技術"]
[null,null,null,null,null,null,null,null,null,null,null,null,null,null,null,null,null,null,null,null,null,null,null,null,null,null,null,null,null,null,null,null,null,null,null,"基盤","WB_0401",null,null,null,null,null,null,null,null,null,null,null,null,null,null,null,null,null,null,null,null,null,null,null,null,null,null,null,null,null,null,null,null,null,null,"B040800 インターネット",null,"B040307 メタルアクセス方式・装置",null,"B041201 無線変復調方式"]
[null,null,null,null,null,null,null,null,null,null,null,null,null,null,null,null,null,null,null,null,null,null,null,null,null,null,null,null,null,null,null,null,null,null,null,"光","WB_0404",null,null,null,null,null,null,null,null,null,null,null,null,null,null,null,null,null,null,null,null,null,null,null,null,null,null,null,null,null,null,null,null,null,null,"B040801 インターネットプロトコル",null,"B040308 回線監視・制御",null,"B041202 スペクトル拡散通信，UWB"]
[null,null,null,null,null,null,null,null,null,null,null,null,null,null,null,null,null,null,null,null,null,null,null,null,null,null,null,null,null,null,null,null,null,null,null,"無線","WB_0410",null,null,null,null,null,null,null,null,null,null,null,null,null,null,null,null,null,null,null,null,null,null,null,null,null,null,null,null,null,null,null,null,null,null,"B040802 インターネットQoS",null,null,null,"B041203 多元接続方式"]
[null,null,null,null,null,null,null,null,null,null,null,null,null,null,null,null,null,null,null,null,null,null,null,null,null,null,null,null,null,null,null,null,null,null,null,"無線システム","WB_0415",null,null,null,null,null,null,null,null,null,null,null,null,null,null,null,null,null,null,null,null,null,null,null,null,null,null,null,null,null,null,null,null,null,null,"B040803 インターネットセキュリティ",null,null,null,"B041204 無線アクセスプロトコル"]
[null,null,null,null,null,null,null,null,null,null,null,null,null,null,null,null,null,null,null,null,null,null,null,null,null,null,null,null,null,null,null,null,null,null,null,"Cエレクトロニクス",null,null,null,null,null,null,null,null,null,null,null,null,null,null,null,null,null,null,null,null,null,null,null,null,null,null,null,null,null,null,null,null,null,null,null,"B040804 インターネットルーチング",null,null,null,"B041205 マルチキャリヤ方式，OFDM"]
[null,null,null,null,null,null,null,null,null,null,null,null,null,null,null,null,null,null,null,null,null,null,null,null,null,null,null,null,null,null,null,null,null,null,null,"マイクロ波，ミリ波","WC_0204",null,null,null,null,null,null,null,null,null,null,null,null,null,null,null,null,null,null,null,null,null,null,null,null,null,null,null,null,null,null,null,null,null,null,"B040805 インターネットサービス",null,null,null,"B041206 ダイバーシチ"]
[null,null,null,null,null,null,null,null,null,null,null,null,null,null,null,null,null,null,null,null,null,null,null,null,null,null,null,null,null,null,null,null,null,null,null,"レーザ・量子エレクトロニクス","WC_0202",null,null,null,null,null,null,null,null,null,null,null,null,null,null,null,null,null,null,null,null,null,null,null,null,null,null,null,null,null,null,null,null,null,null,"B040806 IP テレフォニー",null,null,null,"B041207 耐マルチパスフェージング"]
[null,null,null,null,null,null,null,null,null,null,null,null,null,null,null,null,null,null,null,null,null,null,null,null,null,null,null,null,null,null,null,null,null,null,null,"機構デバイス","WC_0210",null,null,null,null,null,null,null,null,null,null,null,null,null,null,null,null,null,null,null,null,null,null,null,null,null,null,null,null,null,null,null,null,null,null,"B040807 WWW",null,null,null,"B041208 適応等化，干渉除去"]
[null,null,null,null,null,null,null,null,null,null,null,null,null,null,null,null,null,null,null,null,null,null,null,null,null,null,null,null,null,null,null,null,null,null,null,"記録・記憶技術","WC_0216",null,null,null,null,null,null,null,null,null,null,null,null,null,null,null,null,null,null,null,null,null,null,null,null,null,null,null,null,null,null,null,null,null,null,"B040808 インターネット放送",null,null,null,"B041209 無線信号処理"]
[null,null,null,null,null,null,null,null,null,null,null,null,null,null,null,null,null,null,null,null,null,null,null,null,null,null,null,null,null,null,null,null,null,null,null,"光エレクトロニクス","WC_0203",null,null,null,null,null,null,null,null,null,null,null,null,null,null,null,null,null,null,null,null,null,null,null,null,null,null,null,null,null,null,null,null,null,null,"B040809 電子メール",null,null,null,"B041210 無線資源割当，スケジューリング"]
[null,null,null,null,null,null,null,null,null,null,null,null,null,null,null,null,null,null,null,null,null,null,null,null,null,null,null,null,null,null,null,null,null,null,null,"集積エレクトロニクス","WC_0212",null,null,null,null,null,null,null,null,null,null,null,null,null,null,null,null,null,null,null,null,null,null,null,null,null,null,null,null,null,null,null,null,null,null,"B040810 DNS",null,null,null,"B041211 ソフトウェア無線"]
[null,null,null,null,null,null,null,null,null,null,null,null,null,null,null,null,null,null,null,null,null,null,null,null,null,null,null,null,null,null,null,null,null,null,null,"超音波エレクトロニクス","WC_0205",null,null,null,null,null,null,null,null,null,null,null,null,null,null,null,null,null,null,null,null,null,null,null,null,null,null,null,null,null,null,null,null,null,null,"B040811 IoT",null,null,null,"B041212 MIMO，時空間信号処理"]
[null,null,null,null,null,null,null,null,null,null,null,null,null,null,null,null,null,null,null,null,null,null,null,null,null,null,null,null,null,null,null,null,null,null,null,"超伝導エレクトロニクス","WC_0215",null,null,null,null,null,null,null,null,null,null,null,null,null,null,null,null,null,null,null,null,null,null,null,null,null,null,null,null,null,null,null,null,null,null,"B040900 ネットワーク管理・オペレーション",null,null,null,"B041213 アダプティブ・スマートアンテナ"]
[null,null,null,null,null,null,null,null,null,null,null,null,null,null,null,null,null,null,null,null,null,null,null,null,null,null,null,null,null,null,null,null,null,null,null,"電子ディスプレイ","WC_0214",null,null,null,null,null,null,null,null,null,null,null,null,null,null,null,null,null,null,null,null,null,null,null,null,null,null,null,null,null,null,null,null,null,null,"B040901 管理・オペレーションアーキテクチャ",null,null,null,"B041214 光ファイバ無線"]
[null,null,null,null,null,null,null,null,null,null,null,null,null,null,null,null,null,null,null,null,null,null,null,null,null,null,null,null,null,null,null,null,null,null,null,"電子回路","WC_0206",null,null,null,null,null,null,null,null,null,null,null,null,null,null,null,null,null,null,null,null,null,null,null,null,null,null,null,null,null,null,null,null,null,null,"B040902 サービス管理・ビジネス管理",null,null,null,"B041215 周波数有効利用技術"]
[null,null,null,null,null,null,null,null,null,null,null,null,null,null,null,null,null,null,null,null,null,null,null,null,null,null,null,null,null,null,null,null,null,null,null,"電子管，真空・ビーム技術","WC_0213",null,null,null,null,null,null,null,null,null,null,null,null,null,null,null,null,null,null,null,null,null,null,null,null,null,null,null,null,null,null,null,null,null,null,"B040903 分散システム管理・オペレーション",null,null,null,"B041216 電力高効率化技術"]
[null,null,null,null,null,null,null,null,null,null,null,null,null,null,null,null,null,null,null,null,null,null,null,null,null,null,null,null,null,null,null,null,null,null,null,"電子計測・制御","WC_0217",null,null,null,null,null,null,null,null,null,null,null,null,null,null,null,null,null,null,null,null,null,null,null,null,null,null,null,null,null,null,null,null,null,null,"B040904 管理プロトコル・管理モデル・管理プロセス",null,null,null,"B041217 光無線通信"]
[null,null,null,null,null,null,null,null,null,null,null,null,null,null,null,null,null,null,null,null,null,null,null,null,null,null,null,null,null,null,null,null,null,null,null,"電子材料","WC_0207",null,null,null,null,null,null,null,null,null,null,null,null,null,null,null,null,null,null,null,null,null,null,null,null,null,null,null,null,null,null,null,null,null,null,"B040905 障害・構成・性能・課金管理",null,null,null,"B041218 可視光通信"]
[null,null,null,null,null,null,null,null,null,null,null,null,null,null,null,null,null,null,null,null,null,null,null,null,null,null,null,null,null,null,null,null,null,null,null,"電子部品","WC_0209",null,null,null,null,null,null,null,null,null,null,null,null,null,null,null,null,null,null,null,null,null,null,null,null,null,null,null,null,null,null,null,null,null,null,"B040906 セキュリティ管理とそのツール",null,null,null,"B041219 無線回線制御"]
[null,null,null,null,null,null,null,null,null,null,null,null,null,null,null,null,null,null,null,null,null,null,null,null,null,null,null,null,null,null,null,null,null,null,null,"電磁界理論","WC_0201",null,null,null,null,null,null,null,null,null,null,null,null,null,null,null,null,null,null,null,null,null,null,null,null,null,null,null,null,null,null,null,null,null,null,"B040907 セキュリティポリシー",null,null,null,"B041220 通信路推定"]
[null,null,null,null,null,null,null,null,null,null,null,null,null,null,null,null,null,null,null,null,null,null,null,null,null,null,null,null,null,null,null,null,null,null,null,"半導体材料・デバイス","WC_0211",null,null,null,null,null,null,null,null,null,null,null,null,null,null,null,null,null,null,null,null,null,null,null,null,null,null,null,null,null,null,null,null,null,null,"B040908 オペレーションインタフェース",null,null,null,"B041221 同期"]
[null,null,null,null,null,null,null,null,null,null,null,null,null,null,null,null,null,null,null,null,null,null,null,null,null,null,null,null,null,null,null,null,null,null,null,"有機エレクトロニクス","WC_0208",null,null,null,null,null,null,null,null,null,null,null,null,null,null,null,null,null,null,null,null,null,null,null,null,null,null,null,null,null,null,null,null,null,null,"B040909 管理・設定自動化・自動管理",null,null,null,"B041222 リレー，協調通信"]
[null,null,null,null,null,null,null,null,null,null,null,null,null,null,null,null,null,null,null,null,null,null,null,null,null,null,null,null,null,null,null,null,null,null,null,"D情報・システム",null,null,null,null,null,null,null,null,null,null,null,null,null,null,null,null,null,null,null,null,null,null,null,null,null,null,null,null,null,null,null,null,null,null,null,"B040910 プロビジョニング",null,null,null,"B041223 時空間符号"]
[null,null,null,null,null,null,null,null,null,null,null,null,null,null,null,null,null,null,null,null,null,null,null,null,null,null,null,null,null,null,null,null,null,null,null,"オフィスインフォメーションシステム，e-ビジネスモデリング","WD_1410",null,null,null,null,null,null,null,null,null,null,null,null,null,null,null,null,null,null,null,null,null,null,null,null,null,null,null,null,null,null,null,null,null,null,"B040911 トラヒックエンジニアリング",null,null,null,"B041224 物理層セキュリティ"]
[null,null,null,null,null,null,null,null,null,null,null,null,null,null,null,null,null,null,null,null,null,null,null,null,null,null,null,null,null,null,null,null,null,null,null,"コンピュータグラフィックス","WD_2405",null,null,null,null,null,null,null,null,null,null,null,null,null,null,null,null,null,null,null,null,null,null,null,null,null,null,null,null,null,null,null,null,null,null,"B040912 モニタリング",null,null,null,"B041225 電力線搬送通信"]
[null,null,null,null,null,null,null,null,null,null,null,null,null,null,null,null,null,null,null,null,null,null,null,null,null,null,null,null,null,null,null,null,null,null,null,"ソフトウェアシステム","WD_1403",null,null,null,null,null,null,null,null,null,null,null,null,null,null,null,null,null,null,null,null,null,null,null,null,null,null,null,null,null,null,null,null,null,null,null,null,null,null,"B041300 地上無線通信，放送技術"]
[null,null,null,null,null,null,null,null,null,null,null,null,null,null,null,null,null,null,null,null,null,null,null,null,null,null,null,null,null,null,null,null,null,null,null,"ソフトウェア工学","WD_1404",null,null,null,null,null,null,null,null,null,null,null,null,null,null,null,null,null,null,null,null,null,null,null,null,null,null,null,null,null,null,null,null,null,null,null,null,null,null,"B041301 移動通信"]
[null,null,null,null,null,null,null,null,null,null,null,null,null,null,null,null,null,null,null,null,null,null,null,null,null,null,null,null,null,null,null,null,null,null,null,"ディペンダブルコンピューティング","WD_1407",null,null,null,null,null,null,null,null,null,null,null,null,null,null,null,null,null,null,null,null,null,null,null,null,null,null,null,null,null,null,null,null,null,null,null,null,null,null,"B041302 固定無線通信"]
[null,null,null,null,null,null,null,null,null,null,null,null,null,null,null,null,null,null,null,null,null,null,null,null,null,null,null,null,null,null,null,null,null,null,null,"データ工学，Web情報システム","WD_1405",null,null,null,null,null,null,null,null,null,null,null,null,null,null,null,null,null,null,null,null,null,null,null,null,null,null,null,null,null,null,null,null,null,null,null,null,null,null,"B041303 無線LAN"]
[null,null,null,null,null,null,null,null,null,null,null,null,null,null,null,null,null,null,null,null,null,null,null,null,null,null,null,null,null,null,null,null,null,null,null,"バイオサイバネティックス，ニューロコンピューティング","WD_2408",null,null,null,null,null,null,null,null,null,null,null,null,null,null,null,null,null,null,null,null,null,null,null,null,null,null,null,null,null,null,null,null,null,null,null,null,null,null,"B041304 無線アクセス方式"]
[null,null,null,null,null,null,null,null,null,null,null,null,null,null,null,null,null,null,null,null,null,null,null,null,null,null,null,null,null,null,null,null,null,null,null,"パターン認識","WD_2401",null,null,null,null,null,null,null,null,null,null,null,null,null,null,null,null,null,null,null,null,null,null,null,null,null,null,null,null,null,null,null,null,null,null,null,null,null,null,"B041305 アドホック通信"]
[null,null,null,null,null,null,null,null,null,null,null,null,null,null,null,null,null,null,null,null,null,null,null,null,null,null,null,null,null,null,null,null,null,null,null,"ヒューマンコンピュータインタラクション","WD_1409",null,null,null,null,null,null,null,null,null,null,null,null,null,null,null,null,null,null,null,null,null,null,null,null,null,null,null,null,null,null,null,null,null,null,null,null,null,null,"B041306 ユビキタス無線"]
[null,null,null,null,null,null,null,null,null,null,null,null,null,null,null,null,null,null,null,null,null,null,null,null,null,null,null,null,null,null,null,null,null,null,null,"マルチメディア処理","WD_2406",null,null,null,null,null,null,null,null,null,null,null,null,null,null,null,null,null,null,null,null,null,null,null,null,null,null,null,null,null,null,null,null,null,null,null,null,null,null,"B041307 ITS"]
[null,null,null,null,null,null,null,null,null,null,null,null,null,null,null,null,null,null,null,null,null,null,null,null,null,null,null,null,null,null,null,null,null,null,null,"音楽情報処理","WD_2410",null,null,null,null,null,null,null,null,null,null,null,null,null,null,null,null,null,null,null,null,null,null,null,null,null,null,null,null,null,null,null,null,null,null,null,null,null,null,"B041308 マルチホップ・マルチセル無線ネットワーク"]
[null,null,null,null,null,null,null,null,null,null,null,null,null,null,null,null,null,null,null,null,null,null,null,null,null,null,null,null,null,null,null,null,null,null,null,"音声，聴覚D","WD_2402",null,null,null,null,null,null,null,null,null,null,null,null,null,null,null,null,null,null,null,null,null,null,null,null,null,null,null,null,null,null,null,null,null,null,null,null,null,null,"B041309 コグニティブ無線"]
[null,null,null,null,null,null,null,null,null,null,null,null,null,null,null,null,null,null,null,null,null,null,null,null,null,null,null,null,null,null,null,null,null,null,null,"画像・映像処理","WD_2403",null,null,null,null,null,null,null,null,null,null,null,null,null,null,null,null,null,null,null,null,null,null,null,null,null,null,null,null,null,null,null,null,null,null,null,null,null,null,"B041310 放送システム"]
[null,null,null,null,null,null,null,null,null,null,null,null,null,null,null,null,null,null,null,null,null,null,null,null,null,null,null,null,null,null,null,null,null,null,null,"画像認識，コンピュータビジョン","WD_2404",null,null,null,null,null,null,null,null,null,null,null,null,null,null,null,null,null,null,null,null,null,null,null,null,null,null,null,null,null,null,null,null,null,null,null,null,null,null,"B041400 衛星通信"]
[null,null,null,null,null,null,null,null,null,null,null,null,null,null,null,null,null,null,null,null,null,null,null,null,null,null,null,null,null,null,null,null,null,null,null,"感性情報処理","WD_2411",null,null,null,null,null,null,null,null,null,null,null,null,null,null,null,null,null,null,null,null,null,null,null,null,null,null,null,null,null,null,null,null,null,null,null,null,null,null,"B041401 衛星放送"]
[null,null,null,null,null,null,null,null,null,null,null,null,null,null,null,null,null,null,null,null,null,null,null,null,null,null,null,null,null,null,null,null,null,null,null,"教育工学","WD_1411",null,null,null,null,null,null,null,null,null,null,null,null,null,null,null,null,null,null,null,null,null,null,null,null,null,null,null,null,null,null,null,null,null,null,null,null,null,null,"B041402 衛星・地上融合通信システム"]
[null,null,null,null,null,null,null,null,null,null,null,null,null,null,null,null,null,null,null,null,null,null,null,null,null,null,null,null,null,null,null,null,null,null,null,"計算機システム","WD_1402",null,null,null,null,null,null,null,null,null,null,null,null,null,null,null,null,null,null,null,null,null,null,null,null,null,null,null,null,null,null,null,null,null,null,null,null,null,null,"B041403 衛星センサネットワーク"]
[null,null,null,null,null,null,null,null,null,null,null,null,null,null,null,null,null,null,null,null,null,null,null,null,null,null,null,null,null,null,null,null,null,null,null,"自然言語処理","WD_2407",null,null,null,null,null,null,null,null,null,null,null,null,null,null,null,null,null,null,null,null,null,null,null,null,null,null,null,null,null,null,null,null,null,null,null,null,null,null,"B041404 衛星応用システム"]
[null,null,null,null,null,null,null,null,null,null,null,null,null,null,null,null,null,null,null,null,null,null,null,null,null,null,null,null,null,null,null,null,null,null,null,"情報・システム基礎","WD_1401",null,null,null,null,null,null,null,null,null,null,null,null,null,null,null,null,null,null,null,null,null,null,null,null,null,null,null,null,null,null,null,null,null,null,null,null,null,null,"B041405 衛星制御・管理技術"]
[null,null,null,null,null,null,null,null,null,null,null,null,null,null,null,null,null,null,null,null,null,null,null,null,null,null,null,null,null,null,null,null,null,null,null,"情報ネットワーク","WD_1406",null,null,null,null,null,null,null,null,null,null,null,null,null,null,null,null,null,null,null,null,null,null,null,null,null,null,null,null,null,null,null,null,null,null,null,null,null,null,"B041406 衛星通信要素技術"]
[null,null,null,null,null,null,null,null,null,null,null,null,null,null,null,null,null,null,null,null,null,null,null,null,null,null,null,null,null,null,null,null,null,null,null,"人工知能，データマイニング","WD_1408",null,null,null,null,null,null,null,null,null,null,null,null,null,null,null,null,null,null,null,null,null,null,null,null,null,null,null,null,null,null,null,null,null,null,null,null,null,null,"B041407 衛星・地球局ハードウェア"]
[null,null,null,null,null,null,null,null,null,null,null,null,null,null,null,null,null,null,null,null,null,null,null,null,null,null,null,null,null,null,null,null,null,null,null,"生体工学","WD_2409"]
[null,null,null,null,null,null,null,null,null,null,null,null,null,null,null,null,null,null,null,null,null,null,null,null,null,null,null,null,null,null,null,null,null,null,null,"福祉工学","WD_1412"]

{"sheet":"様式００","index":2,"n_rows":681,"n_cols":15,"rows_kept":681,"cut":false,"hidden":true,"merged":[[8,4,8,11],[9,1,10,1],[9,2,9,3],[9,4,9,11],[9,14,11,14],[10,2,10,3],[10,4,10,11],[11,2,11,3],[11,4,11,11],[2,1,2,11],[5,4,5,11],[6,1,6,3],[6,4,6,11],[7,1,7,3],[7,4,7,11],[20,1,20,3],[20,4,20,11],[21,1,21,3],[21,4,21,11],[22,1,24,2],[22,4,22,11],[16,4,16,11],[17,1,17,3],[17,4,17,11],[18,1,18,3],[18,4,18,11],[19,1,19,3],[19,4,19,11],[12,1,12,3],[12,4,12,11],[12,14,21,14],[13,1,13,3],[13,4,13,11],[14,1,14,3],[14,4,14,11],[15,1,15,3],[15,4,15,11],[16,1,16,3],[33,4,33,11],[34,4,34,11],[35,4,35,11],[36,4,36,11],[43,1,43,3],[43,4,43,11],[28,1,28,3],[28,4,28,11],[28,14,36,14],[29,1,36,1],[29,2,32,2],[29,4,29,11],[30,4,30,11],[31,4,31,11],[32,4,32,11],[33,2,36,2],[22,14,24,14],[23,4,23,11],[24,4,24,11],[25,1,27,2],[25,4,25,11],[25,14,27,14],[26,4,26,11],[27,4,27,11],[53,2,57,2],[53,4,53,11],[54,4,54,11],[55,4,55,11],[56,4,56,11],[57,4,57,11],[48,4,48,11],[49,4,49,11],[50,2,50,3],[50,4,50,11],[51,2,52,2],[51,4,51,11],[52,4,52,11],[44,1,57,1],[44,2,44,3],[44,4,44,11],[45,2,45,3],[45,4,45,11],[46,2,46,3],[46,4,46,11],[47,2,47,3],[47,4,47,11],[48,2,48,3],[62,2,62,3],[62,4,62,11],[63,2,67,2],[63,4,63,11],[64,4,64,11],[65,4,65,11],[66,4,66,11],[67,4,67,11],[58,1,58,3],[58,4,58,11],[59,1,67,1],[59,2,59,3],[59,4,59,11],[59,14,67,14],[60,2,60,3],[60,4,60,11],[61,2,61,3],[61,4,61,11],[72,2,72,3],[72,4,72,11],[73,2,77,2],[73,4,73,11],[74,4,74,11],[75,4,75,11],[76,4,76,11],[77,4,77,11],[68,1,68,3],[68,4,68,11],[69,1,77,1],[69,2,69,3],[69,4,69,11],[69,14,76,14],[70,2,70,3],[70,4,70,11],[71,2,71,3],[71,4,71,11],[82,4,82,11],[83,2,83,3],[83,4,83,11],[84,4,84,11],[85,4,85,11],[86,2,87,2],[86,4,86,11],[87,4,87,11],[78,1,78,3],[78,4,78,11],[79,1,87,1],[79,2,79,3],[79,4,79,11],[80,2,80,3],[80,4,80,11],[81,2,81,3],[81,4,81,11],[82,2,82,3],[91,14,97,14],[92,2,92,3],[92,4,92,11],[93,2,97,2],[93,4,93,11],[94,4,94,11],[95,4,95,11],[96,4,96,11],[97,4,97,11],[88,1,88,3],[88,4,88,11],[88,14,90,14],[89,1,97,1],[89,2,89,3],[89,4,89,11],[90,2,90,3],[90,4,90,11],[91,2,91,3],[91,4,91,11],[101,14,107,14],[102,2,102,3],[102,4,102,11],[103,2,107,2],[103,4,103,11],[104,4,104,11],[105,4,105,11],[106,4,106,11],[107,4,107,11],[98,1,98,3],[98,4,98,11],[98,14,100,14],[99,1,107,1],[99,2,99,3],[99,4,99,11],[100,2,100,3],[100,4,100,11],[101,2,101,3],[101,4,101,11],[112,4,112,11],[113,2,113,3],[113,4,113,11],[114,4,114,11],[115,4,115,11],[116,2,117,2],[116,4,116,11],[117,4,117,11],[108,1,108,3],[108,4,108,11],[109,1,117,1],[109,2,109,3],[109,4,109,11],[110,2,110,3],[110,4,110,11],[111,2,111,3],[111,4,111,11],[112,2,112,3],[121,14,127,14],[122,2,122,3],[122,4,122,11],[123,2,127,2],[123,4,123,11],[124,4,124,11],[125,4,125,11],[126,4,126,11],[127,4,127,11],[118,1,118,3],[118,4,118,11],[118,14,120,14],[119,1,127,1],[119,2,119,3],[119,4,119,11],[120,2,120,3],[120,4,120,11],[121,2,121,3],[121,4,121,11],[131,14,137,14],[132,2,132,3],[132,4,132,11],[133,2,137,2],[133,4,133,11],[134,4,134,11],[135,4,135,11],[136,4,136,11],[137,4,137,11],[128,1,128,3],[128,4,128,11],[128,14,130,14],[129,1,137,1],[129,2,129,3],[129,4,129,11],[130,2,130,3],[130,4,130,11],[131,2,131,3],[131,4,131,11],[142,4,142,11],[143,2,143,3],[143,4,143,11],[144,4,144,11],[145,4,145,11],[146,2,147,2],[146,4,146,11],[147,4,147,11],[138,1,138,3],[138,4,138,11],[139,1,147,1],[139,2,139,3],[139,4,139,11],[140,2,140,3],[140,4,140,11],[141,2,141,3],[141,4,141,11],[142,2,142,3],[151,14,157,14],[152,2,152,3],[152,4,152,11],[153,2,157,2],[153,4,153,11],[154,4,154,11],[155,4,155,11],[156,4,156,11],[157,4,157,11],[148,1,148,3],[148,4,148,11],[148,14,150,14],[149,1,157,1],[149,2,149,3],[149,4,149,11],[150,2,150,3],[150,4,150,11],[151,2,151,3],[151,4,151,11],[161,14,167,14],[162,2,162,3],[162,4,162,11],[163,2,167,2],[163,4,163,11],[164,4,164,11],[165,4,165,11],[166,4,166,11],[167,4,167,11],[158,1,158,3],[158,4,158,11],[158,14,160,14],[159,1,167,1],[159,2,159,3],[159,4,159,11],[160,2,160,3],[160,4,160,11],[161,2,161,3],[161,4,161,11],[172,4,172,11],[173,2,173,3],[173,4,173,11],[174,4,174,11],[175,4,175,11],[176,2,177,2],[176,4,176,11],[177,4,177,11],[168,1,168,3],[168,4,168,11],[169,1,177,1],[169,2,169,3],[169,4,169,11],[170,2,170,3],[170,4,170,11],[171,2,171,3],[171,4,171,11],[172,2,172,3],[181,14,187,14],[182,2,182,3],[182,4,182,11],[183,2,187,2],[183,4,183,11],[184,4,184,11],[185,4,185,11],[186,4,186,11],[187,4,187,11],[178,1,178,3],[178,4,178,11],[178,14,180,14],[179,1,187,1],[179,2,179,3],[179,4,179,11],[180,2,180,3],[180,4,180,11],[181,2,181,3],[181,4,181,11],[191,14,197,14],[192,2,192,3],[192,4,192,11],[193,2,197,2],[193,4,193,11],[194,4,194,11],[195,4,195,11],[196,4,196,11],[197,4,197,11],[188,1,188,3],[188,4,188,11],[188,14,190,14],[189,1,197,1],[189,2,189,3],[189,4,189,11],[190,2,190,3],[190,4,190,11],[191,2,191,3],[191,4,191,11],[202,4,202,11],[203,2,203,3],[203,4,203,11],[204,4,204,11],[205,4,205,11],[206,2,207,2],[206,4,206,11],[207,4,207,11],[198,1,198,3],[198,4,198,11],[199,1,207,1],[199,2,199,3],[199,4,199,11],[200,2,200,3],[200,4,200,11],[201,2,201,3],[201,4,201,11],[202,2,202,3],[211,14,217,14],[212,2,212,3],[212,4,212,11],[213,2,217,2],[213,4,213,11],[214,4,214,11],[215,4,215,11],[216,4,216,11],[217,4,217,11],[208,1,208,3],[208,4,208,11],[208,14,210,14],[209,1,217,1],[209,2,209,3],[209,4,209,11],[210,2,210,3],[210,4,210,11],[211,2,211,3],[211,4,211,11],[221,14,227,14],[222,2,222,3],[222,4,222,11],[223,2,227,2],[223,4,223,11],[224,4,224,11],[225,4,225,11],[226,4,226,11],[227,4,227,11],[218,1,218,3],[218,4,218,11],[218,14,220,14],[219,1,227,1],[219,2,219,3],[219,4,219,11],[220,2,220,3],[220,4,220,11],[221,2,221,3],[221,4,221,11],[232,4,232,11],[233,2,233,3],[233,4,233,11],[234,4,234,11],[235,4,235,11],[236,2,237,2],[236,4,236,11],[237,4,237,11],[228,1,228,3],[228,4,228,11],[229,1,237,1],[229,2,229,3],[229,4,229,11],[230,2,230,3],[230,4,230,11],[231,2,231,3],[231,4,231,11],[232,2,232,3],[241,14,247,14],[242,2,242,3],[242,4,242,11],[243,2,247,2],[243,4,243,11],[244,4,244,11],[245,4,245,11],[246,4,246,11],[247,4,247,11],[238,1,238,3],[238,4,238,11],[238,14,240,14],[239,1,247,1],[239,2,239,3],[239,4,239,11],[240,2,240,3],[240,4,240,11],[241,2,241,3],[241,4,241,11],[251,14,257,14],[252,2,252,3],[252,4,252,11],[253,2,257,2],[253,4,253,11],[254,4,254,11],[255,4,255,11],[256,4,256,11],[257,4,257,11],[248,1,248,3],[248,4,248,11],[248,14,250,14],[249,1,257,1],[249,2,249,3],[249,4,249,11],[250,2,250,3],[250,4,250,11],[251,2,251,3],[251,4,251,11],[262,4,262,11],[263,2,263,3],[263,4,263,11],[264,4,264,11],[265,4,265,11],[266,2,267,2],[266,4,266,11],[267,4,267,11],[258,1,258,3],[258,4,258,11],[259,1,267,1],[259,2,259,3],[259,4,259,11],[260,2,260,3],[260,4,260,11],[261,2,261,3],[261,4,261,11],[262,2,262,3],[271,14,277,14],[272,2,272,3],[272,4,272,11],[273,2,277,2],[273,4,273,11],[274,4,274,11],[275,4,275,11],[276,4,276,11],[277,4,277,11],[268,1,268,3],[268,4,268,11],[268,14,270,14],[269,1,277,1],[269,2,269,3],[269,4,269,11],[270,2,270,3],[270,4,270,11],[271,2,271,3],[271,4,271,11],[281,14,287,14],[282,2,282,3],[282,4,282,11],[283,2,287,2],[283,4,283,11],[284,4,284,11],[285,4,285,11],[286,4,286,11],[287,4,287,11],[278,1,278,3],[278,4,278,11],[278,14,280,14],[279,1,287,1],[279,2,279,3],[279,4,279,11],[280,2,280,3],[280,4,280,11],[281,2,281,3],[281,4,281,11],[292,4,292,11],[293,2,293,3],[293,4,293,11],[294,4,294,11],[295,4,295,11],[296,2,297,2],[296,4,296,11],[297,4,297,11],[288,1,288,3],[288,4,288,11],[289,1,297,1],[289,2,289,3],[289,4,289,11],[290,2,290,3],[290,4,290,11],[291,2,291,3],[291,4,291,11],[292,2,292,3],[301,14,307,14],[302,2,302,3],[302,4,302,11],[303,2,307,2],[303,4,303,11],[304,4,304,11],[305,4,305,11],[306,4,306,11],[307,4,307,11],[298,1,298,3],[298,4,298,11],[298,14,300,14],[299,1,307,1],[299,2,299,3],[299,4,299,11],[300,2,300,3],[300,4,300,11],[301,2,301,3],[301,4,301,11],[311,14,317,14],[312,2,312,3],[312,4,312,11],[313,2,317,2],[313,4,313,11],[314,4,314,11],[315,4,315,11],[316,4,316,11],[317,4,317,11],[308,1,308,3],[308,4,308,11],[308,14,310,14],[309,1,317,1],[309,2,309,3],[309,4,309,11],[310,2,310,3],[310,4,310,11],[311,2,311,3],[311,4,311,11],[322,4,322,11],[323,2,323,3],[323,4,323,11],[324,4,324,11],[325,4,325,11],[326,2,327,2],[326,4,326,11],[327,4,327,11],[318,1,318,3],[318,4,318,11],[319,1,327,1],[319,2,319,3],[319,4,319,11],[320,2,320,3],[320,4,320,11],[321,2,321,3],[321,4,321,11],[322,2,322,3],[331,14,337,14],[332,2,332,3],[332,4,332,11],[333,2,337,2],[333,4,333,11],[334,4,334,11],[335,4,335,11],[336,4,336,11],[337,4,337,11],[328,1,328,3],[328,4,328,11],[328,14,330,14],[329,1,337,1],[329,2,329,3],[329,4,329,11],[330,2,330,3],[330,4,330,11],[331,2,331,3],[331,4,331,11],[341,14,347,14],[342,2,342,3],[342,4,342,11],[343,2,347,2],[343,4,343,11],[344,4,344,11],[345,4,345,11],[346,4,346,11],[347,4,347,11],[338,1,338,3],[338,4,338,11],[338,14,340,14],[339,1,347,1],[339,2,339,3],[339,4,339,11],[340,2,340,3],[340,4,340,11],[341,2,341,3],[341,4,341,11],[352,4,352,11],[353,2,353,3],[353,4,353,11],[354,4,354,11],[355,4,355,11],[356,2,357,2],[356,4,356,11],[357,4,357,11],[348,1,348,3],[348,4,348,11],[349,1,357,1],[349,2,349,3],[349,4,349,11],[350,2,350,3],[350,4,350,11],[351,2,351,3],[351,4,351,11],[352,2,352,3],[361,14,367,14],[362,2,362,3],[362,4,362,11],[363,2,367,2],[363,4,363,11],[364,4,364,11],[365,4,365,11],[366,4,366,11],[367,4,367,11],[358,1,358,3],[358,4,358,11],[358,14,360,14],[359,1,367,1],[359,2,359,3],[359,4,359,11],[360,2,360,3],[360,4,360,11],[361,2,361,3],[361,4,361,11],[371,14,377,14],[372,2,372,3],[372,4,372,11],[373,2,377,2],[373,4,373,11],[374,4,374,11],[375,4,375,11],[376,4,376,11],[377,4,377,11],[368,1,368,3],[368,4,368,11],[368,14,370,14],[369,1,377,1],[369,2,369,3],[369,4,369,11],[370,2,370,3],[370,4,370,11],[371,2,371,3],[371,4,371,11],[382,4,382,11],[383,2,383,3],[383,4,383,11],[384,4,384,11],[385,4,385,11],[386,2,387,2],[386,4,386,11],[387,4,387,11],[378,1,378,3],[378,4,378,11],[379,1,387,1],[379,2,379,3],[379,4,379,11],[380,2,380,3],[380,4,380,11],[381,2,381,3],[381,4,381,11],[382,2,382,3],[391,14,397,14],[392,2,392,3],[392,4,392,11],[393,2,397,2],[393,4,393,11],[394,4,394,11],[395,4,395,11],[396,4,396,11],[397,4,397,11],[388,1,388,3],[388,4,388,11],[388,14,390,14],[389,1,397,1],[389,2,389,3],[389,4,389,11],[390,2,390,3],[390,4,390,11],[391,2,391,3],[391,4,391,11],[401,14,407,14],[402,2,402,3],[402,4,402,11],[403,2,407,2],[403,4,403,11],[404,4,404,11],[405,4,405,11],[406,4,406,11],[407,4,407,11],[398,1,398,3],[398,4,398,11],[398,14,400,14],[399,1,407,1],[399,2,399,3],[399,4,399,11],[400,2,400,3],[400,4,400,11],[401,2,401,3],[401,4,401,11],[412,4,412,11],[413,2,413,3],[413,4,413,11],[414,4,414,11],[415,4,415,11],[416,2,417,2],[416,4,416,11],[417,4,417,11],[408,1,408,3],[408,4,408,11],[409,1,417,1],[409,2,409,3],[409,4,409,11],[410,2,410,3],[410,4,410,11],[411,2,411,3],[411,4,411,11],[412,2,412,3],[421,14,427,14],[422,2,422,3],[422,4,422,11],[423,2,427,2],[423,4,423,11],[424,4,424,11],[425,4,425,11],[426,4,426,11],[427,4,427,11],[418,1,418,3],[418,4,418,11],[418,14,420,14],[419,1,427,1],[419,2,419,3],[419,4,419,11],[420,2,420,3],[420,4,420,11],[421,2,421,3],[421,4,421,11],[431,14,437,14],[432,2,432,3],[432,4,432,11],[433,2,437,2],[433,4,433,11],[434,4,434,11],[435,4,435,11],[436,4,436,11],[437,4,437,11],[428,1,428,3],[428,4,428,11],[428,14,430,14],[429,1,437,1],[429,2,429,3],[429,4,429,11],[430,2,430,3],[430,4,430,11],[431,2,431,3],[431,4,431,11],[442,4,442,11],[443,2,443,3],[443,4,443,11],[444,4,444,11],[445,4,445,11],[446,2,447,2],[446,4,446,11],[447,4,447,11],[438,1,438,3],[438,4,438,11],[439,1,447,1],[439,2,439,3],[439,4,439,11],[440,2,440,3],[440,4,440,11],[441,2,441,3],[441,4,441,11],[442,2,442,3],[451,14,457,14],[452,2,452,3],[452,4,452,11],[453,2,457,2],[453,4,453,11],[454,4,454,11],[455,4,455,11],[456,4,456,11],[457,4,457,11],[448,1,448,3],[448,4,448,11],[448,14,450,14],[449,1,457,1],[449,2,449,3],[449,4,449,11],[450,2,450,3],[450,4,450,11],[451,2,451,3],[451,4,451,11],[461,14,467,14],[462,2,462,3],[462,4,462,11],[463,2,467,2],[463,4,463,11],[464,4,464,11],[465,4,465,11],[466,4,466,11],[467,4,467,11],[458,1,458,3],[458,4,458,11],[458,14,460,14],[459,1,467,1],[459,2,459,3],[459,4,459,11],[460,2,460,3],[460,4,460,11],[461,2,461,3],[461,4,461,11],[472,4,472,11],[473,2,473,3],[473,4,473,11],[474,4,474,11],[475,4,475,11],[476,2,477,2],[476,4,476,11],[477,4,477,11],[468,1,468,3],[468,4,468,11],[469,1,477,1],[469,2,469,3],[469,4,469,11],[470,2,470,3],[470,4,470,11],[471,2,471,3],[471,4,471,11],[472,2,472,3],[481,14,487,14],[482,2,482,3],[482,4,482,11],[483,2,487,2],[483,4,483,11],[484,4,484,11],[485,4,485,11],[486,4,486,11],[487,4,487,11],[478,1,478,3],[478,4,478,11],[478,14,480,14],[479,1,487,1],[479,2,479,3],[479,4,479,11],[480,2,480,3],[480,4,480,11],[481,2,481,3],[481,4,481,11],[491,14,497,14],[492,2,492,3],[492,4,492,11],[493,2,497,2],[493,4,493,11],[494,4,494,11],[495,4,495,11],[496,4,496,11],[497,4,497,11],[488,1,488,3],[488,4,488,11],[488,14,490,14],[489,1,497,1],[489,2,489,3],[489,4,489,11],[490,2,490,3],[490,4,490,11],[491,2,491,3],[491,4,491,11],[502,4,502,11],[503,2,503,3],[503,4,503,11],[504,4,504,11],[505,4,505,11],[506,2,507,2],[506,4,506,11],[507,4,507,11],[498,1,498,3],[498,4,498,11],[499,1,507,1],[499,2,499,3],[499,4,499,11],[500,2,500,3],[500,4,500,11],[501,2,501,3],[501,4,501,11],[502,2,502,3],[511,14,517,14],[512,2,512,3],[512,4,512,11],[513,2,517,2],[513,4,513,11],[514,4,514,11],[515,4,515,11],[516,4,516,11],[517,4,517,11],[508,1,508,3],[508,4,508,11],[508,14,510,14],[509,1,517,1],[509,2,509,3],[509,4,509,11],[510,2,510,3],[510,4,510,11],[511,2,511,3],[511,4,511,11],[521,14,527,14],[522,2,522,3],[522,4,522,11],[523,2,527,2],[523,4,523,11],[524,4,524,11],[525,4,525,11],[526,4,526,11],[527,4,527,11],[518,1,518,3],[518,4,518,11],[518,14,520,14],[519,1,527,1],[519,2,519,3],[519,4,519,11],[520,2,520,3],[520,4,520,11],[521,2,521,3],[521,4,521,11],[532,4,532,11],[533,2,533,3],[533,4,533,11],[534,4,534,11],[535,4,535,11],[536,2,537,2],[536,4,536,11],[537,4,537,11],[528,1,528,3],[528,4,528,11],[529,1,537,1],[529,2,529,3],[529,4,529,11],[530,2,530,3],[530,4,530,11],[531,2,531,3],[531,4,531,11],[532,2,532,3],[541,14,547,14],[542,2,542,3],[542,4,542,11],[543,2,547,2],[543,4,543,11],[544,4,544,11],[545,4,545,11],[546,4,546,11],[547,4,547,11],[538,1,538,3],[538,4,538,11],[538,14,540,14],[539,1,547,1],[539,2,539,3],[539,4,539,11],[540,2,540,3],[540,4,540,11],[541,2,541,3],[541,4,541,11],[551,14,557,14],[552,2,552,3]],"merged_total":1248,"flags":["merged_cut"]}
[]
[]
[null,"新規提案書（平成26年度実施提案）　様式００　データ入力シート"]
[]
[null,"※色付きのセルに入力している事項は全て記載例です。提出の際は、記載例は全て削除してください。"]
[null,"1. 提出日",null,null,"2013-12-20",null,null,null,null,null,null,null,null,null,"提出年月日を記載してください。"]
[null,"2. 研究開発課題名",null,null,"○○○○○○○○○○○○○○○○○○○○○○○○○○○○○○○○○○○○○○○○○○○○○○○○○○○○○○○○○○○○○○○○○○の研究開発",null,null,null,null,null,null,null,null,null,"研究開発課題名を記載してください。"]
[null,"3. 提案書受付番号",null,null,"091234567",null,null,null,null,null,null,null,null,null,"SCOPE受付番号（9桁の半角数字）を記載してください。"]
[null,"4. プログラム名",null,null,"ICTイノベーション創出型研究開発",null,null,null,null,null,null,null,null,null,"該当するプログラム名をプルダウンから選択してください。"]
[null,"5. 若手ICT研究者育成型・若手ワイヤレス研究者等育成型","若手研究者の条件",null,"○　or 　×",null,null,null,null,null,null,null,null,null,"該当する場合は○を、該当しない場合は×をプルダウンから選択してください。"]
[null,null,"中小企業の条件",null,"○　or 　×"]
[null,"若手ICT研究者育成型","ビッグデータ利活用のための研究開発",null,"○　or 　×"]
[null,"6. 研究キーワード1",null,null,"光ファイバー",null,null,null,null,null,null,null,null,null,"本研究開発課題に関連するキーワードを可能な限り電子情報通信学会の「専門分野分類表」（http://www.ieice.org/jpn/shiori/pdf/furoku_g.pdf）の中から10程度選んで記載してください。\n記号（\"A010100\"等）ではなく、文字（\"電気音響、音響一般\"等）で記載してください。"]
[null,"   研究キーワード2",null,null,"ミリ波"]
[null,"   研究キーワード3",null,null,"インターネット"]
[null,"   研究キーワード4",null,null,"ネットワークシステム"]
[null,"   研究キーワード5",null,null,"情報セキュリティ"]
[null,"   研究キーワード6",null,null,"超伝導"]
[null,"   研究キーワード7"]
[null,"   研究キーワード8"]
[null,"   研究キーワード9"]
[null,"   研究キーワード10"]
[null,"7. 研究開発期間",null,"開始年度（平成）",24,null,null,null,null,null,null,null,null,null,"半角数字のみ記載してください。若手ICT研究者等育成型研究開発フェーズⅡの課題については、研究開発期間はフェーズⅠを含む平成24年度～平成26年度としてください。"]
[null,null,null,"終了年度（平成）",26]
[null,null,null,"期間（年度）",3]
[null,"8. 年度別フェーズ",null,"平成24年度","Ⅰ　or　Ⅱ",null,null,null,null,null,null,null,null,null,"プルダウンから選択してください。\n平成24年度採択ICTイノベーション創出型研究開発及び地域ICT振興型研究開発については、選択する必要はありません。"]
[null,null,null,"平成25年度","Ⅰ　or　Ⅱ"]
[null,null,null,"平成26年度","Ⅰ　or　Ⅱ"]
[null,"9. 平成26年度研究費（提案額）\n（直接経費のみ、消費税を含む）（千円）",null,null,28000,null,null,null,null,null,null,null,null,null,"消費税を含む直接経費を記載してください。\n該当の無い年度については、記載する必要はありません。\n「9.平成26年度研究費（提案額）」に記載の額と、「10. 年度別研究費一覧」の平成26年度提案額、「様式7 予算計画書」の「直接経費」に記載の額は、一致させてください。"]
[null,"10. 年度別研究費一覧（直接経費のみ、消費税を含む）","提案額\n（千円）","平成24年度",5000]
[null,null,null,"平成25年度",20000]
[null,null,null,"平成26年度",28000]
[null,null,null,"合計",{"$f":"SUM(E30:L32)","v":53000}]
[null,null,"契約額\n（千円）","平成24年度",4000]
[null,null,null,"平成25年度",18000]
[null,null,null,"平成26年度","－"]
[null,null,null,"合計","－"]
[]
[]
[]
[]
[]
[]
[null,"研究代表者の所属機関（機関名のみ）",null,null,"○○×大学"]
[null,"研究代表者","フリガナ",null,"スコウプ　タロウ",null,null,null,null,null,null,null,null,null,"全角カタカナで、姓と名の間に全角スペースを入れて記入してください。"]
[null,null,"氏　　　名",null,"須甲富 太郎",null,null,null,null,null,null,null,null,null,"姓と名の間に全角スペースを入れて記入してください。"]
[null,null,"所属研究科・学部・部署等",null,"○○学部"]
[null,null,"役職",null,"教授"]
[null,null,"所属機関所在地都道府県",null,"○○県"]
[null,null,"年齢","2014-04-01",{"$f":"DATEDIF(E51,D50,\"Y\")","v":52},null,null,null,null,null,null,null,null,null,"半角数字で記載してください。"]
[null,null,"生年月日（西暦）",null,"1961-10-19",null,null,null,null,null,null,null,null,null,"半角数字でyyyy/mm/ddの形式で記載してください。"]
[null,null,"e-Rad情報","研究者番号","12345678",null,null,null,null,null,null,null,null,null,"半角数字で記載してください。"]
[null,null,null,"所属研究機関番号","1234567890",null,null,null,null,null,null,null,null,null,"半角数字で記載してください。"]
[null,null,"連絡先","郵便番号","123-4567",null,null,null,null,null,null,null,null,null,"###-#####の形式で記載してください。（ハイフン有り。）"]
[null,null,null,"住所","東京都○○区○○○1-2-3"]
[null,null,null,"電話番号","03-####-#####"]
[null,null,null,"E-mail","####@##.ne.jp"]
[null,null,null,"E-mail（予備）","####@##.ne.jp",null,null,null,null,null,null,null,null,null,"複数のE-mailを使用する場合は記載してください。"]
[null,"研究分担者の人数",null,null,null,null,null,null,null,null,null,null,null,null,"半角数字のみ記入してください。"]
[null,"研究代表者の所属機関の契約事務等担当者","フリガナ",null,"スコウプ　ジロウ",null,null,null,null,null,null,null,null,null,"研究開発の実施に当たり、委託契約の調整を行います。必ず最新の状況を確認の上で、研究代表者が所属する機関の契約事務等担当者の情報を記載してください。\n※研究代表者は、契約事務等担当者を兼ねることはできません。"]
[null,null,"氏　　　名",null,"須甲富 二郎"]
[null,null,"所属研究科・学部・部署等",null,"○○学部"]
[null,null,"役職",null,"主任"]
[null,null,"連絡先","郵便番号","123-4567"]
[null,null,null,"住所","東京都○○区○○○1-2-3"]
[null,null,null,"電話番号","03-####-#####"]
[null,null,null,"E-mail","####@##.ne.jp"]
[null,null,null,"E-mail（予備）","####@##.ne.jp"]
[null,"未使用",null,null,"未使用"]
[null,"研究代表者の所属機関の経理事務等担当者","フリガナ",null,"スコウプ　サブロウ",null,null,null,null,null,null,null,null,null,"研究開発の実施に当たり、予算執行の調整を行います。必ず最新の状況を確認の上で、研究代表者が所属する機関の経理事務等担当者の情報を記載してください。\n※研究代表者は、経理事務等担当者を兼ねることはできません。\n※契約事務等担当者と同一である場合でも、必ず記載してください。"]
[null,null,"氏　　　名",null,"須甲富 三郎"]
[null,null,"所属研究科・学部・部署等",null,"○○学部"]
[null,null,"役職",null,"係長"]
[null,null,"連絡先","郵便番号","123-4567"]
[null,null,null,"住所","東京都○○区○○○1-2-3"]
[null,null,null,"電話番号","03-####-#####"]
[null,null,null,"E-mail","####@##.ne.jp"]
[null,null,null,"E-mail（予備）","####@##.ne.jp"]
[null,"連携研究者1の所属機関（機関名のみ）",null,null,"○○大学",null,null,null,null,null,null,null,null,null,"研究分担者がいない場合は、以降の項目を記載する必要はありません。"]
[null,"連携研究者1","フリガナ",null,"スコウプ　タロウ",null,null,null,null,null,null,null,null,null,"記載要領は、研究代表者の場合と同一です。"]
[null,null,"氏　　　名",null,"須甲富 太郎"]
[null,null,"所属研究科・学部・部署等",null,"○○学部"]
[null,null,"役職",null,"教授"]
[null,null,"所属機関所在地都道府県",null,"○○県"]
[null,null,"年齢","2014-04-01",{"$f":"DATEDIF(E86,D85,\"Y\")","v":52}]
[null,null,"生年月日（西暦）",null,"1961-10-18"]
[null,null,"e-Rad情報","研究者番号","12345678"]
[null,null,null,"所属研究機関番号","1234567890"]
[null,"契約事務等担当者が同一の研究者",null,null,"なし,研究代表者,研究分担者１,研究分担者２,研究分担者３,研究分担者４,研究分担者５,研究分担者６,研究分担者７,研究分担者８,研究分担者９,研究分担者１０,研究分担者１１,研究分担者１２,研究分担者１３,研究分担者１４,研究分担者１５,研究分担者１６,研究分担者１７,研究分担者１８,研究分担者１９,研究分担者２０",null,null,null,null,null,null,null,null,null,"「なし」を選択した場合は、契約事務等担当者について記入して下さい。「研究代表者」又は「研究分担者1～20」を選択した場合は、契約事務等担当者について記入する必要はありません。"]
[null,"研究分担者1の所属機関の契約事務等担当者","フリガナ",null,"スコウプ　ジロウ"]
[null,null,"氏　　　名",null,"須甲富 二郎"]
[null,null,"所属研究科・学部・部署等",null,"○○学部",null,null,null,null,null,null,null,null,null,"研究開発の実施に当たり、委託契約の調整を行います。必ず最新の状況を確認の上で、研究分担者が所属する機関の契約事務等担当者の情報を記載してください。\n※研究分担者は、契約事務等担当者を兼ねることはできません。"]
[null,null,"役職",null,"主任"]
[null,null,"連絡先","郵便番号","123-4567"]
[null,null,null,"住所","東京都○○区○○○1-2-3"]
[null,null,null,"電話番号","03-####-#####"]
[null,null,null,"E-mail","####@##.ne.jp"]
[null,null,null,"E-mail（予備）","####@##.ne.jp"]
[null,"経理事務等担当者が同一の研究者",null,null,"なし,研究代表者,研究分担者１,研究分担者２,研究分担者３,研究分担者４,研究分担者５,研究分担者６,研究分担者７,研究分担者８,研究分担者９,研究分担者１０,研究分担者１１,研究分担者１２,研究分担者１３,研究分担者１４,研究分担者１５,研究分担者１６,研究分担者１７,研究分担者１８,研究分担者１９,研究分担者２０",null,null,null,null,null,null,null,null,null,"「なし」を選択した場合は、経理事務等担当者について記入して下さい。「研究代表者」又は「研究分担者1～20」を選択した場合は、経理事務等担当者について記入する必要はありません。"]
[null,"研究分担者1の所属機関の経理事務等担当者","フリガナ",null,"スコウプ　サブロウ"]
[null,null,"氏　　　名",null,"須甲富 三郎"]
[null,null,"所属研究科・学部・部署等",null,"○○学部",null,null,null,null,null,null,null,null,null,"研究開発の実施に当たり、予算執行の調整を行います。必ず最新の状況を確認の上で、研究分担者が所属する機関の経理事務等担当者の情報を記載してください。\n※研究分担者は、経理事務等担当者を兼ねることはできません。\n※契約事務等担当者と同一である場合でも、必ず記載してください。"]
[null,null,"役職",null,"係長"]
[null,null,"連絡先","郵便番号","123-4567"]
[null,null,null,"住所","東京都○○区○○○1-2-3"]
[null,null,null,"電話番号","03-####-#####"]
[null,null,null,"E-mail","####@##.ne.jp"]
[null,null,null,"E-mail（予備）","####@##.ne.jp"]
[null,"連携研究者2の所属機関（機関名のみ）",null,null,"○○大学",null,null,null,null,null,null,null,null,null,"研究分担者がいない場合は、以降の項目を記載する必要はありません。"]
[null,"連携研究者2","フリガナ",null,"スコウプ　タロウ",null,null,null,null,null,null,null,null,null,"記載要領は、研究代表者の場合と同一です。"]
[null,null,"氏　　　名",null,"須甲富 太郎"]
[null,null,"所属研究科・学部・部署等",null,"○○学部"]
[null,null,"役職",null,"教授"]
[null,null,"所属機関所在地都道府県",null,"○○県"]
[null,null,"年齢","2014-04-01",{"$f":"DATEDIF(E116,D115,\"Y\")","v":52}]
[null,null,"生年月日（西暦）",null,"1961-10-18"]
[null,null,"e-Rad情報","研究者番号","12345678"]
[null,null,null,"所属研究機関番号","1234567890"]
[null,"契約事務等担当者が同一の研究者",null,null,"なし,研究代表者,研究分担者１,研究分担者２,研究分担者３,研究分担者４,研究分担者５,研究分担者６,研究分担者７,研究分担者８,研究分担者９,研究分担者１０,研究分担者１１,研究分担者１２,研究分担者１３,研究分担者１４,研究分担者１５,研究分担者１６,研究分担者１７,研究分担者１８,研究分担者１９,研究分担者２０",null,null,null,null,null,null,null,null,null,"「なし」を選択した場合は、契約事務等担当者について記入して下さい。「研究代表者」又は「研究分担者1～20」を選択した場合は、契約事務等担当者について記入する必要はありません。"]
[null,"研究分担者2の所属機関の契約事務等担当者","フリガナ",null,"スコウプ　ジロウ"]
[null,null,"氏　　　名",null,"須甲富 二郎"]
[null,null,"所属研究科・学部・部署等",null,"○○学部",null,null,null,null,null,null,null,null,null,"研究開発の実施に当たり、委託契約の調整を行います。必ず最新の状況を確認の上で、研究分担者が所属する機関の契約事務等担当者の情報を記載してください。\n※研究分担者は、契約事務等担当者を兼ねることはできません。"]
[null,null,"役職",null,"主任"]
[null,null,"連絡先","郵便番号","123-4567"]
[null,null,null,"住所","東京都○○区○○○1-2-3"]
[null,null,null,"電話番号","03-####-#####"]
[null,null,null,"E-mail","####@##.ne.jp"]
[null,null,null,"E-mail（予備）","####@##.ne.jp"]
[null,"経理事務等担当者が同一の研究者",null,null,"なし,研究代表者,研究分担者１,研究分担者２,研究分担者３,研究分担者４,研究分担者５,研究分担者６,研究分担者７,研究分担者８,研究分担者９,研究分担者１０,研究分担者１１,研究分担者１２,研究分担者１３,研究分担者１４,研究分担者１５,研究分担者１６,研究分担者１７,研究分担者１８,研究分担者１９,研究分担者２０",null,null,null,null,null,null,null,null,null,"「なし」を選択した場合は、経理事務等担当者について記入して下さい。「研究代表者」又は「研究分担者1～20」を選択した場合は、経理事務等担当者について記入する必要はありません。"]
[null,"研究分担者2の所属機関の経理事務等担当者","フリガナ",null,"スコウプ　サブロウ"]
[null,null,"氏　　　名",null,"須甲富 三郎"]
[null,null,"所属研究科・学部・部署等",null,"○○学部",null,null,null,null,null,null,null,null,null,"研究開発の実施に当たり、予算執行の調整を行います。必ず最新の状況を確認の上で、研究分担者が所属する機関の経理事務等担当者の情報を記載してください。\n※研究分担者は、経理事務等担当者を兼ねることはできません。\n※契約事務等担当者と同一である場合でも、必ず記載してください。"]
[null,null,"役職",null,"係長"]
[null,null,"連絡先","郵便番号","123-4567"]
[null,null,null,"住所","東京都○○区○○○1-2-3"]
[null,null,null,"電話番号","03-####-#####"]
[null,null,null,"E-mail","####@##.ne.jp"]
[null,null,null,"E-mail（予備）","####@##.ne.jp"]
[null,"連携研究者3の所属機関（機関名のみ）",null,null,"○○大学",null,null,null,null,null,null,null,null,null,"研究分担者がいない場合は、以降の項目を記載する必要はありません。"]
[null,"連携研究者3","フリガナ",null,"スコウプ　タロウ",null,null,null,null,null,null,null,null,null,"記載要領は、研究代表者の場合と同一です。"]
[null,null,"氏　　　名",null,"須甲富 太郎"]
[null,null,"所属研究科・学部・部署等",null,"○○学部"]
[null,null,"役職",null,"教授"]
[null,null,"所属機関所在地都道府県",null,"○○県"]
[null,null,"年齢","2014-04-01",{"$f":"DATEDIF(E146,D145,\"Y\")","v":52}]
[null,null,"生年月日（西暦）",null,"1961-10-18"]
[null,null,"e-Rad情報","研究者番号","12345678"]
[null,null,null,"所属研究機関番号","1234567890"]
[null,"契約事務等担当者が同一の研究者",null,null,"なし,研究代表者,研究分担者１,研究分担者２,研究分担者３,研究分担者４,研究分担者５,研究分担者６,研究分担者７,研究分担者８,研究分担者９,研究分担者１０,研究分担者１１,研究分担者１２,研究分担者１３,研究分担者１４,研究分担者１５,研究分担者１６,研究分担者１７,研究分担者１８,研究分担者１９,研究分担者２０",null,null,null,null,null,null,null,null,null,"「なし」を選択した場合は、契約事務等担当者について記入して下さい。「研究代表者」又は「研究分担者1～20」を選択した場合は、契約事務等担当者について記入する必要はありません。"]
[null,"研究分担者3の所属機関の契約事務等担当者","フリガナ",null,"スコウプ　ジロウ"]
[null,null,"氏　　　名",null,"須甲富 二郎"]
[null,null,"所属研究科・学部・部署等",null,"○○学部",null,null,null,null,null,null,null,null,null,"研究開発の実施に当たり、委託契約の調整を行います。必ず最新の状況を確認の上で、研究分担者が所属する機関の契約事務等担当者の情報を記載してください。\n※研究分担者は、契約事務等担当者を兼ねることはできません。"]
[null,null,"役職",null,"主任"]
[null,null,"連絡先","郵便番号","123-4567"]
[null,null,null,"住所","東京都○○区○○○1-2-3"]
[null,null,null,"電話番号","03-####-#####"]
[null,null,null,"E-mail","####@##.ne.jp"]
[null,null,null,"E-mail（予備）","####@##.ne.jp"]
[null,"経理事務等担当者が同一の研究者",null,null,"なし,研究代表者,研究分担者１,研究分担者２,研究分担者３,研究分担者４,研究分担者５,研究分担者６,研究分担者７,研究分担者８,研究分担者９,研究分担者１０,研究分担者１１,研究分担者１２,研究分担者１３,研究分担者１４,研究分担者１５,研究分担者１６,研究分担者１７,研究分担者１８,研究分担者１９,研究分担者２０",null,null,null,null,null,null,null,null,null,"「なし」を選択した場合は、経理事務等担当者について記入して下さい。「研究代表者」又は「研究分担者1～20」を選択した場合は、経理事務等担当者について記入する必要はありません。"]
[null,"研究分担者3の所属機関の経理事務等担当者","フリガナ",null,"スコウプ　サブロウ"]
[null,null,"氏　　　名",null,"須甲富 三郎"]
[null,null,"所属研究科・学部・部署等",null,"○○学部",null,null,null,null,null,null,null,null,null,"研究開発の実施に当たり、予算執行の調整を行います。必ず最新の状況を確認の上で、研究分担者が所属する機関の経理事務等担当者の情報を記載してください。\n※研究分担者は、経理事務等担当者を兼ねることはできません。\n※契約事務等担当者と同一である場合でも、必ず記載してください。"]
[null,null,"役職",null,"係長"]
[null,null,"連絡先","郵便番号","123-4567"]
[null,null,null,"住所","東京都○○区○○○1-2-3"]
[null,null,null,"電話番号","03-####-#####"]
[null,null,null,"E-mail","####@##.ne.jp"]
[null,null,null,"E-mail（予備）","####@##.ne.jp"]
[null,"連携研究者4の所属機関（機関名のみ）",null,null,"○○大学",null,null,null,null,null,null,null,null,null,"研究分担者がいない場合は、以降の項目を記載する必要はありません。"]
[null,"連携研究者4","フリガナ",null,"スコウプ　タロウ",null,null,null,null,null,null,null,null,null,"記載要領は、研究代表者の場合と同一です。"]
[null,null,"氏　　　名",null,"須甲富 太郎"]
[null,null,"所属研究科・学部・部署等",null,"○○学部"]
[null,null,"役職",null,"教授"]
[null,null,"所属機関所在地都道府県",null,"○○県"]
[null,null,"年齢","2014-04-01",{"$f":"DATEDIF(E176,D175,\"Y\")","v":52}]
[null,null,"生年月日（西暦）",null,"1961-10-18"]
[null,null,"e-Rad情報","研究者番号","12345678"]
[null,null,null,"所属研究機関番号","1234567890"]
[null,"契約事務等担当者が同一の研究者",null,null,"なし,研究代表者,研究分担者１,研究分担者２,研究分担者３,研究分担者４,研究分担者５,研究分担者６,研究分担者７,研究分担者８,研究分担者９,研究分担者１０,研究分担者１１,研究分担者１２,研究分担者１３,研究分担者１４,研究分担者１５,研究分担者１６,研究分担者１７,研究分担者１８,研究分担者１９,研究分担者２０",null,null,null,null,null,null,null,null,null,"「なし」を選択した場合は、契約事務等担当者について記入して下さい。「研究代表者」又は「研究分担者1～20」を選択した場合は、契約事務等担当者について記入する必要はありません。"]
[null,"研究分担者4の所属機関の契約事務等担当者","フリガナ",null,"スコウプ　ジロウ"]
[null,null,"氏　　　名",null,"須甲富 二郎"]
[null,null,"所属研究科・学部・部署等",null,"○○学部",null,null,null,null,null,null,null,null,null,"研究開発の実施に当たり、委託契約の調整を行います。必ず最新の状況を確認の上で、研究分担者が所属する機関の契約事務等担当者の情報を記載してください。\n※研究分担者は、契約事務等担当者を兼ねることはできません。"]
[null,null,"役職",null,"主任"]
[null,null,"連絡先","郵便番号","123-4567"]
[null,null,null,"住所","東京都○○区○○○1-2-3"]
[null,null,null,"電話番号","03-####-#####"]
[null,null,null,"E-mail","####@##.ne.jp"]
[null,null,null,"E-mail（予備）","####@##.ne.jp"]
[null,"経理事務等担当者が同一の研究者",null,null,"なし,研究代表者,研究分担者１,研究分担者２,研究分担者３,研究分担者４,研究分担者５,研究分担者６,研究分担者７,研究分担者８,研究分担者９,研究分担者１０,研究分担者１１,研究分担者１２,研究分担者１３,研究分担者１４,研究分担者１５,研究分担者１６,研究分担者１７,研究分担者１８,研究分担者１９,研究分担者２０",null,null,null,null,null,null,null,null,null,"「なし」を選択した場合は、経理事務等担当者について記入して下さい。「研究代表者」又は「研究分担者1～20」を選択した場合は、経理事務等担当者について記入する必要はありません。"]
[null,"研究分担者4の所属機関の経理事務等担当者","フリガナ",null,"スコウプ　サブロウ"]
[null,null,"氏　　　名",null,"須甲富 三郎"]
[null,null,"所属研究科・学部・部署等",null,"○○学部",null,null,null,null,null,null,null,null,null,"研究開発の実施に当たり、予算執行の調整を行います。必ず最新の状況を確認の上で、研究分担者が所属する機関の経理事務等担当者の情報を記載してください。\n※研究分担者は、経理事務等担当者を兼ねることはできません。\n※契約事務等担当者と同一である場合でも、必ず記載してください。"]
[null,null,"役職",null,"係長"]
[null,null,"連絡先","郵便番号","123-4567"]
[null,null,null,"住所","東京都○○区○○○1-2-3"]
[null,null,null,"電話番号","03-####-#####"]
[null,null,null,"E-mail","####@##.ne.jp"]
[null,null,null,"E-mail（予備）","####@##.ne.jp"]
[null,"連携研究者5の所属機関（機関名のみ）",null,null,"○○大学",null,null,null,null,null,null,null,null,null,"研究分担者がいない場合は、以降の項目を記載する必要はありません。"]
[null,"連携研究者5","フリガナ",null,"スコウプ　タロウ",null,null,null,null,null,null,null,null,null,"記載要領は、研究代表者の場合と同一です。"]
[null,null,"氏　　　名",null,"須甲富 太郎"]
[null,null,"所属研究科・学部・部署等",null,"○○学部"]
[null,null,"役職",null,"教授"]
[null,null,"所属機関所在地都道府県",null,"○○県"]
[null,null,"年齢","2014-04-01",{"$f":"DATEDIF(E206,D205,\"Y\")","v":52}]
[null,null,"生年月日（西暦）",null,"1961-10-18"]
[null,null,"e-Rad情報","研究者番号","12345678"]
[null,null,null,"所属研究機関番号","1234567890"]
[null,"契約事務等担当者が同一の研究者",null,null,"なし,研究代表者,研究分担者１,研究分担者２,研究分担者３,研究分担者４,研究分担者５,研究分担者６,研究分担者７,研究分担者８,研究分担者９,研究分担者１０,研究分担者１１,研究分担者１２,研究分担者１３,研究分担者１４,研究分担者１５,研究分担者１６,研究分担者１７,研究分担者１８,研究分担者１９,研究分担者２０",null,null,null,null,null,null,null,null,null,"「なし」を選択した場合は、契約事務等担当者について記入して下さい。「研究代表者」又は「研究分担者1～20」を選択した場合は、契約事務等担当者について記入する必要はありません。"]
[null,"研究分担者5の所属機関の契約事務等担当者","フリガナ",null,"スコウプ　ジロウ"]
[null,null,"氏　　　名",null,"須甲富 二郎"]
[null,null,"所属研究科・学部・部署等",null,"○○学部",null,null,null,null,null,null,null,null,null,"研究開発の実施に当たり、委託契約の調整を行います。必ず最新の状況を確認の上で、研究分担者が所属する機関の契約事務等担当者の情報を記載してください。\n※研究分担者は、契約事務等担当者を兼ねることはできません。"]
[null,null,"役職",null,"主任"]
[null,null,"連絡先","郵便番号","123-4567"]
[null,null,null,"住所","東京都○○区○○○1-2-3"]
[null,null,null,"電話番号","03-####-#####"]
[null,null,null,"E-mail","####@##.ne.jp"]
[null,null,null,"E-mail（予備）","####@##.ne.jp"]
[null,"経理事務等担当者が同一の研究者",null,null,"なし,研究代表者,研究分担者１,研究分担者２,研究分担者３,研究分担者４,研究分担者５,研究分担者６,研究分担者７,研究分担者８,研究分担者９,研究分担者１０,研究分担者１１,研究分担者１２,研究分担者１３,研究分担者１４,研究分担者１５,研究分担者１６,研究分担者１７,研究分担者１８,研究分担者１９,研究分担者２０",null,null,null,null,null,null,null,null,null,"「なし」を選択した場合は、経理事務等担当者について記入して下さい。「研究代表者」又は「研究分担者1～20」を選択した場合は、経理事務等担当者について記入する必要はありません。"]
[null,"研究分担者5の所属機関の経理事務等担当者","フリガナ",null,"スコウプ　サブロウ"]
[null,null,"氏　　　名",null,"須甲富 三郎"]
[null,null,"所属研究科・学部・部署等",null,"○○学部",null,null,null,null,null,null,null,null,null,"研究開発の実施に当たり、予算執行の調整を行います。必ず最新の状況を確認の上で、研究分担者が所属する機関の経理事務等担当者の情報を記載してください。\n※研究分担者は、経理事務等担当者を兼ねることはできません。\n※契約事務等担当者と同一である場合でも、必ず記載してください。"]
[null,null,"役職",null,"係長"]
[null,null,"連絡先","郵便番号","123-4567"]
[null,null,null,"住所","東京都○○区○○○1-2-3"]
[null,null,null,"電話番号","03-####-#####"]
[null,null,null,"E-mail","####@##.ne.jp"]
[null,null,null,"E-mail（予備）","####@##.ne.jp"]
[null,"連携研究者6の所属機関（機関名のみ）",null,null,"○○大学",null,null,null,null,null,null,null,null,null,"研究分担者がいない場合は、以降の項目を記載する必要はありません。"]
[null,"連携研究者6","フリガナ",null,"スコウプ　タロウ",null,null,null,null,null,null,null,null,null,"記載要領は、研究代表者の場合と同一です。"]
[null,null,"氏　　　名",null,"須甲富 太郎"]
[null,null,"所属研究科・学部・部署等",null,"○○学部"]
[null,null,"役職",null,"教授"]
[null,null,"所属機関所在地都道府県",null,"○○県"]
[null,null,"年齢","2014-04-01",{"$f":"DATEDIF(E236,D235,\"Y\")","v":52}]
[null,null,"生年月日（西暦）",null,"1961-10-18"]
[null,null,"e-Rad情報","研究者番号","12345678"]
[null,null,null,"所属研究機関番号","1234567890"]
[null,"契約事務等担当者が同一の研究者",null,null,"なし,研究代表者,研究分担者１,研究分担者２,研究分担者３,研究分担者４,研究分担者５,研究分担者６,研究分担者７,研究分担者８,研究分担者９,研究分担者１０,研究分担者１１,研究分担者１２,研究分担者１３,研究分担者１４,研究分担者１５,研究分担者１６,研究分担者１７,研究分担者１８,研究分担者１９,研究分担者２０",null,null,null,null,null,null,null,null,null,"「なし」を選択した場合は、契約事務等担当者について記入して下さい。「研究代表者」又は「研究分担者1～20」を選択した場合は、契約事務等担当者について記入する必要はありません。"]
[null,"研究分担者6の所属機関の契約事務等担当者","フリガナ",null,"スコウプ　ジロウ"]
[null,null,"氏　　　名",null,"須甲富 二郎"]
[null,null,"所属研究科・学部・部署等",null,"○○学部",null,null,null,null,null,null,null,null,null,"研究開発の実施に当たり、委託契約の調整を行います。必ず最新の状況を確認の上で、研究分担者が所属する機関の契約事務等担当者の情報を記載してください。\n※研究分担者は、契約事務等担当者を兼ねることはできません。"]
[null,null,"役職",null,"主任"]
[null,null,"連絡先","郵便番号","123-4567"]
[null,null,null,"住所","東京都○○区○○○1-2-3"]
[null,null,null,"電話番号","03-####-#####"]
[null,null,null,"E-mail","####@##.ne.jp"]
[null,null,null,"E-mail（予備）","####@##.ne.jp"]
[null,"経理事務等担当者が同一の研究者",null,null,"なし,研究代表者,研究分担者１,研究分担者２,研究分担者３,研究分担者４,研究分担者５,研究分担者６,研究分担者７,研究分担者８,研究分担者９,研究分担者１０,研究分担者１１,研究分担者１２,研究分担者１３,研究分担者１４,研究分担者１５,研究分担者１６,研究分担者１７,研究分担者１８,研究分担者１９,研究分担者２０",null,null,null,null,null,null,null,null,null,"「なし」を選択した場合は、経理事務等担当者について記入して下さい。「研究代表者」又は「研究分担者1～20」を選択した場合は、経理事務等担当者について記入する必要はありません。"]
[null,"研究分担者6の所属機関の経理事務等担当者","フリガナ",null,"スコウプ　サブロウ"]
[null,null,"氏　　　名",null,"須甲富 三郎"]
[null,null,"所属研究科・学部・部署等",null,"○○学部",null,null,null,null,null,null,null,null,null,"研究開発の実施に当たり、予算執行の調整を行います。必ず最新の状況を確認の上で、研究分担者が所属する機関の経理事務等担当者の情報を記載してください。\n※研究分担者は、経理事務等担当者を兼ねることはできません。\n※契約事務等担当者と同一である場合でも、必ず記載してください。"]
[null,null,"役職",null,"係長"]
[null,null,"連絡先","郵便番号","123-4567"]
[null,null,null,"住所","東京都○○区○○○1-2-3"]
[null,null,null,"電話番号","03-####-#####"]
[null,null,null,"E-mail","####@##.ne.jp"]
[null,null,null,"E-mail（予備）","####@##.ne.jp"]
[null,"連携研究者7の所属機関（機関名のみ）",null,null,"○○大学",null,null,null,null,null,null,null,null,null,"研究分担者がいない場合は、以降の項目を記載する必要はありません。"]
[null,"連携研究者7","フリガナ",null,"スコウプ　タロウ",null,null,null,null,null,null,null,null,null,"記載要領は、研究代表者の場合と同一です。"]
[null,null,"氏　　　名",null,"須甲富 太郎"]
[null,null,"所属研究科・学部・部署等",null,"○○学部"]
[null,null,"役職",null,"教授"]
[null,null,"所属機関所在地都道府県",null,"○○県"]
[null,null,"年齢","2014-04-01",{"$f":"DATEDIF(E266,D265,\"Y\")","v":52}]
[null,null,"生年月日（西暦）",null,"1961-10-18"]
[null,null,"e-Rad情報","研究者番号","12345678"]
[null,null,null,"所属研究機関番号","1234567890"]
[null,"契約事務等担当者が同一の研究者",null,null,"なし,研究代表者,研究分担者１,研究分担者２,研究分担者３,研究分担者４,研究分担者５,研究分担者６,研究分担者７,研究分担者８,研究分担者９,研究分担者１０,研究分担者１１,研究分担者１２,研究分担者１３,研究分担者１４,研究分担者１５,研究分担者１６,研究分担者１７,研究分担者１８,研究分担者１９,研究分担者２０",null,null,null,null,null,null,null,null,null,"「なし」を選択した場合は、契約事務等担当者について記入して下さい。「研究代表者」又は「研究分担者1～20」を選択した場合は、契約事務等担当者について記入する必要はありません。"]
[null,"研究分担者7の所属機関の契約事務等担当者","フリガナ",null,"スコウプ　ジロウ"]
[null,null,"氏　　　名",null,"須甲富 二郎"]
[null,null,"所属研究科・学部・部署等",null,"○○学部",null,null,null,null,null,null,null,null,null,"研究開発の実施に当たり、委託契約の調整を行います。必ず最新の状況を確認の上で、研究分担者が所属する機関の契約事務等担当者の情報を記載してください。\n※研究分担者は、契約事務等担当者を兼ねることはできません。"]
[null,null,"役職",null,"主任"]
[null,null,"連絡先","郵便番号","123-4567"]
[null,null,null,"住所","東京都○○区○○○1-2-3"]
[null,null,null,"電話番号","03-####-#####"]
[null,null,null,"E-mail","####@##.ne.jp"]
[null,null,null,"E-mail（予備）","####@##.ne.jp"]
[null,"経理事務等担当者が同一の研究者",null,null,"なし,研究代表者,研究分担者１,研究分担者２,研究分担者３,研究分担者４,研究分担者５,研究分担者６,研究分担者７,研究分担者８,研究分担者９,研究分担者１０,研究分担者１１,研究分担者１２,研究分担者１３,研究分担者１４,研究分担者１５,研究分担者１６,研究分担者１７,研究分担者１８,研究分担者１９,研究分担者２０",null,null,null,null,null,null,null,null,null,"「なし」を選択した場合は、経理事務等担当者について記入して下さい。「研究代表者」又は「研究分担者1～20」を選択した場合は、経理事務等担当者について記入する必要はありません。"]
[null,"研究分担者7の所属機関の経理事務等担当者","フリガナ",null,"スコウプ　サブロウ"]
[null,null,"氏　　　名",null,"須甲富 三郎"]
[null,null,"所属研究科・学部・部署等",null,"○○学部",null,null,null,null,null,null,null,null,null,"研究開発の実施に当たり、予算執行の調整を行います。必ず最新の状況を確認の上で、研究分担者が所属する機関の経理事務等担当者の情報を記載してください。\n※研究分担者は、経理事務等担当者を兼ねることはできません。\n※契約事務等担当者と同一である場合でも、必ず記載してください。"]
[null,null,"役職",null,"係長"]
[null,null,"連絡先","郵便番号","123-4567"]
[null,null,null,"住所","東京都○○区○○○1-2-3"]
[null,null,null,"電話番号","03-####-#####"]
[null,null,null,"E-mail","####@##.ne.jp"]
[null,null,null,"E-mail（予備）","####@##.ne.jp"]
[null,"連携研究者8の所属機関（機関名のみ）",null,null,"○○大学",null,null,null,null,null,null,null,null,null,"研究分担者がいない場合は、以降の項目を記載する必要はありません。"]
[null,"連携研究者8","フリガナ",null,"スコウプ　タロウ",null,null,null,null,null,null,null,null,null,"記載要領は、研究代表者の場合と同一です。"]
[null,null,"氏　　　名",null,"須甲富 太郎"]
[null,null,"所属研究科・学部・部署等",null,"○○学部"]
[null,null,"役職",null,"教授"]
[null,null,"所属機関所在地都道府県",null,"○○県"]
[null,null,"年齢","2014-04-01",{"$f":"DATEDIF(E296,D295,\"Y\")","v":52}]
[null,null,"生年月日（西暦）",null,"1961-10-18"]
[null,null,"e-Rad情報","研究者番号","12345678"]
[null,null,null,"所属研究機関番号","1234567890"]
[null,"契約事務等担当者が同一の研究者",null,null,"なし,研究代表者,研究分担者１,研究分担者２,研究分担者３,研究分担者４,研究分担者５,研究分担者６,研究分担者７,研究分担者８,研究分担者９,研究分担者１０,研究分担者１１,研究分担者１２,研究分担者１３,研究分担者１４,研究分担者１５,研究分担者１６,研究分担者１７,研究分担者１８,研究分担者１９,研究分担者２０",null,null,null,null,null,null,null,null,null,"「なし」を選択した場合は、契約事務等担当者について記入して下さい。「研究代表者」又は「研究分担者1～20」を選択した場合は、契約事務等担当者について記入する必要はありません。"]
[null,"研究分担者8の所属機関の契約事務等担当者","フリガナ",null,"スコウプ　ジロウ"]
[null,null,"氏　　　名",null,"須甲富 二郎"]
[null,null,"所属研究科・学部・部署等",null,"○○学部",null,null,null,null,null,null,null,null,null,"研究開発の実施に当たり、委託契約の調整を行います。必ず最新の状況を確認の上で、研究分担者が所属する機関の契約事務等担当者の情報を記載してください。\n※研究分担者は、契約事務等担当者を兼ねることはできません。"]
[null,null,"役職",null,"主任"]
[null,null,"連絡先","郵便番号","123-4567"]
[null,null,null,"住所","東京都○○区○○○1-2-3"]
[null,null,null,"電話番号","03-####-#####"]
[null,null,null,"E-mail","####@##.ne.jp"]
[null,null,null,"E-mail（予備）","####@##.ne.jp"]
[null,"経理事務等担当者が同一の研究者",null,null,"なし,研究代表者,研究分担者１,研究分担者２,研究分担者３,研究分担者４,研究分担者５,研究分担者６,研究分担者７,研究分担者８,研究分担者９,研究分担者１０,研究分担者１１,研究分担者１２,研究分担者１３,研究分担者１４,研究分担者１５,研究分担者１６,研究分担者１７,研究分担者１８,研究分担者１９,研究分担者２０",null,null,null,null,null,null,null,null,null,"「なし」を選択した場合は、経理事務等担当者について記入して下さい。「研究代表者」又は「研究分担者1～20」を選択した場合は、経理事務等担当者について記入する必要はありません。"]
[null,"研究分担者8の所属機関の経理事務等担当者","フリガナ",null,"スコウプ　サブロウ"]
[null,null,"氏　　　名",null,"須甲富 三郎"]
[null,null,"所属研究科・学部・部署等",null,"○○学部",null,null,null,null,null,null,null,null,null,"研究開発の実施に当たり、予算執行の調整を行います。必ず最新の状況を確認の上で、研究分担者が所属する機関の経理事務等担当者の情報を記載してください。\n※研究分担者は、経理事務等担当者を兼ねることはできません。\n※契約事務等担当者と同一である場合でも、必ず記載してください。"]
[null,null,"役職",null,"係長"]
[null,null,"連絡先","郵便番号","123-4567"]
[null,null,null,"住所","東京都○○区○○○1-2-3"]
[null,null,null,"電話番号","03-####-#####"]
[null,null,null,"E-mail","####@##.ne.jp"]
[null,null,null,"E-mail（予備）","####@##.ne.jp"]
[null,"連携研究者9の所属機関（機関名のみ）",null,null,"○○大学",null,null,null,null,null,null,null,null,null,"研究分担者がいない場合は、以降の項目を記載する必要はありません。"]
[null,"連携研究者9","フリガナ",null,"スコウプ　タロウ",null,null,null,null,null,null,null,null,null,"記載要領は、研究代表者の場合と同一です。"]
[null,null,"氏　　　名",null,"須甲富 太郎"]
[null,null,"所属研究科・学部・部署等",null,"○○学部"]
[null,null,"役職",null,"教授"]
[null,null,"所属機関所在地都道府県",null,"○○県"]
[null,null,"年齢","2014-04-01",{"$f":"DATEDIF(E326,D325,\"Y\")","v":52}]
[null,null,"生年月日（西暦）",null,"1961-10-18"]
[null,null,"e-Rad情報","研究者番号","12345678"]
[null,null,null,"所属研究機関番号","1234567890"]
[null,"契約事務等担当者が同一の研究者",null,null,"なし,研究代表者,研究分担者１,研究分担者２,研究分担者３,研究分担者４,研究分担者５,研究分担者６,研究分担者７,研究分担者８,研究分担者９,研究分担者１０,研究分担者１１,研究分担者１２,研究分担者１３,研究分担者１４,研究分担者１５,研究分担者１６,研究分担者１７,研究分担者１８,研究分担者１９,研究分担者２０",null,null,null,null,null,null,null,null,null,"「なし」を選択した場合は、契約事務等担当者について記入して下さい。「研究代表者」又は「研究分担者1～20」を選択した場合は、契約事務等担当者について記入する必要はありません。"]
[null,"研究分担者9の所属機関の契約事務等担当者","フリガナ",null,"スコウプ　ジロウ"]
[null,null,"氏　　　名",null,"須甲富 二郎"]
[null,null,"所属研究科・学部・部署等",null,"○○学部",null,null,null,null,null,null,null,null,null,"研究開発の実施に当たり、委託契約の調整を行います。必ず最新の状況を確認の上で、研究分担者が所属する機関の契約事務等担当者の情報を記載してください。\n※研究分担者は、契約事務等担当者を兼ねることはできません。"]
[null,null,"役職",null,"主任"]
[null,null,"連絡先","郵便番号","123-4567"]
[null,null,null,"住所","東京都○○区○○○1-2-3"]
[null,null,null,"電話番号","03-####-#####"]
[null,null,null,"E-mail","####@##.ne.jp"]
[null,null,null,"E-mail（予備）","####@##.ne.jp"]
[null,"経理事務等担当者が同一の研究者",null,null,"なし,研究代表者,研究分担者１,研究分担者２,研究分担者３,研究分担者４,研究分担者５,研究分担者６,研究分担者７,研究分担者８,研究分担者９,研究分担者１０,研究分担者１１,研究分担者１２,研究分担者１３,研究分担者１４,研究分担者１５,研究分担者１６,研究分担者１７,研究分担者１８,研究分担者１９,研究分担者２０",null,null,null,null,null,null,null,null,null,"「なし」を選択した場合は、経理事務等担当者について記入して下さい。「研究代表者」又は「研究分担者1～20」を選択した場合は、経理事務等担当者について記入する必要はありません。"]
[null,"研究分担者9の所属機関の経理事務等担当者","フリガナ",null,"スコウプ　サブロウ"]
[null,null,"氏　　　名",null,"須甲富 三郎"]
[null,null,"所属研究科・学部・部署等",null,"○○学部",null,null,null,null,null,null,null,null,null,"研究開発の実施に当たり、予算執行の調整を行います。必ず最新の状況を確認の上で、研究分担者が所属する機関の経理事務等担当者の情報を記載してください。\n※研究分担者は、経理事務等担当者を兼ねることはできません。\n※契約事務等担当者と同一である場合でも、必ず記載してください。"]
[null,null,"役職",null,"係長"]
[null,null,"連絡先","郵便番号","123-4567"]
[null,null,null,"住所","東京都○○区○○○1-2-3"]
[null,null,null,"電話番号","03-####-#####"]
[null,null,null,"E-mail","####@##.ne.jp"]
[null,null,null,"E-mail（予備）","####@##.ne.jp"]
[null,"連携研究者10の所属機関（機関名のみ）",null,null,"○○大学",null,null,null,null,null,null,null,null,null,"研究分担者がいない場合は、以降の項目を記載する必要はありません。"]
[null,"連携研究者10","フリガナ",null,"スコウプ　タロウ",null,null,null,null,null,null,null,null,null,"記載要領は、研究代表者の場合と同一です。"]
[null,null,"氏　　　名",null,"須甲富 太郎"]
[null,null,"所属研究科・学部・部署等",null,"○○学部"]
[null,null,"役職",null,"教授"]
[null,null,"所属機関所在地都道府県",null,"○○県"]
[null,null,"年齢","2014-04-01",{"$f":"DATEDIF(E356,D355,\"Y\")","v":52}]
[null,null,"生年月日（西暦）",null,"1961-10-18"]
[null,null,"e-Rad情報","研究者番号","12345678"]
[null,null,null,"所属研究機関番号","1234567890"]
[null,"契約事務等担当者が同一の研究者",null,null,"なし,研究代表者,研究分担者１,研究分担者２,研究分担者３,研究分担者４,研究分担者５,研究分担者６,研究分担者７,研究分担者８,研究分担者９,研究分担者１０,研究分担者１１,研究分担者１２,研究分担者１３,研究分担者１４,研究分担者１５,研究分担者１６,研究分担者１７,研究分担者１８,研究分担者１９,研究分担者２０",null,null,null,null,null,null,null,null,null,"「なし」を選択した場合は、契約事務等担当者について記入して下さい。「研究代表者」又は「研究分担者1～20」を選択した場合は、契約事務等担当者について記入する必要はありません。"]
[null,"研究分担者10の所属機関の契約事務等担当者","フリガナ",null,"スコウプ　ジロウ"]
[null,null,"氏　　　名",null,"須甲富 二郎"]
[null,null,"所属研究科・学部・部署等",null,"○○学部",null,null,null,null,null,null,null,null,null,"研究開発の実施に当たり、委託契約の調整を行います。必ず最新の状況を確認の上で、研究分担者が所属する機関の契約事務等担当者の情報を記載してください。\n※研究分担者は、契約事務等担当者を兼ねることはできません。"]
[null,null,"役職",null,"主任"]
[null,null,"連絡先","郵便番号","123-4567"]
[null,null,null,"住所","東京都○○区○○○1-2-3"]
[null,null,null,"電話番号","03-####-#####"]
[null,null,null,"E-mail","####@##.ne.jp"]
[null,null,null,"E-mail（予備）","####@##.ne.jp"]
[null,"経理事務等担当者が同一の研究者",null,null,"なし,研究代表者,研究分担者１,研究分担者２,研究分担者３,研究分担者４,研究分担者５,研究分担者６,研究分担者７,研究分担者８,研究分担者９,研究分担者１０,研究分担者１１,研究分担者１２,研究分担者１３,研究分担者１４,研究分担者１５,研究分担者１６,研究分担者１７,研究分担者１８,研究分担者１９,研究分担者２０",null,null,null,null,null,null,null,null,null,"「なし」を選択した場合は、経理事務等担当者について記入して下さい。「研究代表者」又は「研究分担者1～20」を選択した場合は、経理事務等担当者について記入する必要はありません。"]
[null,"研究分担者10の所属機関の経理事務等担当者","フリガナ",null,"スコウプ　サブロウ"]
[null,null,"氏　　　名",null,"須甲富 三郎"]
[null,null,"所属研究科・学部・部署等",null,"○○学部",null,null,null,null,null,null,null,null,null,"研究開発の実施に当たり、予算執行の調整を行います。必ず最新の状況を確認の上で、研究分担者が所属する機関の経理事務等担当者の情報を記載してください。\n※研究分担者は、経理事務等担当者を兼ねることはできません。\n※契約事務等担当者と同一である場合でも、必ず記載してください。"]
[null,null,"役職",null,"係長"]
[null,null,"連絡先","郵便番号","123-4567"]
[null,null,null,"住所","東京都○○区○○○1-2-3"]
[null,null,null,"電話番号","03-####-#####"]
[null,null,null,"E-mail","####@##.ne.jp"]
[null,null,null,"E-mail（予備）","####@##.ne.jp"]
[null,"連携研究者11の所属機関（機関名のみ）",null,null,"○○大学",null,null,null,null,null,null,null,null,null,"研究分担者がいない場合は、以降の項目を記載する必要はありません。"]
[null,"連携研究者11","フリガナ",null,"スコウプ　タロウ",null,null,null,null,null,null,null,null,null,"記載要領は、研究代表者の場合と同一です。"]
[null,null,"氏　　　名",null,"須甲富 太郎"]
[null,null,"所属研究科・学部・部署等",null,"○○学部"]
[null,null,"役職",null,"教授"]
[null,null,"所属機関所在地都道府県",null,"○○県"]
[null,null,"年齢","2014-04-01",{"$f":"DATEDIF(E386,D385,\"Y\")","v":52}]
[null,null,"生年月日（西暦）",null,"1961-10-18"]
[null,null,"e-Rad情報","研究者番号","12345678"]
[null,null,null,"所属研究機関番号","1234567890"]
[null,"契約事務等担当者が同一の研究者",null,null,"なし,研究代表者,研究分担者１,研究分担者２,研究分担者３,研究分担者４,研究分担者５,研究分担者６,研究分担者７,研究分担者８,研究分担者９,研究分担者１０,研究分担者１１,研究分担者１２,研究分担者１３,研究分担者１４,研究分担者１５,研究分担者１６,研究分担者１７,研究分担者１８,研究分担者１９,研究分担者２０",null,null,null,null,null,null,null,null,null,"「なし」を選択した場合は、契約事務等担当者について記入して下さい。「研究代表者」又は「研究分担者1～20」を選択した場合は、契約事務等担当者について記入する必要はありません。"]
[null,"研究分担者11の所属機関の契約事務等担当者","フリガナ",null,"スコウプ　ジロウ"]
[null,null,"氏　　　名",null,"須甲富 二郎"]
[null,null,"所属研究科・学部・部署等",null,"○○学部",null,null,null,null,null,null,null,null,null,"研究開発の実施に当たり、委託契約の調整を行います。必ず最新の状況を確認の上で、研究分担者が所属する機関の契約事務等担当者の情報を記載してください。\n※研究分担者は、契約事務等担当者を兼ねることはできません。"]
[null,null,"役職",null,"主任"]
[null,null,"連絡先","郵便番号","123-4567"]
[null,null,null,"住所","東京都○○区○○○1-2-3"]
[null,null,null,"電話番号","03-####-#####"]
[null,null,null,"E-mail","####@##.ne.jp"]
[null,null,null,"E-mail（予備）","####@##.ne.jp"]
[null,"経理事務等担当者が同一の研究者",null,null,"なし,研究代表者,研究分担者１,研究分担者２,研究分担者３,研究分担者４,研究分担者５,研究分担者６,研究分担者７,研究分担者８,研究分担者９,研究分担者１０,研究分担者１１,研究分担者１２,研究分担者１３,研究分担者１４,研究分担者１５,研究分担者１６,研究分担者１７,研究分担者１８,研究分担者１９,研究分担者２０",null,null,null,null,null,null,null,null,null,"「なし」を選択した場合は、経理事務等担当者について記入して下さい。「研究代表者」又は「研究分担者1～20」を選択した場合は、経理事務等担当者について記入する必要はありません。"]
[null,"研究分担者11の所属機関の経理事務等担当者","フリガナ",null,"スコウプ　サブロウ"]
[null,null,"氏　　　名",null,"須甲富 三郎"]
[null,null,"所属研究科・学部・部署等",null,"○○学部",null,null,null,null,null,null,null,null,null,"研究開発の実施に当たり、予算執行の調整を行います。必ず最新の状況を確認の上で、研究分担者が所属する機関の経理事務等担当者の情報を記載してください。\n※研究分担者は、経理事務等担当者を兼ねることはできません。\n※契約事務等担当者と同一である場合でも、必ず記載してください。"]
[null,null,"役職",null,"係長"]
[null,null,"連絡先","郵便番号","123-4567"]
[null,null,null,"住所","東京都○○区○○○1-2-3"]
[null,null,null,"電話番号","03-####-#####"]
[null,null,null,"E-mail","####@##.ne.jp"]
[null,null,null,"E-mail（予備）","####@##.ne.jp"]
[null,"連携研究者12の所属機関（機関名のみ）",null,null,"○○大学",null,null,null,null,null,null,null,null,null,"研究分担者がいない場合は、以降の項目を記載する必要はありません。"]
[null,"連携研究者12","フリガナ",null,"スコウプ　タロウ",null,null,null,null,null,null,null,null,null,"記載要領は、研究代表者の場合と同一です。"]
[null,null,"氏　　　名",null,"須甲富 太郎"]
[null,null,"所属研究科・学部・部署等",null,"○○学部"]
[null,null,"役職",null,"教授"]
[null,null,"所属機関所在地都道府県",null,"○○県"]
[null,null,"年齢","2014-04-01",{"$f":"DATEDIF(E416,D415,\"Y\")","v":52}]
[null,null,"生年月日（西暦）",null,"1961-10-18"]
[null,null,"e-Rad情報","研究者番号","12345678"]
[null,null,null,"所属研究機関番号","1234567890"]
[null,"契約事務等担当者が同一の研究者",null,null,"なし,研究代表者,研究分担者１,研究分担者２,研究分担者３,研究分担者４,研究分担者５,研究分担者６,研究分担者７,研究分担者８,研究分担者９,研究分担者１０,研究分担者１１,研究分担者１２,研究分担者１３,研究分担者１４,研究分担者１５,研究分担者１６,研究分担者１７,研究分担者１８,研究分担者１９,研究分担者２０",null,null,null,null,null,null,null,null,null,"「なし」を選択した場合は、契約事務等担当者について記入して下さい。「研究代表者」又は「研究分担者1～20」を選択した場合は、契約事務等担当者について記入する必要はありません。"]
[null,"研究分担者12の所属機関の契約事務等担当者","フリガナ",null,"スコウプ　ジロウ"]
[null,null,"氏　　　名",null,"須甲富 二郎"]
[null,null,"所属研究科・学部・部署等",null,"○○学部",null,null,null,null,null,null,null,null,null,"研究開発の実施に当たり、委託契約の調整を行います。必ず最新の状況を確認の上で、研究分担者が所属する機関の契約事務等担当者の情報を記載してください。\n※研究分担者は、契約事務等担当者を兼ねることはできません。"]
[null,null,"役職",null,"主任"]
[null,null,"連絡先","郵便番号","123-4567"]
[null,null,null,"住所","東京都○○区○○○1-2-3"]
[null,null,null,"電話番号","03-####-#####"]
[null,null,null,"E-mail","####@##.ne.jp"]
[null,null,null,"E-mail（予備）","####@##.ne.jp"]
[null,"経理事務等担当者が同一の研究者",null,null,"なし,研究代表者,研究分担者１,研究分担者２,研究分担者３,研究分担者４,研究分担者５,研究分担者６,研究分担者７,研究分担者８,研究分担者９,研究分担者１０,研究分担者１１,研究分担者１２,研究分担者１３,研究分担者１４,研究分担者１５,研究分担者１６,研究分担者１７,研究分担者１８,研究分担者１９,研究分担者２０",null,null,null,null,null,null,null,null,null,"「なし」を選択した場合は、経理事務等担当者について記入して下さい。「研究代表者」又は「研究分担者1～20」を選択した場合は、経理事務等担当者について記入する必要はありません。"]
[null,"研究分担者12の所属機関の経理事務等担当者","フリガナ",null,"スコウプ　サブロウ"]
[null,null,"氏　　　名",null,"須甲富 三郎"]
[null,null,"所属研究科・学部・部署等",null,"○○学部",null,null,null,null,null,null,null,null,null,"研究開発の実施に当たり、予算執行の調整を行います。必ず最新の状況を確認の上で、研究分担者が所属する機関の経理事務等担当者の情報を記載してください。\n※研究分担者は、経理事務等担当者を兼ねることはできません。\n※契約事務等担当者と同一である場合でも、必ず記載してください。"]
[null,null,"役職",null,"係長"]
[null,null,"連絡先","郵便番号","123-4567"]
[null,null,null,"住所","東京都○○区○○○1-2-3"]
[null,null,null,"電話番号","03-####-#####"]
[null,null,null,"E-mail","####@##.ne.jp"]
[null,null,null,"E-mail（予備）","####@##.ne.jp"]
[null,"連携研究者13の所属機関（機関名のみ）",null,null,"○○大学",null,null,null,null,null,null,null,null,null,"研究分担者がいない場合は、以降の項目を記載する必要はありません。"]
[null,"連携研究者13","フリガナ",null,"スコウプ　タロウ",null,null,null,null,null,null,null,null,null,"記載要領は、研究代表者の場合と同一です。"]
[null,null,"氏　　　名",null,"須甲富 太郎"]
[null,null,"所属研究科・学部・部署等",null,"○○学部"]
[null,null,"役職",null,"教授"]
[null,null,"所属機関所在地都道府県",null,"○○県"]
[null,null,"年齢","2014-04-01",{"$f":"DATEDIF(E446,D445,\"Y\")","v":52}]
[null,null,"生年月日（西暦）",null,"1961-10-18"]
[null,null,"e-Rad情報","研究者番号","12345678"]
[null,null,null,"所属研究機関番号","1234567890"]
[null,"契約事務等担当者が同一の研究者",null,null,"なし,研究代表者,研究分担者１,研究分担者２,研究分担者３,研究分担者４,研究分担者５,研究分担者６,研究分担者７,研究分担者８,研究分担者９,研究分担者１０,研究分担者１１,研究分担者１２,研究分担者１３,研究分担者１４,研究分担者１５,研究分担者１６,研究分担者１７,研究分担者１８,研究分担者１９,研究分担者２０",null,null,null,null,null,null,null,null,null,"「なし」を選択した場合は、契約事務等担当者について記入して下さい。「研究代表者」又は「研究分担者1～20」を選択した場合は、契約事務等担当者について記入する必要はありません。"]
[null,"研究分担者13の所属機関の契約事務等担当者","フリガナ",null,"スコウプ　ジロウ"]
[null,null,"氏　　　名",null,"須甲富 二郎"]
[null,null,"所属研究科・学部・部署等",null,"○○学部",null,null,null,null,null,null,null,null,null,"研究開発の実施に当たり、委託契約の調整を行います。必ず最新の状況を確認の上で、研究分担者が所属する機関の契約事務等担当者の情報を記載してください。\n※研究分担者は、契約事務等担当者を兼ねることはできません。"]
[null,null,"役職",null,"主任"]
[null,null,"連絡先","郵便番号","123-4567"]
[null,null,null,"住所","東京都○○区○○○1-2-3"]
[null,null,null,"電話番号","03-####-#####"]
[null,null,null,"E-mail","####@##.ne.jp"]
[null,null,null,"E-mail（予備）","####@##.ne.jp"]
[null,"経理事務等担当者が同一の研究者",null,null,"なし,研究代表者,研究分担者１,研究分担者２,研究分担者３,研究分担者４,研究分担者５,研究分担者６,研究分担者７,研究分担者８,研究分担者９,研究分担者１０,研究分担者１１,研究分担者１２,研究分担者１３,研究分担者１４,研究分担者１５,研究分担者１６,研究分担者１７,研究分担者１８,研究分担者１９,研究分担者２０",null,null,null,null,null,null,null,null,null,"「なし」を選択した場合は、経理事務等担当者について記入して下さい。「研究代表者」又は「研究分担者1～20」を選択した場合は、経理事務等担当者について記入する必要はありません。"]
[null,"研究分担者13の所属機関の経理事務等担当者","フリガナ",null,"スコウプ　サブロウ"]
[null,null,"氏　　　名",null,"須甲富 三郎"]
[null,null,"所属研究科・学部・部署等",null,"○○学部",null,null,null,null,null,null,null,null,null,"研究開発の実施に当たり、予算執行の調整を行います。必ず最新の状況を確認の上で、研究分担者が所属する機関の経理事務等担当者の情報を記載してください。\n※研究分担者は、経理事務等担当者を兼ねることはできません。\n※契約事務等担当者と同一である場合でも、必ず記載してください。"]
[null,null,"役職",null,"係長"]
[null,null,"連絡先","郵便番号","123-4567"]
[null,null,null,"住所","東京都○○区○○○1-2-3"]
[null,null,null,"電話番号","03-####-#####"]
[null,null,null,"E-mail","####@##.ne.jp"]
[null,null,null,"E-mail（予備）","####@##.ne.jp"]
[null,"連携研究者14の所属機関（機関名のみ）",null,null,"○○大学",null,null,null,null,null,null,null,null,null,"研究分担者がいない場合は、以降の項目を記載する必要はありません。"]
[null,"連携研究者14","フリガナ",null,"スコウプ　タロウ",null,null,null,null,null,null,null,null,null,"記載要領は、研究代表者の場合と同一です。"]
[null,null,"氏　　　名",null,"須甲富 太郎"]
[null,null,"所属研究科・学部・部署等",null,"○○学部"]
[null,null,"役職",null,"教授"]
[null,null,"所属機関所在地都道府県",null,"○○県"]
[null,null,"年齢","2014-04-01",{"$f":"DATEDIF(E476,D475,\"Y\")","v":52}]
[null,null,"生年月日（西暦）",null,"1961-10-18"]
[null,null,"e-Rad情報","研究者番号","12345678"]
[null,null,null,"所属研究機関番号","1234567890"]
[null,"契約事務等担当者が同一の研究者",null,null,"なし,研究代表者,研究分担者１,研究分担者２,研究分担者３,研究分担者４,研究分担者５,研究分担者６,研究分担者７,研究分担者８,研究分担者９,研究分担者１０,研究分担者１１,研究分担者１２,研究分担者１３,研究分担者１４,研究分担者１５,研究分担者１６,研究分担者１７,研究分担者１８,研究分担者１９,研究分担者２０",null,null,null,null,null,null,null,null,null,"「なし」を選択した場合は、契約事務等担当者について記入して下さい。「研究代表者」又は「研究分担者1～20」を選択した場合は、契約事務等担当者について記入する必要はありません。"]
[null,"研究分担者14の所属機関の契約事務等担当者","フリガナ",null,"スコウプ　ジロウ"]
[null,null,"氏　　　名",null,"須甲富 二郎"]
[null,null,"所属研究科・学部・部署等",null,"○○学部",null,null,null,null,null,null,null,null,null,"研究開発の実施に当たり、委託契約の調整を行います。必ず最新の状況を確認の上で、研究分担者が所属する機関の契約事務等担当者の情報を記載してください。\n※研究分担者は、契約事務等担当者を兼ねることはできません。"]
[null,null,"役職",null,"主任"]
[null,null,"連絡先","郵便番号","123-4567"]
[null,null,null,"住所","東京都○○区○○○1-2-3"]
[null,null,null,"電話番号","03-####-#####"]
[null,null,null,"E-mail","####@##.ne.jp"]
[null,null,null,"E-mail（予備）","####@##.ne.jp"]
[null,"経理事務等担当者が同一の研究者",null,null,"なし,研究代表者,研究分担者１,研究分担者２,研究分担者３,研究分担者４,研究分担者５,研究分担者６,研究分担者７,研究分担者８,研究分担者９,研究分担者１０,研究分担者１１,研究分担者１２,研究分担者１３,研究分担者１４,研究分担者１５,研究分担者１６,研究分担者１７,研究分担者１８,研究分担者１９,研究分担者２０",null,null,null,null,null,null,null,null,null,"「なし」を選択した場合は、経理事務等担当者について記入して下さい。「研究代表者」又は「研究分担者1～20」を選択した場合は、経理事務等担当者について記入する必要はありません。"]
[null,"研究分担者14の所属機関の経理事務等担当者","フリガナ",null,"スコウプ　サブロウ"]
[null,null,"氏　　　名",null,"須甲富 三郎"]
[null,null,"所属研究科・学部・部署等",null,"○○学部",null,null,null,null,null,null,null,null,null,"研究開発の実施に当たり、予算執行の調整を行います。必ず最新の状況を確認の上で、研究分担者が所属する機関の経理事務等担当者の情報を記載してください。\n※研究分担者は、経理事務等担当者を兼ねることはできません。\n※契約事務等担当者と同一である場合でも、必ず記載してください。"]
[null,null,"役職",null,"係長"]
[null,null,"連絡先","郵便番号","123-4567"]
[null,null,null,"住所","東京都○○区○○○1-2-3"]
[null,null,null,"電話番号","03-####-#####"]
[null,null,null,"E-mail","####@##.ne.jp"]
[null,null,null,"E-mail（予備）","####@##.ne.jp"]
[null,"連携研究者15の所属機関（機関名のみ）",null,null,"○○大学",null,null,null,null,null,null,null,null,null,"研究分担者がいない場合は、以降の項目を記載する必要はありません。"]
[null,"連携研究者15","フリガナ",null,"スコウプ　タロウ",null,null,null,null,null,null,null,null,null,"記載要領は、研究代表者の場合と同一です。"]
[null,null,"氏　　　名",null,"須甲富 太郎"]
[null,null,"所属研究科・学部・部署等",null,"○○学部"]
[null,null,"役職",null,"教授"]
[null,null,"所属機関所在地都道府県",null,"○○県"]
[null,null,"年齢","2014-04-01",{"$f":"DATEDIF(E506,D505,\"Y\")","v":52}]
[null,null,"生年月日（西暦）",null,"1961-10-18"]
[null,null,"e-Rad情報","研究者番号","12345678"]
[null,null,null,"所属研究機関番号","1234567890"]
[null,"契約事務等担当者が同一の研究者",null,null,"なし,研究代表者,研究分担者１,研究分担者２,研究分担者３,研究分担者４,研究分担者５,研究分担者６,研究分担者７,研究分担者８,研究分担者９,研究分担者１０,研究分担者１１,研究分担者１２,研究分担者１３,研究分担者１４,研究分担者１５,研究分担者１６,研究分担者１７,研究分担者１８,研究分担者１９,研究分担者２０",null,null,null,null,null,null,null,null,null,"「なし」を選択した場合は、契約事務等担当者について記入して下さい。「研究代表者」又は「研究分担者1～20」を選択した場合は、契約事務等担当者について記入する必要はありません。"]
[null,"研究分担者15の所属機関の契約事務等担当者","フリガナ",null,"スコウプ　ジロウ"]
[null,null,"氏　　　名",null,"須甲富 二郎"]
[null,null,"所属研究科・学部・部署等",null,"○○学部",null,null,null,null,null,null,null,null,null,"研究開発の実施に当たり、委託契約の調整を行います。必ず最新の状況を確認の上で、研究分担者が所属する機関の契約事務等担当者の情報を記載してください。\n※研究分担者は、契約事務等担当者を兼ねることはできません。"]
[null,null,"役職",null,"主任"]
[null,null,"連絡先","郵便番号","123-4567"]
[null,null,null,"住所","東京都○○区○○○1-2-3"]
[null,null,null,"電話番号","03-####-#####"]
[null,null,null,"E-mail","####@##.ne.jp"]
[null,null,null,"E-mail（予備）","####@##.ne.jp"]
[null,"経理事務等担当者が同一の研究者",null,null,"なし,研究代表者,研究分担者１,研究分担者２,研究分担者３,研究分担者４,研究分担者５,研究分担者６,研究分担者７,研究分担者８,研究分担者９,研究分担者１０,研究分担者１１,研究分担者１２,研究分担者１３,研究分担者１４,研究分担者１５,研究分担者１６,研究分担者１７,研究分担者１８,研究分担者１９,研究分担者２０",null,null,null,null,null,null,null,null,null,"「なし」を選択した場合は、経理事務等担当者について記入して下さい。「研究代表者」又は「研究分担者1～20」を選択した場合は、経理事務等担当者について記入する必要はありません。"]
[null,"研究分担者15の所属機関の経理事務等担当者","フリガナ",null,"スコウプ　サブロウ"]
[null,null,"氏　　　名",null,"須甲富 三郎"]
[null,null,"所属研究科・学部・部署等",null,"○○学部",null,null,null,null,null,null,null,null,null,"研究開発の実施に当たり、予算執行の調整を行います。必ず最新の状況を確認の上で、研究分担者が所属する機関の経理事務等担当者の情報を記載してください。\n※研究分担者は、経理事務等担当者を兼ねることはできません。\n※契約事務等担当者と同一である場合でも、必ず記載してください。"]
[null,null,"役職",null,"係長"]
[null,null,"連絡先","郵便番号","123-4567"]
[null,null,null,"住所","東京都○○区○○○1-2-3"]
[null,null,null,"電話番号","03-####-#####"]
[null,null,null,"E-mail","####@##.ne.jp"]
[null,null,null,"E-mail（予備）","####@##.ne.jp"]
[null,"連携研究者16の所属機関（機関名のみ）",null,null,"○○大学",null,null,null,null,null,null,null,null,null,"研究分担者がいない場合は、以降の項目を記載する必要はありません。"]
[null,"連携研究者16","フリガナ",null,"スコウプ　タロウ",null,null,null,null,null,null,null,null,null,"記載要領は、研究代表者の場合と同一です。"]
[null,null,"氏　　　名",null,"須甲富 太郎"]
[null,null,"所属研究科・学部・部署等",null,"○○学部"]
[null,null,"役職",null,"教授"]
[null,null,"所属機関所在地都道府県",null,"○○県"]
[null,null,"年齢","2014-04-01",{"$f":"DATEDIF(E536,D535,\"Y\")","v":52}]
[null,null,"生年月日（西暦）",null,"1961-10-18"]
[null,null,"e-Rad情報","研究者番号","12345678"]
[null,null,null,"所属研究機関番号","1234567890"]
[null,"契約事務等担当者が同一の研究者",null,null,"なし,研究代表者,研究分担者１,研究分担者２,研究分担者３,研究分担者４,研究分担者５,研究分担者６,研究分担者７,研究分担者８,研究分担者９,研究分担者１０,研究分担者１１,研究分担者１２,研究分担者１３,研究分担者１４,研究分担者１５,研究分担者１６,研究分担者１７,研究分担者１８,研究分担者１９,研究分担者２０",null,null,null,null,null,null,null,null,null,"「なし」を選択した場合は、契約事務等担当者について記入して下さい。「研究代表者」又は「研究分担者1～20」を選択した場合は、契約事務等担当者について記入する必要はありません。"]
[null,"研究分担者16の所属機関の契約事務等担当者","フリガナ",null,"スコウプ　ジロウ"]
[null,null,"氏　　　名",null,"須甲富 二郎"]
[null,null,"所属研究科・学部・部署等",null,"○○学部",null,null,null,null,null,null,null,null,null,"研究開発の実施に当たり、委託契約の調整を行います。必ず最新の状況を確認の上で、研究分担者が所属する機関の契約事務等担当者の情報を記載してください。\n※研究分担者は、契約事務等担当者を兼ねることはできません。"]
[null,null,"役職",null,"主任"]
[null,null,"連絡先","郵便番号","123-4567"]
[null,null,null,"住所","東京都○○区○○○1-2-3"]
[null,null,null,"電話番号","03-####-#####"]
[null,null,null,"E-mail","####@##.ne.jp"]
[null,null,null,"E-mail（予備）","####@##.ne.jp"]
[null,"経理事務等担当者が同一の研究者",null,null,"なし,研究代表者,研究分担者１,研究分担者２,研究分担者３,研究分担者４,研究分担者５,研究分担者６,研究分担者７,研究分担者８,研究分担者９,研究分担者１０,研究分担者１１,研究分担者１２,研究分担者１３,研究分担者１４,研究分担者１５,研究分担者１６,研究分担者１７,研究分担者１８,研究分担者１９,研究分担者２０",null,null,null,null,null,null,null,null,null,"「なし」を選択した場合は、経理事務等担当者について記入して下さい。「研究代表者」又は「研究分担者1～20」を選択した場合は、経理事務等担当者について記入する必要はありません。"]
[null,"研究分担者16の所属機関の経理事務等担当者","フリガナ",null,"スコウプ　サブロウ"]
[null,null,"氏　　　名",null,"須甲富 三郎"]
[null,null,"所属研究科・学部・部署等",null,"○○学部",null,null,null,null,null,null,null,null,null,"研究開発の実施に当たり、予算執行の調整を行います。必ず最新の状況を確認の上で、研究分担者が所属する機関の経理事務等担当者の情報を記載してください。\n※研究分担者は、経理事務等担当者を兼ねることはできません。\n※契約事務等担当者と同一である場合でも、必ず記載してください。"]
[null,null,"役職",null,"係長"]
[null,null,"連絡先","郵便番号","123-4567"]
[null,null,null,"住所","東京都○○区○○○1-2-3"]
[null,null,null,"電話番号","03-####-#####"]
[null,null,null,"E-mail","####@##.ne.jp"]
[null,null,null,"E-mail（予備）","####@##.ne.jp"]
[null,"連携研究者17の所属機関（機関名のみ）",null,null,"○○大学",null,null,null,null,null,null,null,null,null,"研究分担者がいない場合は、以降の項目を記載する必要はありません。"]
[null,"連携研究者17","フリガナ",null,"スコウプ　タロウ",null,null,null,null,null,null,null,null,null,"記載要領は、研究代表者の場合と同一です。"]
[null,null,"氏　　　名",null,"須甲富 太郎"]
[null,null,"所属研究科・学部・部署等",null,"○○学部"]
[null,null,"役職",null,"教授"]
[null,null,"所属機関所在地都道府県",null,"○○県"]
[null,null,"年齢","2014-04-01",{"$f":"DATEDIF(E566,D565,\"Y\")","v":52}]
[null,null,"生年月日（西暦）",null,"1961-10-18"]
[null,null,"e-Rad情報","研究者番号","12345678"]
[null,null,null,"所属研究機関番号","1234567890"]
[null,"契約事務等担当者が同一の研究者",null,null,"なし,研究代表者,研究分担者１,研究分担者２,研究分担者３,研究分担者４,研究分担者５,研究分担者６,研究分担者７,研究分担者８,研究分担者９,研究分担者１０,研究分担者１１,研究分担者１２,研究分担者１３,研究分担者１４,研究分担者１５,研究分担者１６,研究分担者１７,研究分担者１８,研究分担者１９,研究分担者２０",null,null,null,null,null,null,null,null,null,"「なし」を選択した場合は、契約事務等担当者について記入して下さい。「研究代表者」又は「研究分担者1～20」を選択した場合は、契約事務等担当者について記入する必要はありません。"]
[null,"研究分担者17の所属機関の契約事務等担当者","フリガナ",null,"スコウプ　ジロウ"]
[null,null,"氏　　　名",null,"須甲富 二郎"]
[null,null,"所属研究科・学部・部署等",null,"○○学部",null,null,null,null,null,null,null,null,null,"研究開発の実施に当たり、委託契約の調整を行います。必ず最新の状況を確認の上で、研究分担者が所属する機関の契約事務等担当者の情報を記載してください。\n※研究分担者は、契約事務等担当者を兼ねることはできません。"]
[null,null,"役職",null,"主任"]
[null,null,"連絡先","郵便番号","123-4567"]
[null,null,null,"住所","東京都○○区○○○1-2-3"]
[null,null,null,"電話番号","03-####-#####"]
[null,null,null,"E-mail","####@##.ne.jp"]
[null,null,null,"E-mail（予備）","####@##.ne.jp"]
[null,"経理事務等担当者が同一の研究者",null,null,"なし,研究代表者,研究分担者１,研究分担者２,研究分担者３,研究分担者４,研究分担者５,研究分担者６,研究分担者７,研究分担者８,研究分担者９,研究分担者１０,研究分担者１１,研究分担者１２,研究分担者１３,研究分担者１４,研究分担者１５,研究分担者１６,研究分担者１７,研究分担者１８,研究分担者１９,研究分担者２０",null,null,null,null,null,null,null,null,null,"「なし」を選択した場合は、経理事務等担当者について記入して下さい。「研究代表者」又は「研究分担者1～20」を選択した場合は、経理事務等担当者について記入する必要はありません。"]
[null,"研究分担者17の所属機関の経理事務等担当者","フリガナ",null,"スコウプ　サブロウ"]
[null,null,"氏　　　名",null,"須甲富 三郎"]
[null,null,"所属研究科・学部・部署等",null,"○○学部",null,null,null,null,null,null,null,null,null,"研究開発の実施に当たり、予算執行の調整を行います。必ず最新の状況を確認の上で、研究分担者が所属する機関の経理事務等担当者の情報を記載してください。\n※研究分担者は、経理事務等担当者を兼ねることはできません。\n※契約事務等担当者と同一である場合でも、必ず記載してください。"]
[null,null,"役職",null,"係長"]
[null,null,"連絡先","郵便番号","123-4567"]
[null,null,null,"住所","東京都○○区○○○1-2-3"]
[null,null,null,"電話番号","03-####-#####"]
[null,null,null,"E-mail","####@##.ne.jp"]
[null,null,null,"E-mail（予備）","####@##.ne.jp"]
[null,"連携研究者18の所属機関（機関名のみ）",null,null,"○○大学",null,null,null,null,null,null,null,null,null,"研究分担者がいない場合は、以降の項目を記載する必要はありません。"]
[null,"連携研究者18","フリガナ",null,"スコウプ　タロウ",null,null,null,null,null,null,null,null,null,"記載要領は、研究代表者の場合と同一です。"]
[null,null,"氏　　　名",null,"須甲富 太郎"]
[null,null,"所属研究科・学部・部署等",null,"○○学部"]
[null,null,"役職",null,"教授"]
[null,null,"所属機関所在地都道府県",null,"○○県"]
[null,null,"年齢","2014-04-01",{"$f":"DATEDIF(E596,D595,\"Y\")","v":52}]
[null,null,"生年月日（西暦）",null,"1961-10-18"]
[null,null,"e-Rad情報","研究者番号","12345678"]
[null,null,null,"所属研究機関番号","1234567890"]
[null,"契約事務等担当者が同一の研究者",null,null,"なし,研究代表者,研究分担者１,研究分担者２,研究分担者３,研究分担者４,研究分担者５,研究分担者６,研究分担者７,研究分担者８,研究分担者９,研究分担者１０,研究分担者１１,研究分担者１２,研究分担者１３,研究分担者１４,研究分担者１５,研究分担者１６,研究分担者１７,研究分担者１８,研究分担者１９,研究分担者２０",null,null,null,null,null,null,null,null,null,"「なし」を選択した場合は、契約事務等担当者について記入して下さい。「研究代表者」又は「研究分担者1～20」を選択した場合は、契約事務等担当者について記入する必要はありません。"]
[null,"研究分担者18の所属機関の契約事務等担当者","フリガナ",null,"スコウプ　ジロウ"]
[null,null,"氏　　　名",null,"須甲富 二郎"]
[null,null,"所属研究科・学部・部署等",null,"○○学部",null,null,null,null,null,null,null,null,null,"研究開発の実施に当たり、委託契約の調整を行います。必ず最新の状況を確認の上で、研究分担者が所属する機関の契約事務等担当者の情報を記載してください。\n※研究分担者は、契約事務等担当者を兼ねることはできません。"]
[null,null,"役職",null,"主任"]
[null,null,"連絡先","郵便番号","123-4567"]
[null,null,null,"住所","東京都○○区○○○1-2-3"]
[null,null,null,"電話番号","03-####-#####"]
[null,null,null,"E-mail","####@##.ne.jp"]
[null,null,null,"E-mail（予備）","####@##.ne.jp"]
[null,"経理事務等担当者が同一の研究者",null,null,"なし,研究代表者,研究分担者１,研究分担者２,研究分担者３,研究分担者４,研究分担者５,研究分担者６,研究分担者７,研究分担者８,研究分担者９,研究分担者１０,研究分担者１１,研究分担者１２,研究分担者１３,研究分担者１４,研究分担者１５,研究分担者１６,研究分担者１７,研究分担者１８,研究分担者１９,研究分担者２０",null,null,null,null,null,null,null,null,null,"「なし」を選択した場合は、経理事務等担当者について記入して下さい。「研究代表者」又は「研究分担者1～20」を選択した場合は、経理事務等担当者について記入する必要はありません。"]
[null,"研究分担者18の所属機関の経理事務等担当者","フリガナ",null,"スコウプ　サブロウ"]
[null,null,"氏　　　名",null,"須甲富 三郎"]
[null,null,"所属研究科・学部・部署等",null,"○○学部",null,null,null,null,null,null,null,null,null,"研究開発の実施に当たり、予算執行の調整を行います。必ず最新の状況を確認の上で、研究分担者が所属する機関の経理事務等担当者の情報を記載してください。\n※研究分担者は、経理事務等担当者を兼ねることはできません。\n※契約事務等担当者と同一である場合でも、必ず記載してください。"]
[null,null,"役職",null,"係長"]
[null,null,"連絡先","郵便番号","123-4567"]
[null,null,null,"住所","東京都○○区○○○1-2-3"]
[null,null,null,"電話番号","03-####-#####"]
[null,null,null,"E-mail","####@##.ne.jp"]
[null,null,null,"E-mail（予備）","####@##.ne.jp"]
[null,"連携研究者19の所属機関（機関名のみ）",null,null,"○○大学",null,null,null,null,null,null,null,null,null,"研究分担者がいない場合は、以降の項目を記載する必要はありません。"]
[null,"連携研究者19","フリガナ",null,"スコウプ　タロウ",null,null,null,null,null,null,null,null,null,"記載要領は、研究代表者の場合と同一です。"]
[null,null,"氏　　　名",null,"須甲富 太郎"]
[null,null,"所属研究科・学部・部署等",null,"○○学部"]
[null,null,"役職",null,"教授"]
[null,null,"所属機関所在地都道府県",null,"○○県"]
[null,null,"年齢","2014-04-01",{"$f":"DATEDIF(E626,D625,\"Y\")","v":52}]
[null,null,"生年月日（西暦）",null,"1961-10-18"]
[null,null,"e-Rad情報","研究者番号","12345678"]
[null,null,null,"所属研究機関番号","1234567890"]
[null,"契約事務等担当者が同一の研究者",null,null,"なし,研究代表者,研究分担者１,研究分担者２,研究分担者３,研究分担者４,研究分担者５,研究分担者６,研究分担者７,研究分担者８,研究分担者９,研究分担者１０,研究分担者１１,研究分担者１２,研究分担者１３,研究分担者１４,研究分担者１５,研究分担者１６,研究分担者１７,研究分担者１８,研究分担者１９,研究分担者２０",null,null,null,null,null,null,null,null,null,"「なし」を選択した場合は、契約事務等担当者について記入して下さい。「研究代表者」又は「研究分担者1～20」を選択した場合は、契約事務等担当者について記入する必要はありません。"]
[null,"研究分担者19の所属機関の契約事務等担当者","フリガナ",null,"スコウプ　ジロウ"]
[null,null,"氏　　　名",null,"須甲富 二郎"]
[null,null,"所属研究科・学部・部署等",null,"○○学部",null,null,null,null,null,null,null,null,null,"研究開発の実施に当たり、委託契約の調整を行います。必ず最新の状況を確認の上で、研究分担者が所属する機関の契約事務等担当者の情報を記載してください。\n※研究分担者は、契約事務等担当者を兼ねることはできません。"]
[null,null,"役職",null,"主任"]
[null,null,"連絡先","郵便番号","123-4567"]
[null,null,null,"住所","東京都○○区○○○1-2-3"]
[null,null,null,"電話番号","03-####-#####"]
[null,null,null,"E-mail","####@##.ne.jp"]
[null,null,null,"E-mail（予備）","####@##.ne.jp"]
[null,"経理事務等担当者が同一の研究者",null,null,"なし,研究代表者,研究分担者１,研究分担者２,研究分担者３,研究分担者４,研究分担者５,研究分担者６,研究分担者７,研究分担者８,研究分担者９,研究分担者１０,研究分担者１１,研究分担者１２,研究分担者１３,研究分担者１４,研究分担者１５,研究分担者１６,研究分担者１７,研究分担者１８,研究分担者１９,研究分担者２０",null,null,null,null,null,null,null,null,null,"「なし」を選択した場合は、経理事務等担当者について記入して下さい。「研究代表者」又は「研究分担者1～20」を選択した場合は、経理事務等担当者について記入する必要はありません。"]
[null,"研究分担者19の所属機関の経理事務等担当者","フリガナ",null,"スコウプ　サブロウ"]
[null,null,"氏　　　名",null,"須甲富 三郎"]
[null,null,"所属研究科・学部・部署等",null,"○○学部",null,null,null,null,null,null,null,null,null,"研究開発の実施に当たり、予算執行の調整を行います。必ず最新の状況を確認の上で、研究分担者が所属する機関の経理事務等担当者の情報を記載してください。\n※研究分担者は、経理事務等担当者を兼ねることはできません。\n※契約事務等担当者と同一である場合でも、必ず記載してください。"]
[null,null,"役職",null,"係長"]
[null,null,"連絡先","郵便番号","123-4567"]
[null,null,null,"住所","東京都○○区○○○1-2-3"]
[null,null,null,"電話番号","03-####-#####"]
[null,null,null,"E-mail","####@##.ne.jp"]
[null,null,null,"E-mail（予備）","####@##.ne.jp"]
[null,"連携研究者20の所属機関（機関名のみ）",null,null,"○○大学",null,null,null,null,null,null,null,null,null,"研究分担者がいない場合は、以降の項目を記載する必要はありません。"]
[null,"連携研究者20","フリガナ",null,"スコウプ　タロウ",null,null,null,null,null,null,null,null,null,"記載要領は、研究代表者の場合と同一です。"]
[null,null,"氏　　　名",null,"須甲富 太郎"]
[null,null,"所属研究科・学部・部署等",null,"○○学部"]
[null,null,"役職",null,"教授"]
[null,null,"所属機関所在地都道府県",null,"○○県"]
[null,null,"年齢","2014-04-01",{"$f":"DATEDIF(E656,D655,\"Y\")","v":52}]
[null,null,"生年月日（西暦）",null,"1961-10-18"]
[null,null,"e-Rad情報","研究者番号","12345678"]
[null,null,null,"所属研究機関番号","1234567890"]
[null,"契約事務等担当者が同一の研究者",null,null,"なし,研究代表者,研究分担者１,研究分担者２,研究分担者３,研究分担者４,研究分担者５,研究分担者６,研究分担者７,研究分担者８,研究分担者９,研究分担者１０,研究分担者１１,研究分担者１２,研究分担者１３,研究分担者１４,研究分担者１５,研究分担者１６,研究分担者１７,研究分担者１８,研究分担者１９,研究分担者２０",null,null,null,null,null,null,null,null,null,"「なし」を選択した場合は、契約事務等担当者について記入して下さい。「研究代表者」又は「研究分担者1～20」を選択した場合は、契約事務等担当者について記入する必要はありません。"]
[null,"研究分担者20の所属機関の契約事務等担当者","フリガナ",null,"スコウプ　ジロウ"]
[null,null,"氏　　　名",null,"須甲富 二郎"]
[null,null,"所属研究科・学部・部署等",null,"○○学部",null,null,null,null,null,null,null,null,null,"研究開発の実施に当たり、委託契約の調整を行います。必ず最新の状況を確認の上で、研究分担者が所属する機関の契約事務等担当者の情報を記載してください。\n※研究分担者は、契約事務等担当者を兼ねることはできません。"]
[null,null,"役職",null,"主任"]
[null,null,"連絡先","郵便番号","123-4567"]
[null,null,null,"住所","東京都○○区○○○1-2-3"]
[null,null,null,"電話番号","03-####-#####"]
[null,null,null,"E-mail","####@##.ne.jp"]
[null,null,null,"E-mail（予備）","####@##.ne.jp"]
[null,"経理事務等担当者が同一の研究者",null,null,"なし,研究代表者,研究分担者１,研究分担者２,研究分担者３,研究分担者４,研究分担者５,研究分担者６,研究分担者７,研究分担者８,研究分担者９,研究分担者１０,研究分担者１１,研究分担者１２,研究分担者１３,研究分担者１４,研究分担者１５,研究分担者１６,研究分担者１７,研究分担者１８,研究分担者１９,研究分担者２０",null,null,null,null,null,null,null,null,null,"「なし」を選択した場合は、経理事務等担当者について記入して下さい。「研究代表者」又は「研究分担者1～20」を選択した場合は、経理事務等担当者について記入する必要はありません。"]
[null,"研究分担者20の所属機関の経理事務等担当者","フリガナ",null,"スコウプ　サブロウ"]
[null,null,"氏　　　名",null,"須甲富 三郎"]
[null,null,"所属研究科・学部・部署等",null,"○○学部",null,null,null,null,null,null,null,null,null,"研究開発の実施に当たり、予算執行の調整を行います。必ず最新の状況を確認の上で、研究分担者が所属する機関の経理事務等担当者の情報を記載してください。\n※研究分担者は、経理事務等担当者を兼ねることはできません。\n※契約事務等担当者と同一である場合でも、必ず記載してください。"]
[null,null,"役職",null,"係長"]
[null,null,"連絡先","郵便番号","123-4567"]
[null,null,null,"住所","東京都○○区○○○1-2-3"]
[null,null,null,"電話番号","03-####-#####"]
[null,null,null,"E-mail","####@##.ne.jp"]
[null,null,null,"E-mail（予備）","####@##.ne.jp"]
[null,"その他の連携研究者",null,null,null,null,null,null,null,null,null,null,null,null,"21人以上研究分担者がいる場合は、21人目以降の研究分担者について、氏名、フリガナ、所属機関名（所属機関のみ）、所属研究科・学部・部署等、役職、所属機関所在地都道府県、年齢（平成26年4月1日時点）、生年月日（西暦）、e-Rad研究者番号、e-Rad所属研究機関番号を、「、」（句点）で区切って続けて記載してください。なお、研究分担者の所属機関、契約事務等担当者、経理事務等担当者はすべて研究分担者１～２０で網羅するように記載してください。"]
[null,"契約事務等担当者",null,null,null,null,null,null,null,null,null,null,null,null,"上の研究分担者の契約事務等担当者について、記入の順番に合わせて、「研究代表者と同じ」または「研究分担者○と同じ」と記載してください。"]
[null,"経理事務等担当者",null,null,null,null,null,null,null,null,null,null,null,null,"上の研究分担者の経理事務等担当者について、記入の順番に合わせて、「研究代表者と同じ」または「研究分担者○と同じ」と記載してください。"]

{"sheet":"様式１","index":3,"n_rows":78,"n_cols":13,"rows_kept":78,"cut":false,"hidden":false,"merged":[[10,14,12,14],[7,1,7,3],[8,1,8,3],[7,4,7,12],[8,4,8,12],[9,4,9,12],[10,4,10,12],[11,4,11,12],[11,1,11,3],[55,4,55,12],[56,2,56,3],[56,4,56,12],[53,2,53,3],[53,4,53,12],[54,2,54,3],[47,4,47,12],[48,2,48,3],[48,4,48,12],[44,2,44,3],[32,2,32,3],[43,4,43,12],[39,2,39,3],[54,4,54,12],[47,1,52,1],[49,2,49,3],[53,1,58,1],[41,1,46,1],[41,2,41,3],[41,4,41,12],[42,2,42,3],[42,4,42,12],[43,2,43,3],[45,2,45,3],[37,4,37,12],[57,4,57,12],[58,4,58,12],[47,2,47,3],[50,2,50,3],[50,4,50,12],[51,2,51,3],[49,4,49,12],[55,2,55,3],[38,4,38,12],[29,4,29,12],[30,2,30,3],[30,4,30,12],[31,2,31,3],[31,4,31,12],[16,8,21,10],[25,8,25,11],[26,5,26,6],[26,7,26,12],[27,4,27,12],[24,4,24,9],[1,11,1,12],[3,1,3,12],[13,1,13,3],[16,1,21,3],[24,11,24,12],[5,1,5,3],[5,4,5,12],[14,6,14,7],[9,1,9,3],[15,4,15,12],[15,1,15,3],[10,1,10,3],[14,11,14,12],[14,1,14,3],[12,4,12,12],[17,5,17,6],[16,5,16,7],[16,11,21,12],[12,1,12,3],[13,4,13,12],[22,1,28,1],[20,5,20,6],[77,1,82,3],[77,4,82,12],[46,2,46,3],[57,2,57,3],[58,2,58,3],[71,1,76,3],[26,2,28,2],[28,4,28,12],[18,5,18,6],[34,2,34,3],[34,4,34,12],[22,4,22,12],[23,4,23,12],[33,4,33,12],[19,5,19,6],[21,5,21,6],[71,4,76,12],[22,2,22,3],[23,2,23,3],[32,4,32,12],[45,4,45,12],[40,2,40,3],[39,4,39,12],[40,4,40,12],[65,1,70,1],[65,2,70,12],[51,4,51,12],[52,4,52,12],[6,1,6,3],[6,4,6,12],[25,2,25,3],[25,4,25,7],[33,2,33,3],[52,2,52,3],[46,4,46,12],[59,1,64,1],[59,2,64,12],[24,2,24,3],[44,4,44,12],[29,1,34,1],[35,1,40,1],[35,2,35,3],[35,4,35,12],[36,2,36,3],[36,4,36,12],[37,2,37,3],[38,2,38,3],[29,2,29,3]]}
[null,null,null,null,null,null,null,null,null,null,null,null,"提案書（平成31年度新規公募）　様式１"]
[null,null,null,null,null,null,null,null,null,null,null,{"$f":"様式０!E6","v":"2019-01-11"}]
[]
[null,"基本事項説明書"]
[]
[null,"研究開発課題名",null,null,{"$f":"様式０!E7&\"\"","v":"○○○○○○○○○○○○○○○○○○○○○○○○○○○○○○○○○○○○○○○○○○○○○○○○○○○○○○○○○○○○○○○○○の研究開発"}]
[null,"プログラム名",null,null,{"$f":"様式０!E9&\"\"","v":"電波有効利用促進型研究開発（先進的電波有効利用型フェーズⅡ：社会展開促進を目的とした研究開発課題）"}]
[null," ICTの研究開発分野における研究開発課題名",null,null,{"$f":"様式０!E10&\"\"","v":"④情報セキュリティ分野"}]
[null,"研究開発戦略マップにおける分類",null,null,{"$f":"様式０!#REF!&\"\"","v":{"$error":"#REF!"}}]
[null,"電波有効利用促進型研究開発における分類",null,null,{"$f":"様式０!E11&\"\"","v":"該当しない"}]
[null," ICT 基礎・育成型研究開発における若手研究者の条件",null,null,{"$f":"様式０!E12&\"\"","v":"該当する"}]
[null," ICT 基礎・育成型研究開発における中小企業の条件",null,null,{"$f":"様式０!E13&\"\"","v":"該当しない"}]
[null,"地域ICT振興型研究開発における「地域イノベーション戦略」に基づく提案",null,null,{"$f":"様式０!#REF!&\"\"","v":{"$error":"#REF!"}}]
[null,"研究キーワード",null,null,{"$f":"様式０!I15&IF(様式０!I16=\"\",\"\",\"、\"&様式０!I16)&IF(様式０!I17=\"\",\"\",\"、\"&様式０!I17)&IF(様式０!I18=\"\",\"\",\"、\"&様式０!I18)&IF(様式０!I19=\"\",\"\",\"、\"&様式０!I19)&IF(様式０!I20=\"\",\"\",\"、\"&様式０!I20)&IF(様式０!I21=\"\",\"\",\"、\"&様式０!I21)&IF(様式０!I22=\"\",\"\",\"、\"&様式０!I22)&IF(様式０!I23=\"\",\"\",\"、\"&様式０!I23)&IF(様式０!I24=\"\",\"\",\"、\"&様式０!I24)","v":""}]
[null,"研究開発期間",null,null,{"$f":"31","v":31},"～",{"$f":"様式０!E28","v":32},{"$f":"様式０!H26","v":0},"（",{"$f":"様式０!E28-30","v":2},"年間）"]
[null,"提案するフェーズ（平成31年度）",null,null,{"$f":"様式０!E25","v":"Ⅱ"}]
[null,"年度別研究費一覧\n（直接経費のみ、消費税を含む）",null,null,null,"提案額"]
[null,null,null,null,"平成31年度",{"$f":"様式０!E29","v":3000},null,"千円"]
[null,null,null,null,"平成32年度",{"$f":"様式０!E30","v":10000},null,"千円"]
[null,null,null,null,"平成33年度",{"$f":"様式０!E31","v":10000},null,"千円"]
[null,null,null,null,"平成32年度",{"$f":"様式０!E32","v":0},null,"千円"]
[null,null,null,null,"合計",{"$f":"様式０!E33","v":23000},null,"千円"]
[null,"研究代表者","フリガナ",null,{"$f":"様式０!E42&\"\"","v":"スコウプ　タロウ"}]
[null,null,"氏　　　名",null,{"$f":"様式０!E43&\"\"","v":"須甲富 太郎"}]
[null,null,"所属機関",null,{"$f":"様式０!E41&様式０!E44&\"\"","v":"○○×大学○○学部"},null,null,null,null,null,"役職",{"$f":"様式０!E45&\"\"","v":"教授"}]
[null,null,"所属機関所在地都道府県",null,{"$f":"様式０!E46&\"\"","v":"○○県"},null,null,null,"年齢（平成31年4月1日時点）",null,null,null,{"$f":"IF(様式０!E47>100,\"\",様式０!E47)","v":57}]
[null,null,"連絡先","郵便番号",{"$f":"様式０!E51&\"\"","v":"123-4567"},"住所",null,{"$f":"様式０!E52&\"\"","v":"東京都○○区○○○1-2-3"}]
[null,null,null,"電話番号",{"$f":"様式０!E53&\"\"","v":"03-####-#####"}]
[null,null,null,"E-mail",{"$f":"様式０!E54&\"\"","v":"####@##.ne.jp"}]
[null,"研究分担者","フリガナ",null,{"$f":"様式０!E77&\"\"","v":"スコウプ　タロウ"}]
[null,null,"氏　　　名",null,{"$f":"様式０!E78&\"\"","v":"須甲富 太郎"}]
[null,null,"所属機関",null,{"$f":"様式０!E76&様式０!E79&\"\"","v":"○○大学○○学部"}]
[null,null,"役　　　職",null,{"$f":"様式０!E80&\"\"","v":"教授"}]
[null,null,"所属機関所在地都道府県",null,{"$f":"様式０!E81&\"\"","v":"○○県"}]
[null,null,"年齢（平成31年4月1日時点）",null,{"$f":"IF(様式０!E82>100,\"\",様式０!E82)","v":57}]
[null,"研究分担者","フリガナ",null,{"$f":"様式０!E107&\"\"","v":""}]
[null,null,"氏　　　名",null,{"$f":"様式０!E108&\"\"","v":""}]
[null,null,"所属機関",null,{"$f":"様式０!E106&様式０!E109&\"\"","v":""}]
[null,null,"役　　　職",null,{"$f":"様式０!E110&\"\"","v":""}]
[null,null,"所属機関所在地都道府県",null,{"$f":"様式０!E111&\"\"","v":""}]
[null,null,"年齢（平成31年4月1日時点）",null,{"$f":"IF(様式０!E112>100,\"\",様式０!E112)","v":""}]
[null,"研究分担者","フリガナ",null,{"$f":"様式０!E137&\"\"","v":""}]
[null,null,"氏　　　名",null,{"$f":"様式０!E138&\"\"","v":""}]
[null,null,"所属機関",null,{"$f":"様式０!E136&様式０!E139&\"\"","v":""}]
[null,null,"役　　　職",null,{"$f":"様式０!E140&\"\"","v":""}]
[null,null,"所属機関所在地都道府県",null,{"$f":"様式０!E141&\"\"","v":""}]
[null,null,"年齢（平成31年4月1日時点）",null,{"$f":"IF(様式０!E142>100,\"\",様式０!E142)","v":""}]
[null,"研究分担者","フリガナ",null,{"$f":"様式０!E167&\"\"","v":""}]
[null,null,"氏　　　名",null,{"$f":"様式０!E168&\"\"","v":""}]
[null,null,"所属機関",null,{"$f":"様式０!E166&様式０!E169&\"\"","v":""}]
[null,null,"役　　　職",null,{"$f":"様式０!E170&\"\"","v":""}]
[null,null,"所属機関所在地都道府県",null,{"$f":"様式０!E171&\"\"","v":""}]
[null,null,"年齢（平成31年4月1日時点）",null,{"$f":"IF(様式０!E142>100,\"\",様式０!E172)","v":""}]
[null,"研究分担者","フリガナ",null,{"$f":"様式０!E197&\"\"","v":""}]
[null,null,"氏　　　名",null,{"$f":"様式０!E198&\"\"","v":""}]
[null,null,"所属機関",null,{"$f":"様式０!E196&様式０!E199&\"\"","v":""}]
[null,null,"役　　　職",null,{"$f":"様式０!E200&\"\"","v":""}]
[null,null,"所属機関所在地都道府県",null,{"$f":"様式０!E201&\"\"","v":""}]
[null,null,"年齢（平成31年4月1日時点）",null,{"$f":"IF(様式０!E142>100,\"\",様式０!E202)","v":""}]
[null,"研究分担者",{"$f":"IF(様式０!E228=\"\",\"\",様式０!E228&\"（\"&様式０!E226&\"）\")&IF(様式０!E258=\"\",\"\",\"、\"&様式０!E258&\"（\"&様式０!E256&\"）\")&IF(様式０!E288=\"\",\"\",\"、\"&様式０!E288&\"（\"&様式０!E286&\"）\")&IF(様式０!E318=\"\",\"\",\"、\"&様式０!E318&\"（\"&様式０!E316&\"）\")&IF(様式０!E348=\"\",\"\",\"、\"&様式０!E348&\"（\"&様式０!E346&\"）\")&IF(様式０!E378=\"\",\"\",\"、\"&様式０!E378&\"（\"&様式０!E376&\"）\")&IF(様式０!E408=\"\",\"\",\"、\"&様式０!E408&\"（\"&様式０!E406&\"）\")&IF(様式０!E438=\"\",\"\",\"、\"&様式０!E438&\"（\"&様式０!E436&\"）\")&IF(様式０!E468=\"\",\"\",\"、\"&様式０!E468&\"（\"&様式０!E466&\"）\")&IF(様式０!E498=\"\",\"\",\"、\"&様式０!E498&\"（\"&様式０!E496&\"）\")&IF(様式０!E528=\"\",\"\",\"、\"&様式０!E528&\"（\"&様式０!E526&\"）\")&IF(様式０!E558=\"\",\"\",\"、\"&様式０!E558&\"（\"&様式０!E556&\"）\")&IF(様式０!E588=\"\",\"\",\"、\"&様式０!E588&\"（\"&様式０!E586&\"）\")&IF(様式０!E618=\"\",\"\",\"、\"&様式０!E618&\"（\"&様式０!E616&\"）\")&IF(様式０!E648=\"\",\"\",\"、\"&様式０!E648&\"（\"&様式０!E646&\"）\")&IF(様式０!E677=\"\",\"\",\"等\")","v":""}]
[]
[]
[]
[]
[]
[null,"連携研究者",{"$f":"IF(様式０!E680=\"\",\"\",様式０!E682&\"（\"&様式０!E680&\"）\")&IF(様式０!E684=\"\",\"\",\"、\"&様式０!E686&\"（\"&様式０!E684&\"）\")&IF(様式０!E688=\"\",\"\",\"、\"&様式０!E690&\"（\"&様式０!E688&\"）\")&IF(様式０!E692=\"\",\"\",\"、\"&様式０!E694&\"（\"&様式０!E692&\"）\")&IF(様式０!E696=\"\",\"\",\"、\"&様式０!E698&\"（\"&様式０!E696&\"）\")&IF(様式０!E700=\"\",\"\",\"、\"&様式０!E702&\"（\"&様式０!E700&\"）\")&IF(様式０!E704=\"\",\"\",\"、\"&様式０!E706&\"（\"&様式０!E704&\"）\")&IF(様式０!E708=\"\",\"\",\"、\"&様式０!E710&\"（\"&様式０!E708&\"）\")&IF(様式０!E712=\"\",\"\",\"、\"&様式０!E714&\"（\"&様式０!E712&\"）\")&IF(様式０!E716=\"\",\"\",\"、\"&様式０!E718&\"（\"&様式０!E716&\"）\")&IF(様式０!E720=\"\",\"\",\"、\"&様式０!E722&\"（\"&様式０!E720&\"）\")&IF(様式０!E724=\"\",\"\",\"、\"&様式０!E726&\"（\"&様式０!E724&\"）\")&IF(様式０!E728=\"\",\"\",\"、\"&様式０!E730&\"（\"&様式０!E728&\"）\")&IF(様式０!E732=\"\",\"\",\"、\"&様式０!E734&\"（\"&様式０!E732&\"）\")&IF(様式０!E736=\"\",\"\",\"、\"&様式０!E738&\"（\"&様式０!E736&\"）\")&IF(様式０!E740=\"\",\"\",\"、\"&様式０!E742&\"（\"&様式０!E740&\"）\")&IF(様式０!E744=\"\",\"\",\"、\"&様式０!E746&\"（\"&様式０!E744&\"）\")&IF(様式０!E748=\"\",\"\",\"、\"&様式０!E750&\"（\"&様式０!E748&\"）\")&IF(様式０!E752=\"\",\"\",\"、\"&様式０!E754&\"（\"&様式０!E752&\"）\")&IF(様式０!E756=\"\",\"\",\"、\"&様式０!E758&\"（\"&様式０!E756&\"）\")&IF(様式０!E761=\"\",\"\",\"、\"&様式０!E761)","v":""}]
[]
[]
[]
[]
[]
[null,"研究開発の目的\n（200字程度）",null,null,{"$f":"様式０!E39&\"\"","v":""}]
[]
[]
[]
[]
[]
[null,"研究開発の概要\n（200字以内）",null,null,{"$f":"様式０!E40&\"\"","v":""}]

{"sheet":"EIC","index":4,"n_rows":164,"n_cols":36,"rows_kept":164,"cut":false,"hidden":true,"merged":[]}
[]
[null,null,null,"A 基礎・境界"]
[null,null,null,"電気音響・音響一般","騒音・振動","音声・聴覚_A分野","超音波","ディジタル信号処理","アナログ信号処理","システムと制御","非線形問題","回路理論・回路解析","VLSI設計技術とCAD","数値計算・数理計画法","アルゴリズムとデータ構造・計算複雑度","グラフとネットワーク","信頼性・保全性・安全性","情報セキュリティ基礎","情報理論","符号理論","通信理論・信号理論基礎","スペクトル拡散技術","移動情報通信・パーソナル通信","高度交通システム_ITS","画像","視覚","コンピュータグラフィックス基礎_ＣＧ基礎","人工知能","ヒューマンコミュニケーション","ニューラルネットワーク及び生物工学","マルチメディア環境技術","情報倫理・情報通信倫理","システム数理と応用","測定・計測","基礎理論","バイオメトリクス"]
[]
[null,"基礎・境界",null,"A020100 電気音響、音響一般","A020200 騒音、振動","A020300 音声、聴覚","A020400 超音波","A020500 ディジタル信号処理","A020600 アナログ信号処理","A020700 システムと制御","A020800 非線形問題","A020900 回路理論，回路解析","A021000VLSI 設計技術とCAD","A021100 数値計算，数理計画法","A021200 アルゴリズムとデータ構造・計算複雑度","A021300 グラフとネットワーク","A021400 信頼性，保全性，安全性","A021500 情報セキュリティ基礎","A021600 情報理論","A021700 符号理論","A021800 通信理論，信号理論基礎","A021900 スペクトル拡散技術","A022000 移動情報通信・パーソナル通信","A022100 高度交通システム（ITS）","A022200 画像","A022300 視覚","A022400 コンピュータグラフィックス(CG)基礎","A022500 人工知能","A022600 ヒューマンコミュニケーション","A022700 ニューラルネットワーク及び生物工学","A022800 マルチメディア環境技術","A022900 情報倫理・情報通信倫理","A023000 システム数理と応用","A023100 測定・計測","A023200 基礎理論","A023300 バイオメトリクス"]
[null,"通信",null,"A020101 音響・振動理論","A020201 音場理論","A020301 音声生成機構","A020401 超音波の基礎","A020501 ディジタルフィルタ","A020601LC フィルタ","A020701 システム理論","A020801 物理系における非線形問題","A020901 線形回路理論，解析","A021001 アーキテクチャ設計法とシステム設計用CAD","A021101 微分方程式の解法","A021201 アルゴリズム設計・解析","A021301 グラフ理論","A021401 信頼性・保全性の計画・管理","A021501 暗号理論基礎・数論応用","A021601 情報基礎理論","A021701 誤り訂正符号と検出符号１（ブロック符号）","A021801 確率過程論","A021901 拡散方式･拡散変復調","A022001 移動モデル・移動通信トラヒック","A022101ITS と社会生活に関する総合的研究","A022201 画像処理","A022301 視覚機構","A022401 形状モデリング","A022501 知識表現","A022601 コミュニケーション論","A022701 ニューラルネットワークの基礎","A022801 知的コミュニケーション技術","A022901 技術と倫理","A023001 並行システム","A023101 測定論","A023201 モデリングとシミュレーション","A023301 生体計測"]
[null,"エレクトロニクス",null,"A020102 音響・振動計測","A020202 音場計測","A020302 聴覚機構","A020402 伝搬の理論","A020502 適応信号処理","A020602 能動フィルタ","A020702 安定論","A020802 生物系・化学系における非線形問題","A020902 非線形回路理論","A021002 機能設計法と高位合成","A021102 偏微分方程式の解法","A021202 データ構造","A021302 グラフアルゴリズム","A021402 システム信頼性の解析と設計","A021502 公開鍵暗号（解析・解読を含む）","A021602 情報理論における複雑度","A021702 誤り訂正符号と検出符号２（畳込み符号・ターボ符号・木符号・トレリス符号など）","A021802 信号検出","A021902 符号分割多元接続(CDMA)","A022002 アクセス制御・チャネル割当","A022102ITS 関連産業のサービスを含めた総合的見地からの研究","A022202 画像符号化と伝送","A022302 視覚モデル","A022402 CG 画像生成アルゴリズムとデータ構造","A022502 知識獲得","A022602 メディア論","A022702 ニューラルネットワークの集積化技術","A022802 非言語的コミュニケーション","A022902 コンピュータ倫理","A023002 ハイブリッドシステム","A023102 誤差論","A023202 単位，規格，シンボル，標準化","A023302 生体認識"]
[null,"情報・システム",null,"A020103 音響・振動分析","A020203 騒音・振動計測","A020303 音声・聴覚モデル","A020403 超音波物理・化学","A020503 非線形信号処理","A020603 サンプリングフィルタ","A020703 システム推定","A020803 心理・経済・社会現象などに関連した非線形問題・複雑系","A020903 電子回路","A021003 論理設計法と論理合成","A021103 積分方程式の解法","A021203 離散数学","A021303 ネットワーク理論","A021403 システム保全性の解析と設計","A021503 秘密鍵暗号（解析・解読を含む）","A021603 シャノン理論･符号化定理","A021703 符号化変調，ＴＣＭ","A021803 信号推定","A021903 拡散符号･擬似雑音系列","A022003 セル構成・セル制御","A022103ITS 通信技術","A022203 画像認識","A022303 視覚生理・視覚心理","A022403 CG 画像の評価","A022503 概念形成","A022603 情報意味論","A022703 バイオセンサー","A022803 意味・意図理解","A022903 情報倫理教育","A023003 サイバーフィジカルシステム","A023103 標準","A023203 数学的技法，確率統計","A023303 生体識別"]
[null,null,null,"A020104 音響材料・物性","A020204 音源同定","A020304 音質評価","A020404 超音波計測","A020504 知的信号処理","A020604 スイッチトキャパシタフィルタ","A020704 システム同定","A020804 システム・制御における非線形問題","A020904 受動回路理論，解析","A021004 回路設計法と回路合成","A021104 非線形方程式の解法","A021204 組合せ数学","A021304 組合せ最適化","A021404 ソフトウェア信頼性","A021504 ディジタル署名・認証","A021604 無ひずみデータ圧縮符号","A021704ＡＲＱ・誤り制御","A021804 信号設計","A021904 同期捕捉･同期追尾","A022004 ネットワーク構成・ネットワーク制御","A022104ITS エレクトロニクス技術","A022204 画像再構成・復元","A022304 立体視","A022404 CG 技法の電子情報通信への応用","A022504 推論方式","A022604 ヒューマンモデル","A022704 バイオメカニクス","A022804 知識利用通信","A022904 プライバシー・個人情報保護","A023004 マルチエージェントシステム","A023104 電気磁気測定","A023204 その他の基礎理論","A023304 生体認証"]
[null,null,null,"A020105 電話通信・音声放送","A020205 音場制御","A020305 音声・聴覚補助機器","A020405 超音波変換器","A020505 線形信号処理","A020605 各種フィルタ・増幅回路","A020705 制御系設計法","A020805 非線形回路解析","A020905 能動回路理論，解析","A021005 レイアウト設計法とレイアウト合成","A021105 高精度・高品質計算","A021205 計算複雑度の理論","A021305 ネットワーク制御","A021405 人間信頼性","A021505 鍵配送・鍵管理","A021605 有ひずみデータ圧縮符号・レートひずみ理論","A021705 フェージング通信路符号化","A021805 変復調理論","A021905 情報秘匿･秘話","A022005 ソースコーディング","A022105ITS ヒューマン技術","A022205 画像入力・表示","A022305 運動視・空間視",null,"A022505 知識ベース","A022605 ヒューマンエラー","A022705 ブレインウェア","A022805 付加価値通信","A022905 暗号と倫理・通信の秘密と倫理","A023005 システム生物学","A023105 電磁波測定",null,"A023305 生体検知"]
[null,null,null,"A020106 電気音響変換器","A020206 室内音響","A020306 音声工学","A020406 弾性表面波","A020506 多次元信号処理","A020606 光学的信号処理","A020706 線形制御理論","A020806 分岐現象・理論","A020906 時変回路理論，解析","A021006 テスト生成，テスト容易化設計，故障シミュレーション","A021106 大規模・高速計算法","A021206 計算可能性","A021306 ネットワーク構成","A021406FMEA・FTA","A021506 秘密分散・ビジュアル秘密分散","A021606 通信路符号化理論","A021706 記録符号化","A021806 スペクトル解析","A021906 測距･測位","A022006 耐フェージング変復調","A022106ITS インフラ技術","A022206 画像生成・表現","A022306 色覚",null,"A022506 エキスパートシステム","A022606 対話モデル","A022706 遺伝的アルゴリズムの基礎","A022806 通信代行技術","A022906 情報通信倫理綱領","A023006 サービスサイエンス","A023106 光放射線測定",null,"A023306 生体信号処理"]
[null,null,null,"A020107 録音・再生","A020207 音環境",null,"A020407 非破壊検査","A020507 推定・予測理論","A020607 ディジタル・アナログハイブリッド処理","A020707 非線形制御理論","A020807 カオス","A020907 分布定数回路","A021007 機能・論理・回路シミュレーション","A021107 線形計画法","A021207 ハードウェアアルゴリズム","A021307 ネットワーク運用管理","A021407 システム安全性の解析と設計","A021507 電子透かし・電子著作権保護","A021607 量子情報理論･量子通信理論","A021707 復号アルゴリズム","A021807 時系列モデル","A021907 干渉除去･抑圧","A022007 ダイバーシチ","A022107 航空・海上・陸上ITS 技術","A022207 画像品質と画像評価","A022307 色空間・色彩工学",null,"A022507 人工知能ソフトウェア","A022607 創造性・思考支援環境","A022707 適応進化型ハードウェア","A022807 電子秘書・エージェント","A022907 知的所有権と倫理","A023007 ビジネスプロセスマネジメント","A023107 音響測定",null,"A023307 身体的・行動的特徴"]
[null,null,null,"A020108 オーディオシステム","A020208 空間音響",null,"A020408 強力超音波","A020508 カルマンフィルタ","A020608 アナログニューラルネット","A020708 適応制御","A020808 フラクタル","A020908 回路網理論，解析","A021008 設計記述言語","A021108 非線形計画法","A021208 計算幾何学","A021308 情報ネットワーク","A021408 モデルと予測","A021508 プロトコル・ゼロ知識証明","A021608 マルチユーザ通信理論","A021708 同期符号","A021808 波形伝送論","A021908 マルチユーザ受信","A022008 適応等化・干渉除去","A022108ITS センシング技術","A022208 ビジョンチップ","A022308 視覚補助機器",null,"A022508 学習機構","A022608 障害者・高齢者のためのコミュニケーション支援","A022708 人工生命","A022808 知的符号化","A022908PL 法と倫理","A023008 形式手法","A023108 機械振動測定",null,"A023308 特徴抽出・検出"]
[null,null,null,"A020109 和・洋・電子楽器","A020209 騒音・振動の評価",null,"A020409 水中超音波","A020509 非定常過程","A020609 アナログ信号処理用回路","A020709 確率システム制御理論","A020809 ニューラルネットの理論・応用","A020909 回路構成・設計","A021009 設計環境","A021109 整数計画法",null,"A021309 移動情報ネットワーク","A021409 故障データ解析","A021509 暗号応用・電子現金・電子決済・超流通","A021609 予測理論","A021709 系列生成論","A021809 雑音理論","A021909 移動情報通信･パーソナル通信","A022009 誤り訂正符号・誤り制御","A022109ITS 画像技術","A022209 多眼画像・3 次元画像","A022309 視覚応用システム",null,"A022509 理解","A022609 心理学・行動科学・社会心理・組織論","A022709 遺伝子情報処理","A022809 マルチメディア技術","A022909 職業倫理","A023009 ゲーム理論","A023109 生体測定",null,"A023309 マルチモーダルバイオメトリクス"]
[null,null,null,"A020110 コンピュータミュージック","A020210 騒音・振動の人体影響",null,"A020410 医用超音波","A020510 スペクトル推定","A020610 アナログ・ディジタル混載回路","A020710 サイバネティックス","A020810 離散系の非線形問題","A020910 回路診断","A021010 設計方法論","A021110 数値計算・数理計画法応用",null,null,"A021410 リスクの評価・管理","A021510 暗号実装","A021610 学習理論",null,"A021810 伝送路符号","A021910 コンシューマ通信","A022010 適応アンテナ制御","A022110ITS 情報技術","A022210 画像への情報埋め込み",null,null,"A022510 認識論","A022610 ヒューマンインタフェース技術",null,"A022810 マルチメディア情報の理解・変換・蓄積・加工・合成","A022910 経営倫理・企業倫理","A023010 スケジューリング","A023110 揺らぎ測定",null,"A023310 ソフトバイオメトリクス"]
[null,null,null,"A020111 音響信号ディジタル処理","A020211 騒音・振動の受動能動制御",null,"A020411 物性と材料","A020511 時間周波数解析","A020611 標本化定理","A020711 オペレーションズリサーチ","A020811 非線形分布定数系","A020911 回路のCAD","A021011 カスタム化技術",null,null,null,null,"A021511 秘話・スクランブル","A021611 パターン認識",null,"A021811 最適受信機","A021911 衛星･宇宙通信","A022011 ソフトウェア無線",null,"A022211 画像応用システム",null,null,"A022511 思考の脳生理学的基礎","A022611 マン・マシンインタフェース",null,"A022811 マルチメディア統合符号化","A022911 ネチケット","A023011 モデルベース開発","A023111 確率現象測定",null,"A023311 プライバシー"]
[null,null,null,"A020112 音響エコーキャンセラー","A020212 吸音・遮音・制振材料",null,"A020412 超音波スペクトロスコピー","A020512 ウェーブレット","A020612A-D・D-A 変換","A020712 システム最適化・設計","A020812 非線形波動・ソリトン","A020912 電磁界と回路","A021012 ハードウェアアルゴリズム",null,null,null,null,"A021512 アクセス制御・ネットワークセキュリティ・データベースセキュリティ","A021612 情報理論応用",null,"A021812 通信方式","A021912 無線LAN･構内無線","A022012 広帯域無線通信･高速無線アクセス",null,null,null,null,"A022512 思考過程・思考能力の分析と定式化","A022612 マルチメディアインタフェース",null,"A022812 ハイパメディア",null,"A023012 スーパバイザ制御",null,null,"A023312 なりすまし対策"]
[null,null,null,"A020113 マイクロホンアレー",null,null,"A020413 音響ホログラフィー","A020513 多重解像度解析","A020613 アナログ信号のディジタル処理","A020713 大規模システムの解析・設計手法","A020813 非線形系のシミュレーション技法","A020913 回路とシステム応用","A021013CAD 専用ハードウェア",null,null,null,null,"A021513 プライバシー保護",null,null,"A021813 プロトコル","A021913 電力線･有線伝送","A022013 無線パケット・無線ATM・無線LAN",null,null,null,null,"A022513 思考の信頼性と一貫性","A022613 マルチモーダルインタフェース",null,"A022813 臨場感通信",null,null,null,null,"A023313 テンプレート保護"]
[null,null,null,"A020114 音響信号の符号化",null,null,"A020414 超音波ＣＴ","A020514 フィルタバンク","A020614 定常・非定常確率過程","A020714 待ち行列理論",null,null,"A021014 テクノロジーマイグレーション",null,null,null,null,"A021514 セキュリティマネジメント",null,null,"A021814 ネットワークアーキテクチャ","A021914 光SS（CDMA)","A022014 移動通信装置",null,null,null,null,"A022514 意識と思考","A022614 感性・情緒処理",null,"A0228143D 通信",null,null,null,null,"A023314 人工物メトリクス"]
[null,null,null,"A020115 生体音響",null,null,"A020415 パラメトリック応用機器","A020515 高速アルゴリズム","A020615 最適フィルタ","A020715 離散事象システム",null,null,"A021015 ハードウェア／ソフトウェア協調設計",null,null,null,null,"A021515 リスクアナリシス",null,null,"A021815 移動情報通信基礎･パーソナル通信基礎","A021915 リモートセンシングコントロール",null,null,null,null,null,"A022515 イメージと思考","A022615 ヒューマン機能の計測と解析",null,"A022815 広視野通信"]
[null,null,null,"A020116 非線形音響",null,null,"A020416 超音波応用計測","A020516 各種変換","A020616 スペクトル推定","A020716 ペトリネット",null,null,"A021016 設計検証技術",null,null,null,null,"A021516 量子暗号・量子計算",null,null,null,"A021916 ナビゲーションレーダ",null,null,null,null,null,"A022516 認知科学","A022616 ヒューマン情報処理",null,"A022816 五感通信"]
[null,null,null,null,null,null,"A020417 超音波応用デバイス","A020517 情報圧縮","A020617 ビデオ信号処理",null,null,null,"A021017 アナログ回路用CAD",null,null,null,null,null,null,null,null,null,null,null,null,null,null,"A022517 言語理解と言語獲得","A022617 視聴覚情報処理",null,"A022817 マルチメディア通信"]
[null,null,null,null,null,null,null,"A020518 誤り訂正符号化","A020618 オーディオ信号処理",null,null,null,"A021018 リコンフィグラブル論理",null,null,null,null,null,null,null,null,null,null,null,null,null,null,"A022518 問題解決","A022618 ヒューマンビジョン",null,"A022818 空間操作"]
[null,null,null,null,null,null,null,"A020519 通信用信号処理","A020619 マルチメディア信号処理",null,null,null,"A021019PCB, MCM 設計",null,null,null,null,null,null,null,null,null,null,null,null,null,null,"A022519 思考支援","A022619 実空間の知覚と認知",null,"A022819 サイバインタフェース"]
[null,null,null,null,null,null,null,"A020520 制御用信号処理","A020620 各種波形処理回路",null,null,null,null,null,null,null,null,null,null,null,null,null,null,null,null,null,null,"A022520 発想支援","A022620 生体発現信号の処理",null,"A022820 人工現実感・仮想環境"]
[null,null,null,null,null,null,null,"A020521 生体信号処理",null,null,null,null,null,null,null,null,null,null,null,null,null,null,null,null,null,null,null,null,"A022621 生体運動の理解と生成"]
[null,null,null,null,null,null,null,"A020522 記録と記録用信号処理"]
[null,null,null,null,null,null,null,"A020523 マルチメディア信号処理"]
[null,null,null,null,null,null,null,"A020524 信号処理用VLSI"]
[null,null,null,null,null,null,null,"A020525 信号処理プロセッサ"]
[null,null,null,null,null,null,null,"A020526 並列信号処理"]
[]
[null,null,null,"B 通信"]
[null,null,null,"基盤","光","ネットワーク","無線","無線システム","マルチメディアシステム"]
[]
[null,null,null,"B030100 基礎理論","B030400 光ファイバ","B030600 ネットワークシステム","B031000 アンテナ・伝搬","B031500 計測，探査","B031800 マルチメディアシステム"]
[null,null,null,"B030101 情報理論","B030401 光ファイバ設計・製造・特性評価","B030601 システムアーキテクチャ","B031001 電波伝搬","B031501 電子・電波・光計測","B031801 画像・映像処理，画像・映像符号化"]
[null,null,null,"B030102 符号理論","B030402 フォトニック結晶ファイバ","B030602 システムソフトウェア","B031002 移動伝搬，MIMO 伝搬","B031502 リモートセンシング","B031802 音声処理,音声符号化"]
[null,null,null,"B030103 誤り制御方式","B030403 低曲げ損失・高密度実装光ファイバ","B030603 システムハードウェア","B031003 到来方向推定","B031503 光ファイバセンシング","B031803 メディア同期"]
[null,null,null,"B030104 暗号理論","B030404 特殊光ファイバ","B030604 呼制御","B031004 電磁界解析","B031504 レーダ，信号処理","B031804 通信品質"]
[null,null,null,"B030105 情報セキュリティ","B030405 光ファイバ応用部品","B030605 分散処理プラットホーム","B031005 アンテナ全般","B031505 SAR，ISAR","B031805 認証，認可，アクセス制御"]
[null,null,null,"B030106 トラヒック理論","B030406 光ファイバ接続・コネクタ","B030606 スイッチング方式","B031006 小形アンテナ","B031506 パルス圧縮","B031806 サービス連携"]
[null,null,null,"B030107 待ち行列理論","B030407 光ファイバ線路特性監視・管理技術","B030607 MPLS,GMPLS","B031007 移動通信用アンテナ","B031507 ポーラリメトリ","B031807Web サービス"]
[null,null,null,"B030108 ネットワーク理論","B030500 光ファイバ伝送","B030608 ルータ","B031008 人体周辺のアンテナ","B031508 測位，測距","B031808SOA，SaaS，PaaS"]
[null,null,null,"B030109 量子情報理論","B030501 光通信用光機能部品","B030700 ネットワーク","B031009 平面アンテナ","B031509 移動目標検出","B031809 モバイルマルチメディア"]
[null,null,null,"B030110 ディジタル信号処理","B030502 光増幅方式・装置","B030701 ネットワークアーキテクチャ","B031010 広帯域・マルチバンドアンテナ","B031510 地中探査","B031810 ホームネットワーク，情報家電"]
[null,null,null,"B030111 ネットワーク符号","B030503 光変復調方式・装置","B030702 ネットワーク制御","B031011 メタマテリアル・EBG 応用アンテナ","B031511 宇宙探査","B031811 オンデマンドシステム"]
[null,null,null,"B030200 電子通信エネルギー","B030504 光等化方式・装置","B030703 通信プロトコル","B031012 開口面アンテナ","B031512 目標推定","B031812 ネットワークコミュニティ"]
[null,null,null,"B030201 システムの省エネルギー化","B030505 光多重伝送方式・装置","B030704 移動通信プロトコル","B031013 アレーアンテナ","B031513 UWB センサ"]
[null,null,null,"B030202 クリーンエネルギー","B030506 光アクセス方式・装置","B030705 通信品質、QoS","B031014 アンテナの集積化・接続技術","B031514 計測・探査応用システム"]
[null,null,null,"B030203 電源システム","B030507 光信号処理","B030706 クロスレイヤ制御","B031015 アンテナシステム","B031515 周波数標準"]
[null,null,null,"B030204 電源システムのモニタリングとマネジメント","B030508 光量子伝送","B030707 ネットワーク仮想化","B031016 アダプティブアンテナ・MIMO","B031600 航行・誘導・制御方式"]
[null,null,null,"B030205 電源回路","B030509 フォトニックネットワークシステム","B030708 通信サービス","B031017 アンテナ測定","B031601 電子航法"]
[null,null,null,"B030206 DC-DC コンバータ","B030510 フォトニックネットワーク制御方式・装置","B030709 マルチキャスト","B031100 電磁環境・EMC","B031602 衛星航法"]
[null,null,null,"B030207 AC-DC コンバータ，整流器","B030511 光インタコネクト，光インタフェース","B030710 P2P","B031101 電磁妨害波・電磁波障害","B031603 飛しょう体誘導"]
[null,null,null,"B030208 インバータ，UPS","B030512 光スイッチシステム","B030711 NGN","B031102 電磁雑音と伝搬メカニズム","B031604 状態推定"]
[null,null,null,"B030209 電池，蓄電",null,"B030712 オーバレイネットワーク","B031103 通信システムのEMC","B031605 運動モデル"]
[null,null,null,"B030210 燃料電池",null,"B030713 コンテンツデリバリーネットワーク","B031104 ESD，イミュニティ","B031606 自動操縦"]
[null,null,null,"B030211 力率改善・高調波電流抑制技術",null,"B030714 ユビキタスネットワーク","B031105 EMC モデリング","B031607 搭載装置"]
[null,null,null,"B030212 ＥＭＣ，電磁雑音",null,"B030715 アドホックネットワーク","B031106 EMC 対策","B031608 追尾フィルタ"]
[null,null,null,"B030213 回路部品，材料",null,"B030716 センサネットワーク","B031107 EMC 部品・材料","B031609 交通管制・管理"]
[null,null,null,"B030300 伝送方式・機器",null,"B030717 環境志向ネットワーク","B031108 電磁波吸収・遮へい","B031700 宇宙利用システム"]
[null,null,null,"B030301 伝送路符号",null,"B030718 モバイルコンピューティング","B031109 EMC 計測","B031701 宇宙機・搭載機器"]
[null,null,null,"B030302 変復調方式",null,"B030719 グリッドコンピューティング","B031110 生体電磁作用・計測","B031702 観測，測位，探査衛星システム"]
[null,null,null,"B030303 多重化方式",null,"B030720 クラウドコンピューティング","B031111 電磁波応用","B031703 小型衛星システム"]
[null,null,null,"B030304 同期方式",null,"B030800 インターネット","B031112 電磁波監視","B031704 通信，準天頂衛星システム"]
[null,null,null,"B030305 各種伝送機器・回路",null,"B030801 インターネットプロトコル","B031200 無線通信技術","B031705 エネルギー伝送システム"]
[null,null,null,"B030306 通信線路，配線システム",null,"B030802 インターネットQoS","B031201 無線変復調方式","B031706 流星通信システム"]
[null,null,null,"B030307 メタルアクセス方式・装置",null,"B030803 インターネットセキュリティ","B031202 スペクトル拡散通信，UWB"]
[null,null,null,"B030308 回線監視・制御",null,"B030804 インターネットルーチング","B031203 多元接続方式"]
[null,null,null,null,null,"B030805 インターネットサービス","B031204 無線アクセスプロトコル"]
[null,null,null,null,null,"B030806 IP テレフォニー","B031205 マルチキャリヤ方式，OFDM"]
[null,null,null,null,null,"B030807 WWW","B031206 ダイバーシチ"]
[null,null,null,null,null,"B030808 インターネット放送","B031207 耐マルチパスフェージング"]
[null,null,null,null,null,"B030809 電子メール","B031208 適応等化，干渉除去"]
[null,null,null,null,null,"B030810 DNS","B031209 無線信号処理"]
[null,null,null,null,null,"B030900 ネットワーク管理・オペレーション","B031210 無線資源割当，スケジューリング"]
[null,null,null,null,null,"B030901 管理・オペレーションアーキテクチャ","B031211 ソフトウェア無線"]
[null,null,null,null,null,"B030902 サービス管理・ビジネス管理","B031212 MIMO，時空間信号処理"]
[null,null,null,null,null,"B030903 分散システム管理・オペレーション","B031213 アダプティブ・スマートアンテナ"]
[null,null,null,null,null,"B030904 管理プロトコル","B031214 光ファイバ無線"]
[null,null,null,null,null,"B030905 障害・構成・性能・課金管理","B031215 周波数有効利用技術"]
[null,null,null,null,null,"B030906 セキュリティ管理とそのツール","B031216 電力高効率化技術"]
[null,null,null,null,null,"B030907 セキュリティポリシー","B031217 光無線通信方式"]
[null,null,null,null,null,"B030908 オペレーションインタフェース","B031218 無線回線制御"]
[null,null,null,null,null,"B030909 管理・設定自動化","B031219 通信路推定"]
[null,null,null,null,null,null,"B031220 同期"]
[null,null,null,null,null,null,"B031221 リレー，協調通信"]
[null,null,null,null,null,null,"B031222 時空間符号"]
[null,null,null,null,null,null,"B031300 地上無線通信，放送技術"]
[null,null,null,null,null,null,"B031301 移動通信"]
[null,null,null,null,null,null,"B031302 固定無線通信"]
[null,null,null,null,null,null,"B031303 無線LAN"]
[null,null,null,null,null,null,"B031304 無線アクセス方式"]
[null,null,null,null,null,null,"B031305 アドホック通信"]
[null,null,null,null,null,null,"B031306 ユビキタス無線"]
[null,null,null,null,null,null,"B031307 ITS"]
[null,null,null,null,null,null,"B031308 マルチホップ・マルチセル無線ネットワーク"]
[null,null,null,null,null,null,"B031309 コグニティブ無線"]
[null,null,null,null,null,null,"B031310 放送システム"]
[null,null,null,null,null,null,"B031400 衛星通信"]
[null,null,null,null,null,null,"B031401 衛星放送"]
[null,null,null,null,null,null,"B031402 衛星・地上融合通信システム"]
[null,null,null,null,null,null,"B031403 衛星センサネットワーク"]
[]
[null,null,null,"C エレクトロニクス"]
[null,null,null,"電磁界理論","レーザ・量子エレクトロニクス","光エレクトロニクス","マイクロ波・ミリ波","超音波エレクトロニクス","電子回路","電子材料","有機エレクトロニクス","電子部品","機構デバイス","半導体材料・デバイス","集積エレクトロニクス","電子管・真空・ビーム技術","電子ディスプレイ","超伝導エレクトロニクス"," 記録・記憶技術","電子計測・制御"]
[]
[null,null,null,"C020100 電磁界理論","C020200 レーザ・量子エレクトロニクス","C020300 光エレクトロニクス","C020400 マイクロ波・ミリ波","C020500 超音波エレクトロニクス","C020600 電子回路","C020700 電子材料","C020800 有機エレクトロニクス","C020900 電子部品","C021000 機構デバイス","C021100 半導体材料・デバイス","C021200 集積エレクトロニクス","C021300 電子管・真空・ビーム技術","C021400 電子ディスプレイ","C021500 超伝導エレクトロニクス","C021600 記録・記憶技術","C021700 電子計測・制御"]
[null,null,null,"C020101 電磁界の基礎理論","C020201 量子光学・量子エレクトロニクス基礎","C020301 光導波路技術","C020401 受動回路・素子","C020501 超音波材料","C020601 アナログ回路","C020701 有機材料","C020801 有機導電材料・有機超伝導材料","C020901 能動部品","C021001 接触現象・放電現象・トライポロジー","C021101 半導体結晶・アモルファス材料","C021201 デバイス及び回路の高性能化","C021301 電子管材料","C021401 CRT・蛍光表示管","C021501 超伝導現象","C021601 磁気記録","C021701 センサ・トランスデューサ"]
[null,null,null,"C020104 数学的解析理論と応用","C020202 光材料・物性","C020302 光ファイバ","C020402 能動回路・素子・MMIC","C020502 超音波デバイス・圧電デバイス","C020602 ディジタル回路","C020702 無機材料","C020802 有機半導体材料","C020902 受動部品","C021002 接続技術・インタコネクション","C021102 半導体物性評価","C021202 汎用メモリ（DRAM,SRAM，不揮発等）","C021302 電子管","C021402 プラズマディスプレイ","C021502 超伝導材料","C021602 光記録","C021702 測定・分析機器"]
[null,null,null,"C020105 数値解法理論，計算電磁気学","C020203 レーザ分光","C020303 光回路","C020403 システム・応用装置","C020503 弾性表面波デバイス（SAWフィルタ）","C020603 アナログ・ディジタル混載回路","C020703 磁性材料","C020803 有機絶縁材料","C020903 回路基板","C021003 めっき技術","C021103 表面・界面","C021203 専用メモリ（画像用，通信用等）","C021303 撮像管","C021403 有機EL ディスプレイ","C021503 薄膜・ジョセフソン接合","C021603 記録再生方式","C021703 計測・制御技術"]
[null,null,null,"C020106 量子電磁力学","C020204 半導体レーザ，発光ダイオード","C020304 微小光学技術","C020404 センサ技術","C020504 超音波発生・検出（トランスデューサ）","C020604 通信用回路","C020704 誘電材料","C020804 機能性有機材料","C020904 記録部品","C021004 モールド技術","C021104 半導体結晶成長","C021204 マイクロプロセッサ・コントローラ","C021304 真空機器","C021404 無機EL ディスプレイ","C021504 超伝導デバイス","C021604 記録材料・デバイス（ヘッド，媒体）","C021704 コンピュータ応用"]
[null,null,null,"C020107 電磁環境","C020205 半導体以外のレーザ","C020305 光応用計測","C020405 電力応用","C020505 強力超音波","C020605 信号処理回路","C020705 圧電材料","C020805 分子設計・製膜法","C020905 表示部品","C021005 金属加工技術","C021105 パワーデバイス","C021205 DSP","C021305 電子ビーム","C021405 液晶ディスプレイ","C021505 低温技術","C021605 記録再生信号処理","C021705 計測自動化"]
[null,null,null,"C020108 生体への電磁波応用","C020206 光変調","C020306 光センサ","C020406 電磁界解析","C020506 超音波応用","C020606 エネルギー変換回路","C020706 導電材料","C020806 作製技術・評価技術","C020906 ハイブリット集積回路部品","C021006 マイクロマシーニング","C021106 薄膜トランジスタ","C021206 カスタムLSI","C021306 イオンビーム","C021406 FED","C021506 超伝導ディジタル応用","C021606 機構系，サーボ系","C021706 リモートセンシング"]
[null,null,null,"C020109 波動情報処理","C020207 光増幅","C020307 光記録","C020407 回路合成","C020507 圧電センサ・アクチュエータ","C020607 低雑音・耐雑音回路","C020707 絶縁材料","C020807 分子電子デバイス","C020907 電気化学部品・電池","C021007 リレー・スイッチ","C021107 化合物半導体デバイス","C021207 アナログLSI","C021307 プラズマ応用","C021407 超大型ディスプレイ（プロジェクション・LED アレー等）","C021507 超伝導アナログ応用",null,"C021707 教育用機器"]
[null,null,null,"C020110 他系との結合理論と解析","C020208 光検出","C020308 光情報処理","C020408 CAD・シミュレーション","C020508 圧電発振器，高安定発振器","C020608 A－D・D－A 変換回路","C020708 機能性材料","C020808 分子光デバイス","C020908 センサ応用部品","C021008 コネクタ・光コネクタ","C021108 撮像デバイス・CCD","C021208 集積化センサ","C021308 X 線応用","C021408 電子ペーパ・ペーパライクディスプレイ",null,null,"C021708 人間工学"]
[null,null,null,"C020111 非線形問題","C020209 非線形光学","C020309 光インタコネクション","C020409 測定技術","C020509 周波数・時刻制御，計測技術","C020609 インタフェース回路","C020709 表示・記憶材料","C020809 分子ナノテクノロジー","C020909 半導体パッケージ技術","C021009 回路基板・実装技術","C021109 太陽電池","C021209 アナログ・ディジタル混載LSI",null,"C021409 3 次元表示ディスプレイ"]
[null,null,null,"C020112 放射・伝搬","C020210 光・レーザ制御","C020310 光応用システム","C020410 マイクロ波導波路技術","C020510 医用超音波","C020610 発振・増幅回路","C020710 超音波応用材料","C020810 バイオエレクトロニクス","C020910 高密度実装技術","C021010 光実装技術","C021110 新機能・新概念・量子効果デバイス","C021210 マルチメディアLSI",null,"C021410 TFT"]
[null,null,null,"C020113 散乱・回折","C020211 マイクロ波フォトニクス","C020311 フォトニック結晶","C020411 マイクロ波・ミリ波材料",null,"C020611 センサ回路","C020711 センサ応用材料","C020811 電気化学計測・電気化学応用","C020911 高速・高周波実装技術","C021011 ヒューマンインタフェースデバイス","C021111 各種ダイオードトランジスタ","C021211 ニューラルネットワークLSI",null,"C021411 液晶材料"]
[null,null,null,"C020114 アンテナ理論","C020212 超高速現象，超短光パルス，光ソリトン","C020312 ナノフォトニクス","C020412 マイクロ波弾性波素子",null,"C020612 各種変換回路","C020712 光学応用材料",null,"C020912 電子部品設計技術","C021012 電気機械トランスデューサ・センサ","C021112 プロセス技術，微細加工","C021212 新しい概念のLSI",null,"C021412 蛍光体材料"]
[null,null,null,"C020115 周期構造","C020213 光スイッチング，光双安定技術","C020313 バイオフォトニクス","C020413 マイクロ波超伝導",null,"C020613 非線形回路","C020713 実装技術応用材料",null,"C020913 電子部品評価・解析技術","C021013 アクチェータ・小型モータ","C021113 半導体生産技術","C021213 クロック関連技術（PLL，DLL 等）",null,"C021413 ディスプレイ装置・システム"]
[null,null,null,"C020116 ランダム媒質・粗面","C020214 レーザ加工，プロセス技術","C020314 医療（医用）フォトニクス","C020414 マイクロ波・光変換",null,"C020614 電源回路・電源装置","C020714 マイクロ波・ミリ波応用材料",null,"C020914 信頼性評価技術","C021014 アレスター・ヒューズ","C021114 テスト・信頼性","C021214 LSI 実装技術",null,"C021414 ディスプレイ周辺技術（光源・フィルタ等）"]
[null,null,null,"C020117 人工媒質，非線形媒質","C020215 光半導体結晶成長・評価，プロセス",null,"C020415 マイクロマシン技術応用",null,"C020615 フィルタ","C020715 半導体結晶を除く結晶成長技術",null,null,null,"C021115 シミュレーション・モデリング","C021215 テスト容易化技術",null,"C021415 ディスプレイ製作技術（プロセス・材料・検査等）"]
[null,null,null,"C020118 時間領域解析",null,null,"C020416 非線形応用回路・素子",null,"C020616 スイッチトキャパシタ回路","C020716 薄膜・厚膜材料技術",null,null,null,null,"C021216 LSI フォールトトレラント技術",null,"C021416 ディスプレイ特性測定・評価"]
[null,null,null,"C020119 高周波漸近解法",null,null,"C020417 回路実装技術",null,"C020617 スイッチトカレント回路","C020717 材料評価技術",null,null,null,null,"C021217 システムオンチップ設計検証技術",null,"C021417 ディスプレイ人間工学・エルゴノミクス等"]
[null,null,null,"C020120 逆問題",null,null,null,null,"C020618 変復調回路",null,null,null,null,null,"C021218 VLSI コンピュータ技術（超並列アーキテクチャ，分散処理アーキテクチャ等）",null,"C021418 ディスプレイ駆動回路"]
[null,null,null,"C020121 導波路構造",null,null,null,null,null,null,null,null,null,null,"C021219 メモリロジック混載技術",null,"C021419 ディスプレイ駆動方式・信号処理"]
[null,null,null,null,null,null,null,null,null,null,null,null,null,null,"C021220 LSI 信頼性技術"]
[null,null,null,null,null,null,null,null,null,null,null,null,null,null,"C021221 無線通信用（RF）LSI"]
[null,null,null,null,null,null,null,null,null,null,null,null,null,null,"C021222 有線通信用LSI"]
[]
[null,null,null,"D 情報・システム"]
[null,null,null,"情報・システム基礎","計算機システム","ソフトウェアシステム","ソフトウェア工学","データ工学・Web情報システム","情報ネットワーク","ディペンダブルコンピューティング","人工知能・データマイニング","ヒューマンコンピュータインタラクション","オフィスインフォメーションシステム・eビジネスモデリング","教育工学","福祉工学","パターン認識","音声・聴覚_D分野","画像・映像処理","画像認識・コンピュータビジョン","コンピュータグラフィックス","マルチメディア処理","自然言語処理","バイオサイバネティックス・ニューロコンピューティング","生体工学","音楽情報処理","感性情報処理"]
[]
[null,null,null,"D140100 情報・システム基礎","D140200 計算機システム","D140300 ソフトウェアシステム","D140400 ソフトウェア工学","D140500 データ工学，Web 情報システム","D140600 情報ネットワーク","D140700 ディペンダブルコンピューティング","D140800 人工知能，データマイニング","D140900 ヒューマンコンピュータインタラクション","D141000 オフィスインフォメーションシステム・e-ビジネスモデリング","D141100 教育工学","D141200 福祉工学","D240100 パターン認識","D240200 音声・聴覚","D240300 画像・映像処理","D240400 画像認識・コンピュータビジョン","D240500 コンピュータグラフィックス","D240600 マルチメディア処理","D240700 自然言語処理","D240800 バイオサイバネティックス・ニューロコンピューティング","D240900 生体工学","D241000 音楽情報処理","D241100 感性情報処理"]
[null,null,null,"D140101 チューリング機械","D140201 論理素子","D140301 プログラミング言語","D140401 要求獲得・分析","D140501 データモデルと設計論","D140601 ネットワークアーキテクチャ","D140701 フォールトトレランス","D140801 知識表現と推論，オントロジー","D140901 ヒューマンコミュニケーション基礎・支援","D141001 オフィスアーキテクチャ・モデル","D141101 教育・学習支援システム","D141201 障害児・障害者インタフェース","D240101 特徴抽出・選択","D240201 音声生成","D240301 画像・映像処理ハードウェア","D240401 物体検出・追跡","D240501 モデリング","D240601 マルチモーダル，メディア統合","D240701 形態素解析","D240801 感覚・知覚系のモデル","D240901 生体計測・センサ","D241001 計算機の介在した作編曲・演奏・伴奏","D241101 感性原理"]
[null,null,null,"D140102 λ計算","D140202 記憶素子","D140302 情報意味論","D140402 設計技法","D140502 ファイル編成，ストレージ技術","D140602 サービスネットワーク","D140702 冗長化設計","D140802 知識ベース","D140902 ヒューマン情報処理，マルチメディア","D141002 SOHO，テレワークシステム","D141102 CAI，CMI，知的CAI，ITS，ILE","D141202 ユニバーサルデザイン","D240102 パターン識別・分類","D240202 音声，音響機器，騒音の知覚","D240302 画像復元","D240402 画像識別・分類","D240502 レンダリング","D240602 人工現実感，仮想現実感（マルチメディア処理）","D240702 構文解析","D240802 運動・制御系のモデル","D240902 生体信号処理","D241002 電子楽器","D241102 感性素材計測・評価"]
[null,null,null,"D140103 項書換え系","D140203 論理回路","D140303 言語処理系，コンパイラと最適化","D140403 ソフトウェアのテスト・デバッグ","D140503 問合せ言語，問合せ処理","D140603 プロトコル","D140703 設計検証","D140803 知識の共有・再利用","D140903 CSCW，グループウェア","D141003 ビジネスインテリジェンス","D141103 CSCW/L，分散協調学習","D141203 ウェルネス","D240103 パターン認識における学習","D240203 韻律","D240303 画像強調","D240403 人物画像処理","D240503 ビジュアライゼーション","D240603 複合現実感","D240703 意味解析","D240803 学習・記憶系のモデル","D240903 生体モデル","D241003 音楽におけるインタラクション","D241103 感性官能計測・評価"]
[null,null,null,"D140104 並列・分散計算","D140204 論理設計","D140304 プログラム合成・変換","D140404 ソフトウェアの保守","D140504 トランザクション処理","D140604 データ通信機器","D140704 VLSI のテスト・診断・検証","D140804 エキスパートシステム","D140904 インタラクション支援","D141004 ビジネスプロセスリエンジニアリング","D141104 障害児・障害者教育支援","D141204 バリアフリー","D240104 パターン生成","D240204 音声信号処理","D240304 画像・映像符号化","D240404 文字認識（ＯＣＲ，オンライン・情景内文字認識）","D240504 コンピュータグラフィックスハードウェア","D240604 ヒューマンインタフェース","D240704 言語生成","D240804 高次脳機能のモデル","D240904 生体イメージング・医用画像処理","D241004 音楽信号処理","D241104 感性社会学"]
[null,null,null,"D140105 量子計算","D140205 レイアウト","D140305 プログラムの解析・理解","D140405 ソフトウェアプロセス","D140505 並列・分散データベース","D140605 ユビキタス・モバイルコンピューティング","D140705 ソフトウェアのテスト・検証","D140805 知識獲得","D140905 創造・思考・発想支援","D141005 ビジネス支援","D141105 教育測定・評価，教育情報処理技法","D141205 リハビリテーション",null,"D240205 音声分析","D240305 映像ストリーミング","D240405 ３次元画像処理","D240505 コンピュータグラフィックスインタフェース",null,"D240705 言語理解","D240805 視覚・聴覚心理とモデル解析","D240905 診断・治療システム","D241005 AI と音楽","D241105 感性デザイン"]
[null,null,null,"D140106 分子計算","D140206 電子回路","D140306 検証","D140406 ソフトウェア開発における人的要素","D140506 マルチメディアデータベース","D140606 アドホックネットワーク","D140706 ネットワークのディペンダビリティ","D140806 演繹・仮説・帰納推論","D140906 ヒューマン・マルチモーダルインタフェース（ヒューマンコンピュータインタラクション）","D141006 経営情報システム","D141106 生体情報の教育応用","D141206 視覚障害の補助手段",null,"D240206 音声符号化，オーディオ符号化","D240306 画像・映像検索","D240406 照明・反射解析","D240506 アニメーション",null,"D240706 文脈処理","D240806 記憶，学習，自己組織化","D240906 医療情報システム","D241006 音楽の認知・感性情報処理","D241106 感性データベース"]
[null,null,null,"D140107 数理論理","D140207 実装","D140307 形式的仕様記述","D140407 開発環境，開発支援ツール","D140507 オブジェクト指向データベース","D140607 インターネット","D140707 並列・分散・協調システム","D140807 知的インタフェース","D140907 生体情報処理応用システム","D141007 経営意思決定支援システム","D141107 学習科学と認知科学","D141207 音声・聴覚・言語障害の補助手段（福祉工学）",null,"D240207 音声強調・復元・分離","D240307 画像・映像管理，画像・映像保護",null,"D240507 テクスチャリング",null,"D240707 言語処理アプリケーション","D240807 高次情報処理","D240907 リハビリテーション，福祉支援","D241007 音楽データベース・流通"]
[null,null,null,"D140108 多値論理","D140208 マイクロプロセッサアーキテクチャ","D140308 命令・手続き型モデル","D140408 ソフトウェア品質管理，定量的評価，メトリックス","D140508 演繹データベース","D140608 ブロードバンドネットワーク","D140708 リアルタイムシステム","D140808 遺伝的アルゴリズム，人工生命（人工知能，データマイニング）","D140908 認知情報処理応用システム","D141008 企業間アプリケーション統合","D141108 インストラクショナルデザイン，企業内教育","D141208 肢体不自由（者）の補助手段",null,"D240208 音声合成","D240308 画像・映像ハンドリング",null,"D240508 画像合成，特殊効果",null,"D240708 言語知識抽出","D240808 認知科学","D240908 脳・神経・感覚系","D241008 音楽学への応用"]
[null,null,null,"D140109 ファジィ論理","D140209 専用VLSI プロセッサアーキテクチャ","D140309 関数型モデル","D140409 プロジェクト管理","D140509 空間データベース","D140609 QoS，品質管理","D140709 ディペンダビリティの尺度・モデル・評価","D140809 複雑系，複雑システム","D140909 感性・あいまい情報処理応用システム","D141009 社会情報システム","D141109 情報教育，工学教育，高等教育一般，FD","D141209 視覚生理・心理応用システム",null,"D240209 音声・聴覚・言語障害の補助手段（音声，聴覚）",null,null,null,null,"D240709 言語分析","D240809 計算論的神経科学","D240909 呼吸・循環系"]
[null,null,null,"D140110 オートマトン","D140210 ウェーハスケールインテグレーション","D140310 論理型モデル","D140410 プロダクト・ドキュメント管理と再利用","D140510 モバイルデータベース","D140610 オーバーレイネットワーク","D140710 コンピュータシステムの信頼性・安全性","D140810 知能ロボット","D140910 バーチャルリアリティ，拡張現実感","D141010 人間行動学","D141110 e-ラーニング","D141210 聴覚生理・心理応用システム（福祉工学）",null,"D240210 競争的評価タスク・共通基盤",null,null,null,null,"D240710 換言処理","D240810 遺伝的アルゴリズム（バイオサイバネティックス，ニューロコンピュー ティング）","D240910 運動系・バイオメカニクス"]
[null,null,null,"D140111 形式文法","D140211 マルチプロセッサチップ","D140311 オブジェクト指向モデル",null,"D140511 データウェアハウス，OLAP","D140611 VoIP，VPN，CDN","D140711 コンピュータシステムの保守・診断","D140811 テキストマイニング","D140911 ウェアラブルコンピューティング","D141011 オフィス環境・設計","D141111 知識マネージメント","D141211 触覚生理・心理応用システム",null,"D240211 言語・外国語の音声教育",null,null,null,null,"D240711 文書処理","D240811 人工生命（バイオサイバネティックス，ニューロコンピューティング）"]
[null,null,null,"D140112 木オートマトン，グラフ文法","D140212 システムオンチップ","D140312 オペレーティングシステム",null,"D140512 文書データベース，Web データベース","D140612 暗号化技法",null,"D140812 Web マイニング",null,"D141012 企業モデル","D141112 コンテンツ作成技法，教材構成方法論","D141212 筋運動系の生理・心理応用システム",null,"D240212 音声認識・理解",null,null,null,null,"D240712 機械翻訳","D240812 ニューラルネットワークのモデル"]
[null,null,null,"D140113 セルオートマトン","D140213 新概念VLSI","D140313 ミドルウェア",null,"D140513 情報検索（データ工学，Web 情報システム）","D140613 電子署名",null,"D140813 音声・画像データマイニング",null,"D141013 NPO モデル，電子政府",null,null,null,"D240213 音声対話，音声翻訳",null,null,null,null,"D240713 情報検索（自然言語処理）","D240813 ニューラルネットワークのアーキテクチャ"]
[null,null,null,"D140114 データ構造","D140214 再構成可能LSI","D140314 組込ソフトウェア，実時間システム",null,"D140514 情報検索システム・エンジン","D140614 認証",null,"D140814 バイオ・医用データマイニング",null,"D141014 コミュニティモデル",null,null,null,"D240214 音声検索・要約",null,null,null,null,"D240714 自動要約","D240814 ニューラルネットワークの計算論"]
[null,null,null,"D140115 最適化アルゴリズム","D140215 FPGA",null,null,"D140515 情報フィルタリング","D140615 オーソライゼーション",null,"D140815 クラスタリング",null,"D141015 価値企画モデル",null,null,null,"D240215 話者認識・言語認識",null,null,null,null,"D240715 対話システム","D240815 ニューラルネットワークのハードウェア化"]
[null,null,null,"D140116 グラフアルゴリズム","D140216 記憶装置",null,null,"D140516 ディジタル図書館","D140616 電子透かし",null,"D140816 知識発見",null,"D141016 企業戦略と競争力モデル",null,null,null,"D240216 マルチモーダルインタフェース（音声，聴覚）",null,null,null,null,"D240716 自然言語インターフェース","D240816 ニューラルネットワークのダイナミクス"]
[null,null,null,"D140117 代数・数論アルゴリズム","D140217 入出力装置",null,null,"D140517 メタデータ，セマンティックWeb","D140617 電子商取引",null,"D140817 機械学習",null,"D141017 金融工学",null,null,null,"D240217 聴覚生理・心理（音声，聴覚）",null,null,null,null,null,"D240817 ニューラルネットワークによる特徴抽出・認識"]
[null,null,null,"D140118 計算幾何","D140218 端末装置",null,null,"D140518 情報配信，データ放送","D140618 ネットワークセキュリティ",null,null,null,"D141018 企業モデル・ビジネスプロセスの構築",null,null,null,null,null,null,null,null,null,"D240818 ニューラルネットワークによる認識・予測・制御とその応用"]
[null,null,null,"D140119 計算論的学習理論","D140219 コンピュータアーキテクチャ",null,null,"D140519 構造化文書，XML","D140619 アクセス制御",null,null,null,"D141019 モデル評価技術",null,null,null,null,null,null,null,null,null,"D240819 ハイブリッドシステム"]
[null,null,null,"D140120 構造的計算量","D140220 並列・分散処理アーキテクチャ",null,null,"D140520 Web 情報システム，Web サービス","D140620 セキュリティ管理",null,null,null,"D141020 知識の共有・管理技術"]
[null,null,null,"D140121 回路計算量","D140221 クラスタコンピューティング",null,null,"D140521 コンテンツ管理技術","D140621 DoS 対策",null,null,null,"D141021 システム構築技術"]
[null,null,null,"D140122 通信計算量","D140222 リコンフィギャラブルコンピューティング",null,null,"D140522 著作権・アクセス権管理，セキュリティ","D140622 分散協調問題解決",null,null,null,"D141022 教育，人材育成，認定"]
[null,null,null,null,"D140223 グリッド・グローバルコンピューティング",null,null,"D140523 ネットワークコミュニティ","D140623 分散協調プロトコル"]
[null,null,null,null,"D140224 情報家電",null,null,null,"D140624 知的エージェント"]
[null,null,null,null,null,null,null,null,"D140625 ソフトウェアエージェント"]
[null,null,null,null,null,null,null,null,"D140626 インタフェースエージェント"]
[null,null,null,null,null,null,null,null,"D140627 マルチエージェントシステム"]
[null,null,null,null,null,null,null,null,"D140628 モバイルエージェント"]